Workbook

Sheet README
B6: Landscape Monetisation Workbook
B8: TAG and VfM references
B9: TAG Unit A3 - Environmental Impact Appraisal
B10: Supplementary VfM Guidance on Landscape Monetisation
B12: Notes
B13: This tool should be used to derive indicative monetary estimates of a scheme's landscape impacts, in accordance with supplementary VfM guidance.
B14: The Landscape Values worksheet provides present value and annual per-hectare values for a range of broad land types to be used for landscape monetisation. Users are advised to check that the selected appraisal year is correct before applying the values in an appraisal.
B15: The Ecosystem Services worksheets - Inputs (ESS), Calculations (ESS) and Outputs (ESS) - should be used to derive indicative monetary estimates of impacts associated with (i) air quality regulation by vegetation and (ii) carbon sequestration.
B16: Users should refer to the supplementary landscape VfM guidance for further details on the scheme information required for the valuation of these services.
B18: Version Control
B19: Date | C19: Description
B20: 2025-05-01 | C20: Updated GDP Deflator, GDP per capita growth, population growth, and carbon values (appraisal) in line with latest TAG Data book (v2.01 May 2025)
B21: 2024-11-01 | C21: Forthcoming Change version. Updated default price and discounting base years (2023); updated economic and demographic assumptions in line with TAG Data Book v2.0 FC, Nov 2024.
B22: 2024-11-01 | C22: Updated economic and demographic assumptions in line with TAG Data Book v1.24, Nov 2024; corrected discounting; minor corrections to ESS calculations.
B23: 2024-05-01 | C23: Updated GDP Deflator, GDP per capita and population in line with latest TAG Data book (v1.23, May 2024)
B24: 2023-11-01 | C24: Updated carbon values (incl. market price adjustment), GDP deflator, GDP per capita and population in line with TAG Data Book v1.22.
B25: 2023-05-01 | C25: Updated GDP Deflator, GDP per capita and population in line with latest TAG Data book (v1.21, May 2023)
B26: 2022-11-01 | C26: Updated GDP Deflator, GDP per capita and population in line with latest TAG Data book (v1.20.1, November 2022)
B27: 2022-05-01 | C27: Updated GDP Deflator, GDP per capita and population in line with latest TAG Data book (v1.18, May 2022)
B28: 2021-11-01 | C28: Updated GDP Deflator, GDP per capita and population in line with latest TAG Data book (v1.17, November 2021)
B29: 2021-07-01 | C29: Initial release
B31: Contact
B32: Transport Appraisal and Strategic Modelling (TASM) Division
B33: Department for Transport
B34: Zone 2/25 Great Minster House
B35: 33 Horseferry Road
B36: London
B37: SW1P 4DR
B38: tasm@dft.gov.uk

Sheet Inputs (values)
B3: Appraisal assumptions
C5: Year values
C6: Source: NA
C8: Appraisal year | H8: 2025 | I8: user input
C10: Values base year for published landscape values | H10: 2010
C11: Price base year for published landscape values | H11: 2010
C12: Default price base year | H12: 2023
C13: Default discount base year | H13: 2023
C15: Discount rates
C16: Source: TAG Data Book v2.01 (May 2025)
C19: Year | H19: STPR
C20: =$H$13-$H$8 -> -2 | H20: 0.035
C21: 31 | H21: 0.03
C22: 76 | H22: 0.025
C23: 126 | H23: 0.02
C24: 201 | H24: 0.015
C25: 301 | H25: 0.01
B28: Published landscape value per land type
C30: Land type £/ha/year (2010 prices)
C31: Source: | E31: DfT supplementary VfM guidance on landscape monetisation (May 2017)
C34: Urban Core (City Park) | H34: 75153
C35: Urban Fringe (Greenbelt) | H35: 1237
C36: Urban Fringe (forested Land) | H36: 3758
C37: Rural (forested amenity land) | H37: 9222
C38: Agricultural land (extensive) | H38: 4384
C39: Agricultural land (intensive) | H39: 143
C40: Natural and semi-natural land (wetlands) | H40: 9208
C43: Land type perpetual present value (2010 prices)
C44: Source: | E44: DfT supplementary VfM guidance on landscape monetisation (May 2017)
C47: Urban Core (City Park) | H47: 15031000
C48: Urban Fringe (Greenbelt) | H48: 247000
C49: Urban Fringe (forested Land) | H49: 752000
C50: Rural (forested amenity land) | H50: 1844000
C51: Agricultural land (extensive) | H51: 877000
C52: Agricultural land (intensive) | H52: 29000
C53: Natural and semi-natural land (wetlands) | H53: 1842000
B56: Key Parameters
C58: Annual parameters
C59: Source: TAG Data Book v2.01 (May 2025)
H60: Year | DD60: .
H61: 2000 | I61: 2001 | J61: 2002 | K61: 2003 | L61: 2004 | M61: 2005 | N61: 2006 | O61: 2007 | P61: 2008 | Q61: 2009 | R61: 2010 | S61: 2011 | T61: 2012 | U61: 2013 | V61: 2014 | W61: 2015 | X61: 2016 | Y61: 2017 | Z61: 2018 | AA61: 2019 | AB61: 2020 | AC61: 2021 | AD61: 2022 | AE61: 2023 | AF61: 2024 | AG61: 2025 | AH61: 2026 | AI61: 2027 | AJ61: 2028 | AK61: 2029 | AL61: 2030 | AM61: 2031 | AN61: 2032 | AO61: 2033 | AP61: 2034 | AQ61: 2035 | AR61: 2036 | AS61: 2037 | AT61: 2038 | AU61: 2039 | AV61: 2040 | AW61: 2041 | AX61: 2042 | AY61: 2043 | AZ61: 2044 | BA61: 2045 | BB61: 2046 | BC61: 2047 | BD61: 2048 | BE61: 2049 | BF61: 2050 | BG61: 2051 | BH61: 2052 | BI61: 2053 | BJ61: 2054 | BK61: 2055 | BL61: 2056 | BM61: 2057 | BN61: 2058 | BO61: 2059 | BP61: 2060 | BQ61: 2061 | BR61: 2062 | BS61: 2063 | BT61: 2064 | BU61: 2065 | BV61: 2066 | BW61: 2067 | BX61: 2068 | BY61: 2069 | BZ61: 2070 | CA61: 2071 | CB61: 2072 | CC61: 2073 | CD61: 2074 | CE61: 2075 | CF61: 2076 | CG61: 2077 | CH61: 2078 | CI61: 2079 | CJ61: 2080 | CK61: 2081 | CL61: 2082 | CM61: 2083 | CN61: 2084 | CO61: 2085 | CP61: 2086 | CQ61: 2087 | CR61: 2088 | CS61: 2089 | CT61: 2090 | CU61: 2091 | CV61: 2092 | CW61: 2093 | CX61: 2094 | CY61: 2095 | CZ61: 2096 | DA61: 2097 | DB61: 2098 | DC61: 2099 | DD61: 2100 | DE61: 2101 | DF61: 2102 | DG61: 2103 | DH61: 2104 | DI61: 2105 | DJ61: 2106 | DK61: 2107 | DL61: 2108 | DM61: 2109 | DN61: 2110 | DO61: 2111 | DP61: 2112 | DQ61: 2113 | DR61: 2114 | DS61: 2115 | DT61: 2116 | DU61: 2117 | DV61: 2118 | DW61: 2119 | DX61: 2120 | DY61: 2121 | DZ61: 2122 | EA61: 2123 | EB61: 2124 | EC61: 2125 | ED61: 2126 | EE61: 2127 | EF61: 2128 | EG61: 2129 | EH61: 2130 | EI61: 2131 | EJ61: 2132 | EK61: 2133 | EL61: 2134 | EM61: 2135 | EN61: 2136 | EO61: 2137 | EP61: 2138 | EQ61: 2139 | ER61: 2140 | ES61: 2141 | ET61: 2142 | EU61: 2143 | EV61: 2144 | EW61: 2145 | EX61: 2146 | EY61: 2147 | EZ61: 2148 | FA61: 2149 | FB61: 2150 | FC61: 2151 | FD61: 2152 | FE61: 2153 | FF61: 2154 | FG61: 2155 | FH61: 2156 | FI61: 2157 | FJ61: 2158 | FK61: 2159 | FL61: 2160 | FM61: 2161 | FN61: 2162 | FO61: 2163 | FP61: 2164 | FQ61: 2165 | FR61: 2166 | FS61: 2167 | FT61: 2168 | FU61: 2169 | FV61: 2170 | FW61: 2171 | FX61: 2172 | FY61: 2173 | FZ61: 2174 | GA61: 2175 | GB61: 2176 | GC61: 2177 | GD61: 2178 | GE61: 2179 | GF61: 2180 | GG61: 2181 | GH61: 2182 | GI61: 2183 | GJ61: 2184 | GK61: 2185 | GL61: 2186 | GM61: 2187 | GN61: 2188 | GO61: 2189 | GP61: 2190 | GQ61: 2191 | GR61: 2192 | GS61: 2193 | GT61: 2194 | GU61: 2195 | GV61: 2196 | GW61: 2197 | GX61: 2198 | GY61: 2199 | GZ61: 2200 | HA61: 2201 | HB61: 2202 | HC61: 2203 | HD61: 2204 | HE61: 2205 | HF61: 2206 | HG61: 2207 | HH61: 2208 | HI61: 2209 | HJ61: 2210 | HK61: 2211 | HL61: 2212 | HM61: 2213 | HN61: 2214 | HO61: 2215 | HP61: 2216 | HQ61: 2217 | HR61: 2218 | HS61: 2219 | HT61: 2220 | HU61: 2221 | HV61: 2222 | HW61: 2223 | HX61: 2224 | HY61: 2225 | HZ61: 2226 | IA61: 2227 | IB61: 2228 | IC61: 2229 | ID61: 2230 | IE61: 2231 | IF61: 2232 | IG61: 2233 | IH61: 2234 | II61: 2235 | IJ61: 2236 | IK61: 2237 | IL61: 2238 | IM61: 2239 | IN61: 2240 | IO61: 2241 | IP61: 2242 | IQ61: 2243 | IR61: 2244 | IS61: 2245 | IT61: 2246 | IU61: 2247 | IV61: 2248 | IW61: 2249 | IX61: 2250 | IY61: 2251 | IZ61: 2252 | JA61: 2253 | JB61: 2254 | JC61: 2255 | JD61: 2256 | JE61: 2257 | JF61: 2258 | JG61: 2259 | JH61: 2260 | JI61: 2261 | JJ61: 2262 | JK61: 2263 | JL61: 2264 | JM61: 2265 | JN61: 2266 | JO61: 2267 | JP61: 2268 | JQ61: 2269 | JR61: 2270 | JS61: 2271 | JT61: 2272 | JU61: 2273 | JV61: 2274 | JW61: 2275 | JX61: 2276 | JY61: 2277 | JZ61: 2278 | KA61: 2279 | KB61: 2280 | KC61: 2281 | KD61: 2282 | KE61: 2283 | KF61: 2284 | KG61: 2285 | KH61: 2286 | KI61: 2287 | KJ61: 2288 | KK61: 2289 | KL61: 2290 | KM61: 2291 | KN61: 2292 | KO61: 2293 | KP61: 2294 | KQ61: 2295 | KR61: 2296 | KS61: 2297 | KT61: 2298 | KU61: 2299 | KV61: 2300
C62: GDP Deflator | H62: 57.18439172 | I62: 58.04831094 | J62: 59.2758654 | K62: 60.69063696 | L62: 62.26147471 | M62: 64.09273425 | N62: 65.88453595 | O62: 67.36430913 | P62: 69.69128386 | Q62: 70.99858471 | R62: 72.12521014 | S62: 73.7100658 | T62: 74.84624418 | U62: 76.42393513 | V62: 77.43166783 | W62: 77.94327 | X62: 79.47163863 | Y62: 80.94736219 | Z62: 82.50293598 | AA62: 84.26151001 | AB62: 88.63946221 | AC62: 88.51402778 | AD62: 93.32352425 | AE62: 100 | AF62: 103.8364451 | AG62: 107.1368715 | AH62: 108.9282937 | AI62: 111.0800152 | AJ62: 113.2729737 | AK62: 115.4151354 | AL62: 118.0696835 | AM62: 120.7852862 | AN62: 123.5633478 | AO62: 126.4053048 | AP62: 129.3126268 | AQ62: 132.2868173 | AR62: 135.329414 | AS62: 138.4419906 | AT62: 141.6261564 | AU62: 144.883558 | AV62: 148.2158798 | AW62: 151.624845 | AX62: 155.1122165 | AY62: 158.6797974 | AZ62: 162.3294328 | BA62: 166.0630097 | BB62: 169.882459 | BC62: 173.7897555 | BD62: 177.7869199 | BE62: 181.876019 | BF62: 186.0591675 | BG62: 190.3385283 | BH62: 194.7163145 | BI62: 199.1947897 | BJ62: 203.7762699 | BK62: 208.4631241 | BL62: 213.2577759 | BM62: 218.1627048 | BN62: 223.180447 | BO62: 228.3135973 | BP62: 233.56481 | BQ62: 238.9368006 | BR62: 244.4323471 | BS62: 250.054291 | BT62: 255.8055397 | BU62: 261.6890672 | BV62: 267.7079157 | BW62: 273.8651978 | BX62: 280.1640973 | BY62: 286.6078715 | BZ62: 293.1998526 | CA62: 299.9434492 | CB62: 306.8421485 | CC62: 313.8995179 | CD62: 321.1192069 | CE62: 328.5049486 | CF62: 336.0605624 | CG62: 343.7899554 | CH62: 351.6971243 | CI62: 359.7861582 | CJ62: 368.0612398 | CK62: 376.5266484 | CL62: 385.1867613 | CM62: 394.0460568 | CN62: 403.1091161 | CO62: 412.3806258 | CP62: 421.8653801 | CQ62: 431.5682839 | CR62: 441.4943544 | CS62: 451.6487246 | CT62: 462.0366452 | CU62: 472.6634881 | CV62: 483.5347483 | CW62: 494.6560475 | CX62: 506.0331366 | CY62: 517.6718988 | CZ62: 529.5783524 | DA62: 541.7586545 | DB62: 554.2191036 | DC62: 566.966143 | DD62: 580.0063643 | DE62: =DD62*($DD62/$DC62) -> 593.3465106 | DF62: =DE62*($DD62/$DC62) -> 606.9934804 | DG62: 620.9543304 | DH62: 635.23628 | DI62: 649.8467145 | DJ62: 664.7931889 | DK62: 680.0834322 | DL62: 695.7253512 | DM62: 711.7270343 | DN62: 728.096756 | DO62: 744.8429814 | DP62: 761.97437 | DQ62: 779.4997805 | DR62: 797.4282755 | DS62: 815.7691258 | DT62: 834.5318157 | DU62: 853.7260475 | DV62: 873.3617466 | DW62: 893.4490667 | DX62: 913.9983953 | DY62: 935.0203584 | DZ62: 956.5258266 | EA62: 978.5259206 | EB62: 1001.032017 | EC62: 1024.055753 | ED62: 1047.609035 | EE62: 1071.704043 | EF62: 1096.353236 | EG62: 1121.569361 | EH62: 1147.365456 | EI62: 1173.754862 | EJ62: 1200.751223 | EK62: 1228.368501 | EL62: 1256.620977 | EM62: 1285.523259 | EN62: 1315.090294 | EO62: 1345.337371 | EP62: 1376.280131 | EQ62: 1407.934574 | ER62: 1440.317069 | ES62: 1473.444362 | ET62: 1507.333582 | EU62: 1542.002254 | EV62: 1577.468306 | EW62: 1613.750077 | EX62: 1650.866329 | EY62: 1688.836254 | EZ62: 1727.679488 | FA62: 1767.416117 | FB62: 1808.066687 | FC62: 1849.652221 | FD62: 1892.194222 | FE62: 1935.714689 | FF62: 1980.236127 | FG62: 2025.781558 | FH62: 2072.374534 | FI62: 2120.039148 | FJ62: 2168.800049 | FK62: 2218.68245 | FL62: 2269.712146 | FM62: 2321.915525 | FN62: 2375.319582 | FO62: 2429.951933 | FP62: 2485.840827 | FQ62: 2543.015166 | FR62: =FQ62*($DD62/$DC62) -> 2601.504515 | FS62: 2661.339119 | FT62: 2722.549919 | FU62: 2785.168567 | FV62: 2849.227444 | FW62: 2914.759675 | FX62: 2981.799148 | FY62: 3050.380528 | FZ62: 3120.53928 | GA62: 3192.311684 | GB62: 3265.734852 | GC62: 3340.846754 | GD62: 3417.686229 | GE62: 3496.293013 | GF62: 3576.707752 | GG62: 3658.97203 | GH62: 3743.128387 | GI62: 3829.22034 | GJ62: 3917.292408 | GK62: 4007.390133 | GL62: 4099.560106 | GM62: 4193.849988 | GN62: 4290.308538 | GO62: 4388.985635 | GP62: 4489.932304 | GQ62: 4593.200747 | GR62: 4698.844364 | GS62: 4806.917785 | GT62: 4917.476894 | GU62: 5030.578862 | GV62: 5146.282176 | GW62: 5264.646666 | GX62: 5385.733539 | GY62: 5509.605411 | GZ62: 5636.326335 | HA62: 5765.961841 | HB62: 5898.578963 | HC62: 6034.24628 | HD62: 6173.033944 | HE62: 6315.013725 | HF62: 6460.25904 | HG62: 6608.844998 | HH62: 6760.848433 | HI62: 6916.347947 | HJ62: 7075.42395 | HK62: 7238.158701 | HL62: 7404.636351 | HM62: 7574.942987 | HN62: 7749.166676 | HO62: 7927.397509 | HP62: 8109.727652 | HQ62: 8296.251388 | HR62: 8487.06517 | HS62: 8682.267669 | HT62: 8881.959825 | HU62: 9086.244901 | HV62: 9295.228534 | HW62: 9509.01879 | HX62: 9727.726222 | HY62: 9951.463925 | HZ62: 10180.3476 | IA62: 10414.49559 | IB62: 10654.02899 | IC62: 10899.07166 | ID62: =IC62*($DD62/$DC62) -> 11149.7503 | IE62: 11406.19456 | IF62: 11668.53704 | IG62: 11936.91339 | IH62: 12211.4624 | II62: 12492.32603 | IJ62: 12779.64953 | IK62: 13073.58147 | IL62: 13374.27384 | IM62: 13681.88214 | IN62: 13996.56543 | IO62: 14318.48643 | IP62: 14647.81162 | IQ62: 14984.71129 | IR62: 15329.35965 | IS62: 15681.93492 | IT62: 16042.61942 | IU62: 16411.59967 | IV62: 16789.06646 | IW62: 17175.21499 | IX62: 17570.24494 | IY62: 17974.36057 | IZ62: 18387.77086 | JA62: 18810.68959 | JB62: 19243.33545 | JC62: 19685.93217 | JD62: 20138.70861 | JE62: 20601.89891 | JF62: 21075.74258 | JG62: 21560.48466 | JH62: 22056.37581 | JI62: 22563.67245 | JJ62: 23082.63692 | JK62: 23613.53757 | JL62: 24156.64893 | JM62: 24712.25186 | JN62: 25280.63365 | JO62: 25862.08823 | JP62: 26456.91625 | JQ62: 27065.42533 | JR62: 27687.93011 | JS62: 28324.7525 | JT62: 28976.22181 | JU62: 29642.67491 | JV62: 30324.45644 | JW62: 31021.91893 | JX62: 31735.42307 | JY62: 32465.3378 | JZ62: 33212.04057 | KA62: 33975.9175 | KB62: 34757.3636 | KC62: 35556.78297 | KD62: 36374.58898 | KE62: 37211.20452 | KF62: 38067.06223 | KG62: 38942.60466 | KH62: 39838.28456 | KI62: 40754.56511 | KJ62: 41691.92011 | KK62: 42650.83427 | KL62: 43631.80346 | KM62: 44635.33494 | KN62: 45661.94764 | KO62: 46712.17244 | KP62: =KO62*($DD62/$DC62) -> 47786.5524 | KQ62: 48885.64311 | KR62: 50010.0129 | KS62: 51160.2432 | KT62: 52336.92879 | KU62: 53540.67815 | KV62: 54772.11375
C63: GDP per capita growth (index) | H63: 124.4845426 | I63: 127.1971403 | J63: 128.9300112 | K63: 132.3899816 | L63: 134.934222 | M63: 137.559368 | N63: 139.876156 | O63: 142.3959674 | P63: 140.8821296 | Q63: 133.4300952 | R63: 135.3254154 | S63: 135.7292004 | T63: 136.8567572 | U63: 138.3906004 | V63: 141.7490909 | W63: 143.8568114 | X63: 145.4614407 | Y63: 148.5131977 | Z63: 149.8665023 | AA63: 151.5197775 | AB63: 135.6869808 | AC63: 146.7968935 | AD63: 152.4906586 | AE63: 151.5885131 | AF63: 151.4018935 | AG63: 151.8794965 | AH63: 154.1096239 | AI63: 156.284289 | AJ63: 158.3343169 | AK63: 160.4821836 | AL63: 162.651252 | AM63: 164.8922325 | AN63: 167.2593526 | AO63: 169.7175089 | AP63: 172.2071118 | AQ63: 174.7428521 | AR63: 177.5397568 | AS63: 180.3734927 | AT63: 183.2197007 | AU63: 186.1450498 | AV63: 189.0395127 | AW63: 191.9298861 | AX63: 194.8305687 | AY63: 197.7249668 | AZ63: 200.6079529 | BA63: 203.5365076 | BB63: 206.5318008 | BC63: 209.5627217 | BD63: 212.611244 | BE63: 215.6704062 | BF63: 218.7862374 | BG63: 221.9594454 | BH63: 225.1745403 | BI63: 228.4314217 | BJ63: 231.717786 | BK63: 235.033024 | BL63: 238.3777752 | BM63: 241.737322 | BN63: 245.1298566 | BO63: 248.524826 | BP63: 251.9992889 | BQ63: 255.479079 | BR63: 258.9522857 | BS63: 262.4420368 | BT63: 265.9866442 | BU63: 269.5949178 | BV63: 273.2727443 | BW63: 277.0687406 | BX63: 281.0730414 | BY63: 285.2715386 | BZ63: 289.6875334 | CA63: 294.2330619 | CB63: 298.8324175 | CC63: 303.4915953 | CD63: 307.3504998 | CE63: 311.2003697 | CF63: 314.9497544 | CG63: 318.8128238 | CH63: 322.7260742 | CI63: 326.6349191 | CJ63: 330.6371861 | CK63: 334.8471699 | CL63: 339.2540702 | CM63: 343.7682758 | CN63: 348.3246257 | CO63: 353.1017627 | CP63: 358.0731225 | CQ63: 363.1976964 | CR63: 368.4862972 | CS63: 374.0307068 | CT63: 379.5725527 | CU63: 385.424113 | CV63: 391.0483339 | CW63: 396.7094165 | CX63: 402.4347366 | CY63: 408.2289548 | CZ63: 414.0974873 | DA63: 420.0444237 | DB63: 426.0692052 | DC63: 432.1714012 | DD63: 438.3493338 | DE63: =DD63*($DD63/$DC63) -> 444.6155806 | DF63: =DE63*($DD63/$DC63) -> 450.971404 | DG63: 457.4180845 | DH63: 463.9569209 | DI63: 470.5892307 | DJ63: 477.31635 | DK63: 484.1396341 | DL63: 491.0604577 | DM63: 498.0802152 | DN63: 505.2003208 | DO63: 512.422209 | DP63: 519.7473348 | DQ63: 527.177174 | DR63: 534.7132234 | DS63: 542.3570015 | DT63: 550.1100481 | DU63: 557.9739253 | DV63: 565.9502173 | DW63: 574.0405313 | DX63: 582.246497 | DY63: 590.5697679 | DZ63: 599.0120207 | EA63: 607.5749564 | EB63: 616.2603001 | EC63: 625.0698016 | ED63: 634.0052358 | EE63: 643.0684029 | EF63: 652.2611289 | EG63: 661.5852658 | EH63: 671.0426921 | EI63: 680.6353133 | EJ63: 690.365062 | EK63: 700.2338984 | EL63: =EK63*($DD63/$DC63) -> 710.2438107 | EM63: 720.3968157 | EN63: 730.694959 | EO63: 741.1403152 | EP63: 751.7349888 | EQ63: 762.4811143 | ER63: 773.3808567 | ES63: 784.436412 | ET63: 795.6500075 | EU63: 807.0239025 | EV63: 818.5603885 | EW63: 830.2617896 | EX63: 842.1304635 | EY63: 854.1688012 | EZ63: 866.3792281 | FA63: 878.7642042 | FB63: 891.3262248 | FC63: 904.0678207 | FD63: 916.991559 | FE63: 930.1000434 | FF63: 943.3959149 | FG63: 956.8818522 | FH63: 970.5605722 | FI63: 984.4348309 | FJ63: 998.5074235 | FK63: 1012.781185 | FL63: 1027.258992 | FM63: 1041.94376 | FN63: 1056.838448 | FO63: 1071.946058 | FP63: 1087.269632 | FQ63: 1102.812258 | FR63: =FQ63*($DD63/$DC63) -> 1118.577068 | FS63: 1134.567237 | FT63: 1150.785987 | FU63: 1167.236585 | FV63: 1183.922347 | FW63: 1200.846633 | FX63: 1218.012854 | FY63: 1235.424467 | FZ63: 1253.084981 | GA63: 1270.997954 | GB63: 1289.166995 | GC63: 1307.595764 | GD63: 1326.287973 | GE63: 1345.24739 | GF63: 1364.477834 | GG63: 1383.983179 | GH63: 1403.767354 | GI63: 1423.834346 | GJ63: 1444.188198 | GK63: 1464.83301 | GL63: 1485.772942 | GM63: 1507.012212 | GN63: 1528.5551 | GO63: 1550.405945 | GP63: 1572.56915 | GQ63: 1595.049181 | GR63: 1617.850565 | GS63: 1640.977898 | GT63: 1664.435838 | GU63: 1688.229112 | GV63: 1712.362513 | GW63: 1736.840903 | GX63: =GW63*($DD63/$DC63) -> 1761.669215 | GY63: 1786.852449 | GZ63: 1812.39568 | HA63: 1838.304055 | HB63: 1864.582792 | HC63: 1891.237186 | HD63: 1918.272607 | HE63: 1945.694502 | HF63: 1973.508396 | HG63: 2001.719893 | HH63: 2030.334675 | HI63: 2059.358509 | HJ63: 2088.797241 | HK63: 2118.656803 | HL63: 2148.94321 | HM63: 2179.662564 | HN63: 2210.821054 | HO63: 2242.424958 | HP63: 2274.480643 | HQ63: 2306.994568 | HR63: 2339.973282 | HS63: 2373.423429 | HT63: 2407.35175 | HU63: 2441.76508 | HV63: 2476.670352 | HW63: 2512.074598 | HX63: 2547.984951 | HY63: 2584.408646 | HZ63: 2621.353021 | IA63: 2658.82552 | IB63: 2696.833692 | IC63: 2735.385195 | ID63: =IC63*($DD63/$DC63) -> 2774.487795 | IE63: 2814.14937 | IF63: 2854.377912 | IG63: 2895.181525 | IH63: 2936.568429 | II63: 2978.546963 | IJ63: 3021.125584 | IK63: 3064.312871 | IL63: 3108.117525 | IM63: 3152.54837 | IN63: 3197.614358 | IO63: 3243.32457 | IP63: 3289.688213 | IQ63: 3336.714629 | IR63: 3384.413293 | IS63: 3432.793813 | IT63: 3481.865938 | IU63: 3531.639553 | IV63: 3582.124687 | IW63: 3633.331512 | IX63: 3685.270343 | IY63: 3737.951644 | IZ63: 3791.38603 | JA63: 3845.584266 | JB63: 3900.55727 | JC63: 3956.31612 | JD63: 4012.872047 | JE63: 4070.236447 | JF63: 4128.420877 | JG63: 4187.437059 | JH63: 4247.296883 | JI63: 4308.012409 | JJ63: =JI63*($DD63/$DC63) -> 4369.595869 | JK63: 4432.059672 | JL63: 4495.4164 | JM63: 4559.678819 | JN63: 4624.859875 | JO63: 4690.972701 | JP63: 4758.030617 | JQ63: 4826.047132 | JR63: 4895.03595 | JS63: 4965.010969 | JT63: 5035.986289 | JU63: 5107.976207 | JV63: 5180.995229 | JW63: 5255.058065 | JX63: 5330.179636 | JY63: 5406.375077 | JZ63: 5483.65974 | KA63: 5562.049195 | KB63: 5641.559234 | KC63: 5722.205877 | KD63: 5804.005372 | KE63: 5886.974199 | KF63: 5971.129074 | KG63: 6056.48695 | KH63: 6143.065026 | KI63: 6230.880744 | KJ63: 6319.951796 | KK63: 6410.296128 | KL63: 6501.93194 | KM63: 6594.877696 | KN63: 6689.15212 | KO63: 6784.774207 | KP63: =KO63*($DD63/$DC63) -> 6881.763221 | KQ63: 6980.138702 | KR63: 7079.92047 | KS63: 7181.128629 | KT63: 7283.783568 | KU63: 7387.905969 | KV63: 7493.516811
C64: GDP per capita % change | I64: =(I63-H63)/H63 -> 0.02179063899 | J64: 0.0136235056 | K64: 0.0268360353 | L64: 0.01921777126 | M64: 0.01945500526 | N64: 0.01684209542 | O64: 0.01801458882 | P64: -0.01063118471 | Q64: -0.05289552603 | R64: 0.01420459284 | S64: 0.00298380731 | T64: 0.008307400368 | U64: 0.0112076542 | V64: 0.02426819847 | W64: 0.01486937549 | X64: 0.01115435032 | Y64: 0.02097983516 | Z64: 0.009112352306 | AA64: 0.0110316526 | AB64: -0.1044932678 | AC64: 0.08187898856 | AD64: 0.03878668645 | AE64: -0.005916070824 | AF64: -0.001231092896 | AG64: 0.003154537863 | AH64: 0.01468353116 | AI64: 0.01411115694 | AJ64: 0.01311730017 | AK64: 0.01356538972 | AL64: 0.01351594529 | AM64: 0.01377782487 | AN64: 0.01435555881 | AO64: =(AO63-AN63)/AN63 -> 0.01469667482 | AP64: 0.01466909846 | AQ64: 0.01472494525 | AR64: 0.01600583213 | AS64: 0.01596113432 | AT64: 0.01577952464 | AU64: 0.01596634586 | AV64: 0.01554950229 | AW64: 0.01528978428 | AX64: 0.01511324092 | AY64: 0.01485597529 | AZ64: 0.01458078928 | BA64: 0.01459839819 | BB64: 0.01471624517 | BC64: 0.0146753229 | BD64: 0.01454706399 | BE64: 0.01438852515 | BF64: 0.01444718951 | BG64: 0.01450369108 | BH64: 0.01448505539 | BI64: 0.01446380837 | BJ64: 0.01438665612 | BK64: 0.01430722298 | BL64: 0.01423098394 | BM64: 0.01409337257 | BN64: 0.01403397093 | BO64: 0.01384967712 | BP64: 0.01398034553 | BQ64: 0.01380872972 | BR64: 0.01359487714 | BS64: 0.01347642522 | BT64: 0.01350624859 | BU64: =(BU63-BT63)/BT63 -> 0.01356561959 | BV64: 0.01364204683 | BW64: 0.01389087072 | BX64: 0.01445237298 | BY64: 0.01493738838 | BZ64: 0.01547996991 | CA64: 0.01569114276 | CB64: 0.01563167493 | CC64: 0.01559127303 | CD64: 0.01271502933 | CE64: 0.01252599187 | CF64: 0.01204813721 | CG64: 0.01226566869 | CH64: 0.01227444486 | CI64: 0.01211195879 | CJ64: 0.01225302869 | CK64: 0.01273294082 | CL64: 0.01316093058 | CM64: 0.01330626794 | CN64: 0.01325413159 | CO64: 0.01371461158 | CP64: 0.01407911357 | CQ64: 0.01431152911 | CR64: 0.01456121774 | CS64: 0.0150464473 | CT64: 0.01481655337 | CU64: 0.01541618382 | CV64: 0.01459229121 | CW64: 0.01447668271 | CX64: 0.01443202459 | CY64: 0.01439790774 | CZ64: 0.01437559106 | DA64: =(DA63-CZ63)/CZ63 -> 0.0143611988 | DB64: 0.0143432009 | DC64: 0.01432207702 | DD64: 0.01429509822 | DE64: 0.01429509822 | DF64: =(DF63-DE63)/DE63 -> 0.01429509822 | DG64: =(DG63-DF63)/DF63 -> 0.01429509822 | DH64: =(DH63-DG63)/DG63 -> 0.01429509822 | DI64: =(DI63-DH63)/DH63 -> 0.01429509822 | DJ64: =(DJ63-DI63)/DI63 -> 0.01429509822 | DK64: =(DK63-DJ63)/DJ63 -> 0.01429509822 | DL64: =(DL63-DK63)/DK63 -> 0.01429509822 | DM64: =(DM63-DL63)/DL63 -> 0.01429509822 | DN64: =(DN63-DM63)/DM63 -> 0.01429509822 | DO64: =(DO63-DN63)/DN63 -> 0.01429509822 | DP64: =(DP63-DO63)/DO63 -> 0.01429509822 | DQ64: =(DQ63-DP63)/DP63 -> 0.01429509822 | DR64: =(DR63-DQ63)/DQ63 -> 0.01429509822 | DS64: =(DS63-DR63)/DR63 -> 0.01429509822 | DT64: =(DT63-DS63)/DS63 -> 0.01429509822 | DU64: =(DU63-DT63)/DT63 -> 0.01429509822 | DV64: =(DV63-DU63)/DU63 -> 0.01429509822 | DW64: =(DW63-DV63)/DV63 -> 0.01429509822 | DX64: =(DX63-DW63)/DW63 -> 0.01429509822 | DY64: =(DY63-DX63)/DX63 -> 0.01429509822 | DZ64: =(DZ63-DY63)/DY63 -> 0.01429509822 | EA64: =(EA63-DZ63)/DZ63 -> 0.01429509822 | EB64: =(EB63-EA63)/EA63 -> 0.01429509822 | EC64: =(EC63-EB63)/EB63 -> 0.01429509822 | ED64: =(ED63-EC63)/EC63 -> 0.01429509822 | EE64: =(EE63-ED63)/ED63 -> 0.01429509822 | EF64: =(EF63-EE63)/EE63 -> 0.01429509822 | EG64: =(EG63-EF63)/EF63 -> 0.01429509822 | EH64: =(EH63-EG63)/EG63 -> 0.01429509822 | EI64: =(EI63-EH63)/EH63 -> 0.01429509822 | EJ64: =(EJ63-EI63)/EI63 -> 0.01429509822 | EK64: =(EK63-EJ63)/EJ63 -> 0.01429509822 | EL64: =(EL63-EK63)/EK63 -> 0.01429509822 | EM64: =(EM63-EL63)/EL63 -> 0.01429509822 | EN64: =(EN63-EM63)/EM63 -> 0.01429509822 | EO64: =(EO63-EN63)/EN63 -> 0.01429509822 | EP64: =(EP63-EO63)/EO63 -> 0.01429509822 | EQ64: =(EQ63-EP63)/EP63 -> 0.01429509822 | ER64: =(ER63-EQ63)/EQ63 -> 0.01429509822 | ES64: =(ES63-ER63)/ER63 -> 0.01429509822 | ET64: =(ET63-ES63)/ES63 -> 0.01429509822 | EU64: =(EU63-ET63)/ET63 -> 0.01429509822 | EV64: =(EV63-EU63)/EU63 -> 0.01429509822 | EW64: =(EW63-EV63)/EV63 -> 0.01429509822 | EX64: =(EX63-EW63)/EW63 -> 0.01429509822 | EY64: =(EY63-EX63)/EX63 -> 0.01429509822 | EZ64: =(EZ63-EY63)/EY63 -> 0.01429509822 | FA64: =(FA63-EZ63)/EZ63 -> 0.01429509822 | FB64: =(FB63-FA63)/FA63 -> 0.01429509822 | FC64: =(FC63-FB63)/FB63 -> 0.01429509822 | FD64: =(FD63-FC63)/FC63 -> 0.01429509822 | FE64: =(FE63-FD63)/FD63 -> 0.01429509822 | FF64: =(FF63-FE63)/FE63 -> 0.01429509822 | FG64: =(FG63-FF63)/FF63 -> 0.01429509822 | FH64: =(FH63-FG63)/FG63 -> 0.01429509822 | FI64: =(FI63-FH63)/FH63 -> 0.01429509822 | FJ64: =(FJ63-FI63)/FI63 -> 0.01429509822 | FK64: =(FK63-FJ63)/FJ63 -> 0.01429509822 | FL64: =(FL63-FK63)/FK63 -> 0.01429509822 | FM64: =(FM63-FL63)/FL63 -> 0.01429509822 | FN64: =(FN63-FM63)/FM63 -> 0.01429509822 | FO64: =(FO63-FN63)/FN63 -> 0.01429509822 | FP64: =(FP63-FO63)/FO63 -> 0.01429509822 | FQ64: =(FQ63-FP63)/FP63 -> 0.01429509822 | FR64: =(FR63-FQ63)/FQ63 -> 0.01429509822 | FS64: =(FS63-FR63)/FR63 -> 0.01429509822 | FT64: =(FT63-FS63)/FS63 -> 0.01429509822 | FU64: =(FU63-FT63)/FT63 -> 0.01429509822 | FV64: =(FV63-FU63)/FU63 -> 0.01429509822 | FW64: =(FW63-FV63)/FV63 -> 0.01429509822 | FX64: =(FX63-FW63)/FW63 -> 0.01429509822 | FY64: =(FY63-FX63)/FX63 -> 0.01429509822 | FZ64: =(FZ63-FY63)/FY63 -> 0.01429509822 | GA64: =(GA63-FZ63)/FZ63 -> 0.01429509822 | GB64: =(GB63-GA63)/GA63 -> 0.01429509822 | GC64: =(GC63-GB63)/GB63 -> 0.01429509822 | GD64: =(GD63-GC63)/GC63 -> 0.01429509822 | GE64: =(GE63-GD63)/GD63 -> 0.01429509822 | GF64: =(GF63-GE63)/GE63 -> 0.01429509822 | GG64: =(GG63-GF63)/GF63 -> 0.01429509822 | GH64: =(GH63-GG63)/GG63 -> 0.01429509822 | GI64: =(GI63-GH63)/GH63 -> 0.01429509822 | GJ64: =(GJ63-GI63)/GI63 -> 0.01429509822 | GK64: =(GK63-GJ63)/GJ63 -> 0.01429509822 | GL64: =(GL63-GK63)/GK63 -> 0.01429509822 | GM64: =(GM63-GL63)/GL63 -> 0.01429509822 | GN64: =(GN63-GM63)/GM63 -> 0.01429509822 | GO64: =(GO63-GN63)/GN63 -> 0.01429509822 | GP64: =(GP63-GO63)/GO63 -> 0.01429509822 | GQ64: =(GQ63-GP63)/GP63 -> 0.01429509822 | GR64: =(GR63-GQ63)/GQ63 -> 0.01429509822 | GS64: =(GS63-GR63)/GR63 -> 0.01429509822 | GT64: =(GT63-GS63)/GS63 -> 0.01429509822 | GU64: =(GU63-GT63)/GT63 -> 0.01429509822 | GV64: =(GV63-GU63)/GU63 -> 0.01429509822 | GW64: =(GW63-GV63)/GV63 -> 0.01429509822 | GX64: =(GX63-GW63)/GW63 -> 0.01429509822 | GY64: =(GY63-GX63)/GX63 -> 0.01429509822 | GZ64: =(GZ63-GY63)/GY63 -> 0.01429509822 | HA64: =(HA63-GZ63)/GZ63 -> 0.01429509822 | HB64: =(HB63-HA63)/HA63 -> 0.01429509822 | HC64: =(HC63-HB63)/HB63 -> 0.01429509822 | HD64: =(HD63-HC63)/HC63 -> 0.01429509822 | HE64: =(HE63-HD63)/HD63 -> 0.01429509822 | HF64: =(HF63-HE63)/HE63 -> 0.01429509822 | HG64: =(HG63-HF63)/HF63 -> 0.01429509822 | HH64: =(HH63-HG63)/HG63 -> 0.01429509822 | HI64: =(HI63-HH63)/HH63 -> 0.01429509822 | HJ64: =(HJ63-HI63)/HI63 -> 0.01429509822 | HK64: =(HK63-HJ63)/HJ63 -> 0.01429509822 | HL64: =(HL63-HK63)/HK63 -> 0.01429509822 | HM64: =(HM63-HL63)/HL63 -> 0.01429509822 | HN64: =(HN63-HM63)/HM63 -> 0.01429509822 | HO64: =(HO63-HN63)/HN63 -> 0.01429509822 | HP64: =(HP63-HO63)/HO63 -> 0.01429509822 | HQ64: =(HQ63-HP63)/HP63 -> 0.01429509822 | HR64: =(HR63-HQ63)/HQ63 -> 0.01429509822 | HS64: =(HS63-HR63)/HR63 -> 0.01429509822 | HT64: =(HT63-HS63)/HS63 -> 0.01429509822 | HU64: =(HU63-HT63)/HT63 -> 0.01429509822 | HV64: =(HV63-HU63)/HU63 -> 0.01429509822 | HW64: =(HW63-HV63)/HV63 -> 0.01429509822 | HX64: =(HX63-HW63)/HW63 -> 0.01429509822 | HY64: =(HY63-HX63)/HX63 -> 0.01429509822 | HZ64: =(HZ63-HY63)/HY63 -> 0.01429509822 | IA64: =(IA63-HZ63)/HZ63 -> 0.01429509822 | IB64: =(IB63-IA63)/IA63 -> 0.01429509822 | IC64: =(IC63-IB63)/IB63 -> 0.01429509822 | ID64: =(ID63-IC63)/IC63 -> 0.01429509822 | IE64: =(IE63-ID63)/ID63 -> 0.01429509822 | IF64: =(IF63-IE63)/IE63 -> 0.01429509822 | IG64: =(IG63-IF63)/IF63 -> 0.01429509822 | IH64: =(IH63-IG63)/IG63 -> 0.01429509822 | II64: =(II63-IH63)/IH63 -> 0.01429509822 | IJ64: =(IJ63-II63)/II63 -> 0.01429509822 | IK64: =(IK63-IJ63)/IJ63 -> 0.01429509822 | IL64: =(IL63-IK63)/IK63 -> 0.01429509822 | IM64: =(IM63-IL63)/IL63 -> 0.01429509822 | IN64: =(IN63-IM63)/IM63 -> 0.01429509822 | IO64: =(IO63-IN63)/IN63 -> 0.01429509822 | IP64: =(IP63-IO63)/IO63 -> 0.01429509822 | IQ64: =(IQ63-IP63)/IP63 -> 0.01429509822 | IR64: =(IR63-IQ63)/IQ63 -> 0.01429509822 | IS64: =(IS63-IR63)/IR63 -> 0.01429509822 | IT64: =(IT63-IS63)/IS63 -> 0.01429509822 | IU64: =(IU63-IT63)/IT63 -> 0.01429509822 | IV64: =(IV63-IU63)/IU63 -> 0.01429509822 | IW64: =(IW63-IV63)/IV63 -> 0.01429509822 | IX64: =(IX63-IW63)/IW63 -> 0.01429509822 | IY64: =(IY63-IX63)/IX63 -> 0.01429509822 | IZ64: =(IZ63-IY63)/IY63 -> 0.01429509822 | JA64: =(JA63-IZ63)/IZ63 -> 0.01429509822 | JB64: =(JB63-JA63)/JA63 -> 0.01429509822 | JC64: =(JC63-JB63)/JB63 -> 0.01429509822 | JD64: =(JD63-JC63)/JC63 -> 0.01429509822 | JE64: =(JE63-JD63)/JD63 -> 0.01429509822 | JF64: =(JF63-JE63)/JE63 -> 0.01429509822 | JG64: =(JG63-JF63)/JF63 -> 0.01429509822 | JH64: =(JH63-JG63)/JG63 -> 0.01429509822 | JI64: =(JI63-JH63)/JH63 -> 0.01429509822 | JJ64: =(JJ63-JI63)/JI63 -> 0.01429509822 | JK64: =(JK63-JJ63)/JJ63 -> 0.01429509822 | JL64: =(JL63-JK63)/JK63 -> 0.01429509822 | JM64: =(JM63-JL63)/JL63 -> 0.01429509822 | JN64: =(JN63-JM63)/JM63 -> 0.01429509822 | JO64: =(JO63-JN63)/JN63 -> 0.01429509822 | JP64: =(JP63-JO63)/JO63 -> 0.01429509822 | JQ64: =(JQ63-JP63)/JP63 -> 0.01429509822 | JR64: =(JR63-JQ63)/JQ63 -> 0.01429509822 | JS64: =(JS63-JR63)/JR63 -> 0.01429509822 | JT64: =(JT63-JS63)/JS63 -> 0.01429509822 | JU64: =(JU63-JT63)/JT63 -> 0.01429509822 | JV64: =(JV63-JU63)/JU63 -> 0.01429509822 | JW64: =(JW63-JV63)/JV63 -> 0.01429509822 | JX64: =(JX63-JW63)/JW63 -> 0.01429509822 | JY64: =(JY63-JX63)/JX63 -> 0.01429509822 | JZ64: =(JZ63-JY63)/JY63 -> 0.01429509822 | KA64: =(KA63-JZ63)/JZ63 -> 0.01429509822 | KB64: =(KB63-KA63)/KA63 -> 0.01429509822 | KC64: =(KC63-KB63)/KB63 -> 0.01429509822 | KD64: =(KD63-KC63)/KC63 -> 0.01429509822 | KE64: =(KE63-KD63)/KD63 -> 0.01429509822 | KF64: =(KF63-KE63)/KE63 -> 0.01429509822 | KG64: =(KG63-KF63)/KF63 -> 0.01429509822 | KH64: =(KH63-KG63)/KG63 -> 0.01429509822 | KI64: =(KI63-KH63)/KH63 -> 0.01429509822 | KJ64: =(KJ63-KI63)/KI63 -> 0.01429509822 | KK64: =(KK63-KJ63)/KJ63 -> 0.01429509822 | KL64: =(KL63-KK63)/KK63 -> 0.01429509822 | KM64: =(KM63-KL63)/KL63 -> 0.01429509822 | KN64: =(KN63-KM63)/KM63 -> 0.01429509822 | KO64: =(KO63-KN63)/KN63 -> 0.01429509822 | KP64: =(KP63-KO63)/KO63 -> 0.01429509822 | KQ64: =(KQ63-KP63)/KP63 -> 0.01429509822 | KR64: =(KR63-KQ63)/KQ63 -> 0.01429509822 | KS64: =(KS63-KR63)/KR63 -> 0.01429509822 | KT64: =(KT63-KS63)/KS63 -> 0.01429509822 | KU64: =(KU63-KT63)/KT63 -> 0.01429509822 | KV64: =(KV63-KU63)/KU63 -> 0.01429509822
C65: Population growth (index) | H65: 102.8802795 | I65: 103.276698 | J65: 103.7181917 | K65: 104.1916576 | L65: 104.7397248 | M65: 105.5484604 | N65: 106.271413 | O65: 107.1309893 | P65: 108.0127539 | Q65: 108.7757152 | R65: 109.6475213 | S65: 110.5658004 | T65: 111.3095436 | U65: 112.0571304 | V65: 112.8971391 | W65: 113.7158332 | X65: 114.6225813 | Y65: 115.2496178 | Z65: 115.8137585 | AA65: 116.4109194 | AB65: 116.6090413 | AC65: 117.0272985 | AD65: 118.1092815 | AE65: 119.2665648 | AF65: 120.5301172 | AG65: 121.3184757 | AH65: 121.7887984 | AI65: 122.244244 | AJ65: 122.7400373 | AK65: 123.2780443 | AL65: 123.8916359 | AM65: 124.4897552 | AN65: 125.072936 | AO65: 125.6412906 | AP65: 126.1953443 | AQ65: 126.7361528 | AR65: 127.2668952 | AS65: 127.7909804 | AT65: 128.3098114 | AU65: 128.8243524 | AV65: 129.3351543 | AW65: 129.841502 | AX65: 130.3425334 | AY65: 130.8381705 | AZ65: 131.3281319 | BA65: 131.8099157 | BB65: 132.2806571 | BC65: 132.7395269 | BD65: 133.1857769 | BE65: 133.6185364 | BF65: 134.0375357 | BG65: 134.4430721 | BH65: 134.8355689 | BI65: 135.2155892 | BJ65: 135.5842356 | BK65: 135.9432634 | BL65: 136.2945022 | BM65: 136.6399928 | BN65: 136.9811414 | BO65: 137.3196672 | BP65: 137.6572962 | BQ65: 137.9950739 | BR65: 138.3339453 | BS65: 138.6743924 | BT65: 139.0168714 | BU65: 139.3618988 | BV65: 139.7090584 | BW65: 140.0576814 | BX65: 140.4069627 | BY65: 140.7558241 | BZ65: 141.103179 | CA65: 141.4476656 | CB65: 141.7877966 | CC65: 142.1221912 | CD65: 142.4494639 | CE65: 142.7684933 | CF65: 143.0781703 | CG65: 143.3777793 | CH65: 143.6667556 | CI65: 143.9448416 | CJ65: 144.2119699 | CK65: 144.4685346 | CL65: 144.714831 | CM65: 144.9514759 | CN65: 145.1792781 | CO65: 145.3991048 | CP65: 145.6118181 | CQ65: 145.8184669 | CR65: 146.0200308 | CS65: 146.2174723 | CT65: 146.4116948 | CU65: 146.6035106 | CV65: 146.7936555 | CW65: 146.9827102 | CX65: 147.1710963 | CY65: 147.3590971 | CZ65: 147.5468664 | DA65: 147.7344594 | DB65: 147.921947 | DC65: 148.1092791 | DD65: 148.2964799 | DE65: =DD65*($DD65/$DC65) -> 148.4839174 | DF65: 148.6715917 | DG65: 148.8595032 | DH65: 149.0476523 | DI65: 149.2360391 | DJ65: 149.4246641 | DK65: 149.6135275 | DL65: 149.8026296 | DM65: 149.9919707 | DN65: 150.1815511 | DO65: 150.3713711 | DP65: 150.5614311 | DQ65: 150.7517313 | DR65: 150.942272 | DS65: 151.1330535 | DT65: 151.3240762 | DU65: 151.5153403 | DV65: 151.7068462 | DW65: 151.8985941 | DX65: 152.0905843 | DY65: 152.2828173 | DZ65: 152.4752932 | EA65: 152.6680124 | EB65: 152.8609751 | EC65: 153.0541818 | ED65: 153.2476326 | EE65: 153.441328 | EF65: 153.6352682 | EG65: 153.8294535 | EH65: 154.0238843 | EI65: 154.2185608 | EJ65: 154.4134833 | EK65: 154.6086522 | EL65: 154.8040679 | EM65: 154.9997305 | EN65: 155.1956404 | EO65: 155.3917979 | EP65: 155.5882034 | EQ65: 155.7848571 | ER65: 155.9817593 | ES65: 156.1789105 | ET65: 156.3763108 | EU65: 156.5739606 | EV65: 156.7718602 | EW65: 156.97001 | EX65: 157.1684102 | EY65: 157.3670612 | EZ65: 157.5659633 | FA65: 157.7651167 | FB65: 157.9645219 | FC65: 158.1641791 | FD65: 158.3640887 | FE65: 158.564251 | FF65: 158.7646662 | FG65: 158.9653348 | FH65: 159.1662569 | FI65: 159.3674331 | FJ65: 159.5688635 | FK65: 159.7705485 | FL65: 159.9724884 | FM65: 160.1746836 | FN65: 160.3771343 | FO65: 160.5798409 | FP65: 160.7828037 | FQ65: =FP65*($DD65/$DC65) -> 160.9860231 | FR65: 161.1894993 | FS65: 161.3932327 | FT65: 161.5972236 | FU65: 161.8014723 | FV65: 162.0059792 | FW65: 162.2107446 | FX65: 162.4157687 | FY65: 162.6210521 | FZ65: 162.8265948 | GA65: 163.0323974 | GB65: 163.2384601 | GC65: 163.4447832 | GD65: 163.6513672 | GE65: 163.8582122 | GF65: 164.0653187 | GG65: 164.2726869 | GH65: 164.4803173 | GI65: 164.68821 | GJ65: 164.8963656 | GK65: 165.1047842 | GL65: 165.3134663 | GM65: 165.5224121 | GN65: 165.731622 | GO65: 165.9410964 | GP65: 166.1508355 | GQ65: 166.3608397 | GR65: 166.5711093 | GS65: 166.7816447 | GT65: 166.9924462 | GU65: 167.2035142 | GV65: 167.4148489 | GW65: 167.6264507 | GX65: 167.83832 | GY65: 168.0504571 | GZ65: 168.2628623 | HA65: 168.475536 | HB65: 168.6884785 | HC65: 168.9016901 | HD65: 169.1151712 | HE65: 169.3289222 | HF65: 169.5429433 | HG65: 169.7572349 | HH65: 169.9717973 | HI65: 170.186631 | HJ65: 170.4017362 | HK65: 170.6171133 | HL65: 170.8327626 | HM65: 171.0486844 | HN65: 171.2648792 | HO65: 171.4813473 | HP65: 171.6980889 | HQ65: 171.9151045 | HR65: 172.1323944 | HS65: 172.3499589 | HT65: 172.5677984 | HU65: 172.7859132 | HV65: 173.0043038 | HW65: 173.2229703 | HX65: 173.4419132 | HY65: 173.6611329 | HZ65: 173.8806297 | IA65: 174.1004038 | IB65: 174.3204558 | IC65: =IB65*($DD65/$DC65) -> 174.5407859 | ID65: 174.7613945 | IE65: 174.9822819 | IF65: 175.2034485 | IG65: 175.4248946 | IH65: 175.6466207 | II65: 175.8686269 | IJ65: 176.0909138 | IK65: 176.3134817 | IL65: 176.5363308 | IM65: 176.7594616 | IN65: 176.9828745 | IO65: 177.2065697 | IP65: 177.4305476 | IQ65: 177.6548087 | IR65: 177.8793532 | IS65: 178.1041815 | IT65: 178.329294 | IU65: 178.554691 | IV65: 178.7803729 | IW65: 179.0063401 | IX65: 179.2325928 | IY65: 179.4591315 | IZ65: 179.6859566 | JA65: 179.9130683 | JB65: 180.1404671 | JC65: 180.3681534 | JD65: 180.5961274 | JE65: 180.8243895 | JF65: 181.0529402 | JG65: 181.2817797 | JH65: 181.5109084 | JI65: 181.7403268 | JJ65: 181.9700352 | JK65: 182.2000338 | JL65: 182.4303232 | JM65: 182.6609037 | JN65: 182.8917756 | JO65: 183.1229393 | JP65: 183.3543951 | JQ65: 183.5861436 | JR65: 183.8181849 | JS65: =JR65*($DD65/$DC65) -> 184.0505195 | JT65: =JS65*($DD65/$DC65) -> 184.2831478 | JU65: =JT65*($DD65/$DC65) -> 184.5160701 | JV65: =JU65*($DD65/$DC65) -> 184.7492868 | JW65: =JV65*($DD65/$DC65) -> 184.9827983 | JX65: =JW65*($DD65/$DC65) -> 185.2166049 | JY65: =JX65*($DD65/$DC65) -> 185.4507071 | JZ65: =JY65*($DD65/$DC65) -> 185.6851051 | KA65: =JZ65*($DD65/$DC65) -> 185.9197994 | KB65: =KA65*($DD65/$DC65) -> 186.1547903 | KC65: =KB65*($DD65/$DC65) -> 186.3900783 | KD65: =KC65*($DD65/$DC65) -> 186.6256636 | KE65: =KD65*($DD65/$DC65) -> 186.8615467 | KF65: =KE65*($DD65/$DC65) -> 187.0977279 | KG65: =KF65*($DD65/$DC65) -> 187.3342077 | KH65: =KG65*($DD65/$DC65) -> 187.5709864 | KI65: =KH65*($DD65/$DC65) -> 187.8080643 | KJ65: =KI65*($DD65/$DC65) -> 188.0454419 | KK65: =KJ65*($DD65/$DC65) -> 188.2831195 | KL65: =KK65*($DD65/$DC65) -> 188.5210975 | KM65: =KL65*($DD65/$DC65) -> 188.7593763 | KN65: =KM65*($DD65/$DC65) -> 188.9979563 | KO65: =KN65*($DD65/$DC65) -> 189.2368378 | KP65: =KO65*($DD65/$DC65) -> 189.4760213 | KQ65: =KP65*($DD65/$DC65) -> 189.715507 | KR65: =KQ65*($DD65/$DC65) -> 189.9552955 | KS65: =KR65*($DD65/$DC65) -> 190.1953871 | KT65: =KS65*($DD65/$DC65) -> 190.4357821 | KU65: =KT65*($DD65/$DC65) -> 190.6764809 | KV65: =KU65*($DD65/$DC65) -> 190.917484
C68: Key assumptions
C69: Sources: Temple, eftec and TRL (2019); Simetrica (2019)
C70: Link to Temple, eftec and TRL (2019)
C71: Link to Simetrica (2019)
H72: Landscape values
H73: Central | I73: Low sensitivity | J73: High sensitivity
C74: Appraisal period | H74: 100 yrs | I74: 60 yrs | J74: 250 yrs
C75: Income elasticity of willingness-to-pay for landscape | H75: 1 | I75: 0.8 | J75: 1.2
C76: Long-term income growth rate (pa) | H76: =$JR$63/$JQ$63-1 -> 0.01429509822 | I76: =$JR$63/$JQ$63-1 -> 0.01429509822 | J76: 0.01429509822 | K76: =C59 -> Source: TAG Data Book v2.01 (May 2025)
C77: Long term population growth rate (pa) | H77: =$JR$65/$JQ$65-1 -> 0.001263937101 | I77: =$JR$65/$JQ$65-1 -> 0.001263937101 | J77: 0.001263937101 | K77: =C59 -> Source: TAG Data Book v2.01 (May 2025)
C80: Combined growth factors
H82: Year
H83: 2000 | I83: 2001 | J83: 2002 | K83: 2003 | L83: 2004 | M83: 2005 | N83: 2006 | O83: 2007 | P83: 2008 | Q83: 2009 | R83: 2010 | S83: 2011 | T83: 2012 | U83: 2013 | V83: 2014 | W83: 2015 | X83: 2016 | Y83: 2017 | Z83: 2018 | AA83: 2019 | AB83: 2020 | AC83: 2021 | AD83: 2022 | AE83: 2023 | AF83: 2024 | AG83: 2025 | AH83: 2026 | AI83: 2027 | AJ83: 2028 | AK83: 2029 | AL83: 2030 | AM83: 2031 | AN83: 2032 | AO83: 2033 | AP83: 2034 | AQ83: 2035 | AR83: 2036 | AS83: 2037 | AT83: 2038 | AU83: 2039 | AV83: 2040 | AW83: 2041 | AX83: 2042 | AY83: 2043 | AZ83: 2044 | BA83: 2045 | BB83: 2046 | BC83: 2047 | BD83: 2048 | BE83: 2049 | BF83: 2050 | BG83: 2051 | BH83: 2052 | BI83: 2053 | BJ83: 2054 | BK83: 2055 | BL83: 2056 | BM83: 2057 | BN83: 2058 | BO83: 2059 | BP83: 2060 | BQ83: 2061 | BR83: 2062 | BS83: 2063 | BT83: 2064 | BU83: 2065 | BV83: 2066 | BW83: 2067 | BX83: 2068 | BY83: 2069 | BZ83: 2070 | CA83: 2071 | CB83: 2072 | CC83: 2073 | CD83: 2074 | CE83: 2075 | CF83: 2076 | CG83: 2077 | CH83: 2078 | CI83: 2079 | CJ83: 2080 | CK83: 2081 | CL83: 2082 | CM83: 2083 | CN83: 2084 | CO83: 2085 | CP83: 2086 | CQ83: 2087 | CR83: 2088 | CS83: 2089 | CT83: 2090 | CU83: 2091 | CV83: 2092 | CW83: 2093 | CX83: 2094 | CY83: 2095 | CZ83: 2096 | DA83: 2097 | DB83: 2098 | DC83: 2099 | DD83: 2100 | DE83: 2101 | DF83: 2102 | DG83: 2103 | DH83: 2104 | DI83: 2105 | DJ83: 2106 | DK83: 2107 | DL83: 2108 | DM83: 2109 | DN83: 2110 | DO83: 2111 | DP83: 2112 | DQ83: 2113 | DR83: 2114 | DS83: 2115 | DT83: 2116 | DU83: 2117 | DV83: 2118 | DW83: 2119 | DX83: 2120 | DY83: 2121 | DZ83: 2122 | EA83: 2123 | EB83: 2124 | EC83: 2125 | ED83: 2126 | EE83: 2127 | EF83: 2128 | EG83: 2129 | EH83: 2130 | EI83: 2131 | EJ83: 2132 | EK83: 2133 | EL83: 2134 | EM83: 2135 | EN83: 2136 | EO83: 2137 | EP83: 2138 | EQ83: 2139 | ER83: 2140 | ES83: 2141 | ET83: 2142 | EU83: 2143 | EV83: 2144 | EW83: 2145 | EX83: 2146 | EY83: 2147 | EZ83: 2148 | FA83: 2149 | FB83: 2150 | FC83: 2151 | FD83: 2152 | FE83: 2153 | FF83: 2154 | FG83: 2155 | FH83: 2156 | FI83: 2157 | FJ83: 2158 | FK83: 2159 | FL83: 2160 | FM83: 2161 | FN83: 2162 | FO83: 2163 | FP83: 2164 | FQ83: 2165 | FR83: 2166 | FS83: 2167 | FT83: 2168 | FU83: 2169 | FV83: 2170 | FW83: 2171 | FX83: 2172 | FY83: 2173 | FZ83: 2174 | GA83: 2175 | GB83: 2176 | GC83: 2177 | GD83: 2178 | GE83: 2179 | GF83: 2180 | GG83: 2181 | GH83: 2182 | GI83: 2183 | GJ83: 2184 | GK83: 2185 | GL83: 2186 | GM83: 2187 | GN83: 2188 | GO83: 2189 | GP83: 2190 | GQ83: 2191 | GR83: 2192 | GS83: 2193 | GT83: 2194 | GU83: 2195 | GV83: 2196 | GW83: 2197 | GX83: 2198 | GY83: 2199 | GZ83: 2200 | HA83: 2201 | HB83: 2202 | HC83: 2203 | HD83: 2204 | HE83: 2205 | HF83: 2206 | HG83: 2207 | HH83: 2208 | HI83: 2209 | HJ83: 2210 | HK83: 2211 | HL83: 2212 | HM83: 2213 | HN83: 2214 | HO83: 2215 | HP83: 2216 | HQ83: 2217 | HR83: 2218 | HS83: 2219 | HT83: 2220 | HU83: 2221 | HV83: 2222 | HW83: 2223 | HX83: 2224 | HY83: 2225 | HZ83: 2226 | IA83: 2227 | IB83: 2228 | IC83: 2229 | ID83: 2230 | IE83: 2231 | IF83: 2232 | IG83: 2233 | IH83: 2234 | II83: 2235 | IJ83: 2236 | IK83: 2237 | IL83: 2238 | IM83: 2239 | IN83: 2240 | IO83: 2241 | IP83: 2242 | IQ83: 2243 | IR83: 2244 | IS83: 2245 | IT83: 2246 | IU83: 2247 | IV83: 2248 | IW83: 2249 | IX83: 2250 | IY83: 2251 | IZ83: 2252 | JA83: 2253 | JB83: 2254 | JC83: 2255 | JD83: 2256 | JE83: 2257 | JF83: 2258 | JG83: 2259 | JH83: 2260 | JI83: 2261 | JJ83: 2262 | JK83: 2263 | JL83: 2264 | JM83: 2265 | JN83: 2266 | JO83: 2267 | JP83: 2268 | JQ83: 2269 | JR83: 2270 | JS83: 2271 | JT83: 2272 | JU83: 2273 | JV83: 2274 | JW83: 2275 | JX83: 2276 | JY83: 2277 | JZ83: 2278 | KA83: 2279 | KB83: 2280 | KC83: 2281 | KD83: 2282 | KE83: 2283 | KF83: 2284 | KG83: 2285 | KH83: 2286 | KI83: 2287 | KJ83: 2288 | KK83: 2289 | KL83: 2290 | KM83: 2291 | KN83: 2292 | KO83: 2293 | KP83: 2294 | KQ83: 2295 | KR83: 2296 | KS83: 2297 | KT83: 2298 | KU83: 2299 | KV83: 2300
C84: Central values | H84: =(H$63/$H$63)^$H$75*(H$65/$H$65) -> 1 | I84: 1.025727804 | J84: 1.044146396 | K84: 1.077061508 | L84: 1.103534651 | M84: 1.133690509 | N84: 1.160680212 | O84: 1.191146674 | P84: 1.188183134 | Q84: 1.133282494 | R84: 1.158592263 | S84: 1.171781241 | T84: 1.189463401 | U84: 1.210872808 | V84: 1.249555803 | W84: 1.277332035 | X84: 1.301878653 | Y84: 1.336463123 | Z84: 1.355242972 | AA84: 1.377258558 | AB84: 1.235443362 | AC84: 1.341394378 | AD84: 1.406305594 | AE84: 1.41168383 | AF84: 1.424883384 | AG84: 1.438727453 | AH84: 1.465512553 | AI84: 1.491750447 | AJ84: 1.51744773 | AK84: 1.544774165 | AL84: 1.573445971 | AM84: 1.602825516 | AN84: 1.633451307 | AO84: 1.664989405 | AP84: 1.696863283 | AQ84: 1.729228466 | AR84: 1.764263733 | AS84: 1.799804585 | AT84: 1.835627151 | AU84: 1.87241407 | AV84: 1.909068938 | AW84: 1.94584648 | AX84: 1.982876622 | AY84: 2.019986239 | AZ84: 2.05711395 | BA84: 2.094801312 | BB84: 2.13322032 | BC84: 2.172034565 | BD84: 2.211039563 | BE84: 2.250140845 | BF84: 2.289806959 | BG84: 2.330046002 | BH84: 2.370697781 | BI84: 2.411765312 | BJ84: 2.453132487 | BK84: 2.494818847 | BL84: 2.53686021 | BM84: 2.579134398 | BN84: 2.62185958 | BO84: 2.664740711 | BP84: 2.708638126 | BQ84: 2.752779097 | BR84: 2.797054628 | BS84: 2.841725392 | BT84: =(BT$63/$H$63)^$H$75*(BT$65/$H$65) -> 2.887219333 | BU84: 2.933649282 | BV84: 2.981077869 | BW84: 3.030029801 | BX84: 3.081486536 | BY84: 3.135286663 | BZ84: 3.191677785 | CA84: 3.249673227 | CB84: 3.308407512 | CC84: 3.367914051 | CD84: 3.418591272 | CE84: 3.469164689 | CF84: 3.518577233 | CG84: 3.569193293 | CH84: 3.620285125 | CI84: 3.671226285 | CJ84: 3.723106352 | CK84: 3.777220489 | CL84: 3.83345655 | CM84: 3.890817624 | CN84: 3.94858279 | CO84: 4.008796907 | CP84: 4.071184502 | CQ84: 4.135309793 | CR84: 4.201324386 | CS84: 4.270305702 | CT84: 4.33933326 | CU84: 4.412001874 | CV84: 4.482188966 | CW84: 4.552932347 | CX84: 4.624560038 | CY84: 4.697136635 | CZ84: 4.77073202 | DA84: 4.845398131 | DB84: 4.921134073 | DC84: 4.997936442 | DD84: 5.075789815 | DE84: 5.154855918 | DF84: 5.235153642 | DG84: 5.316702172 | DH84: 5.399520991 | DI84: 5.483629888 | DJ84: 5.569048958 | DK84: 5.65579861 | DL84: 5.743899569 | DM84: 5.833372887 | DN84: 5.92423994 | DO84: 6.016522438 | DP84: 6.11024243 | DQ84: 6.205422309 | DR84: 6.302084814 | DS84: 6.40025304 | DT84: 6.499950444 | DU84: 6.601200844 | DV84: 6.704028433 | DW84: 6.808457777 | DX84: 6.914513828 | DY84: 7.022221925 | DZ84: 7.131607802 | EA84: 7.242697594 | EB84: 7.355517844 | EC84: 7.470095506 | ED84: 7.586457956 | EE84: 7.704632996 | EF84: =(EF$63/$H$63)^$H$75*(EF$65/$H$65) -> 7.824648861 | EG84: 7.946534226 | EH84: 8.070318211 | EI84: 8.196030393 | EJ84: 8.323700806 | EK84: 8.453359954 | EL84: 8.585038816 | EM84: 8.718768854 | EN84: 8.854582018 | EO84: 8.992510758 | EP84: 9.132588028 | EQ84: 9.274847296 | ER84: 9.419322552 | ES84: 9.566048313 | ET84: 9.715059637 | EU84: 9.866392126 | EV84: 10.02008194 | EW84: 10.17616579 | EX84: 10.33468098 | EY84: 10.49566537 | EZ84: 10.65915744 | FA84: 10.82519623 | FB84: 10.99382143 | FC84: 11.16507333 | FD84: 11.33899283 | FE84: 11.51562149 | FF84: 11.69500152 | FG84: 11.87717577 | FH84: 12.06218776 | FI84: 12.25008171 | FJ84: 12.4409025 | FK84: 12.63469572 | FL84: 12.83150769 | FM84: 13.03138541 | FN84: 13.23437665 | FO84: 13.4405299 | FP84: 13.64989443 | FQ84: 13.86252024 | FR84: 14.07845815 | FS84: 14.29775975 | FT84: 14.52047744 | FU84: 14.74666441 | FV84: 14.97637473 | FW84: 15.20966327 | FX84: 15.44658577 | FY84: 15.68719883 | FZ84: 15.93155995 | GA84: 16.17972751 | GB84: 16.43176079 | GC84: 16.68772003 | GD84: 16.94766637 | GE84: 17.21166192 | GF84: 17.47976976 | GG84: 17.75205394 | GH84: 18.02857952 | GI84: 18.30941257 | GJ84: 18.59462018 | GK84: 18.88427051 | GL84: 19.17843274 | GM84: 19.47717717 | GN84: 19.78057517 | GO84: 20.08869924 | GP84: 20.40162299 | GQ84: 20.71942118 | GR84: =(GR$63/$H$63)^$H$75*(GR$65/$H$65) -> 21.04216974 | GS84: 21.3699458 | GT84: 21.70282765 | GU84: 22.04089484 | GV84: 22.38422814 | GW84: 22.73290958 | GX84: 23.08702246 | GY84: 23.4466514 | GZ84: 23.81188231 | HA84: 24.18280247 | HB84: 24.55950048 | HC84: 24.94206636 | HD84: 25.33059151 | HE84: 25.72516875 | HF84: 26.12589237 | HG84: 26.53285809 | HH84: 26.94616317 | HI84: 27.36590634 | HJ84: 27.79218789 | HK84: 28.22510968 | HL84: 28.66477513 | HM84: 29.1112893 | HN84: 29.56475886 | HO84: 30.02529217 | HP84: 30.49299925 | HQ84: 30.96799185 | HR84: 31.45038346 | HS84: 31.94028934 | HT84: 32.43782653 | HU84: 32.94311391 | HV84: 33.4562722 | HW84: 33.97742401 | HX84: 34.50669386 | HY84: 35.0442082 | HZ84: 35.59009545 | IA84: 36.14448605 | IB84: 36.70751245 | IC84: 37.27930917 | ID84: 37.86001282 | IE84: 38.44976216 | IF84: 39.04869808 | IG84: 39.65696369 | IH84: 40.27470431 | II84: 40.90206754 | IJ84: 41.53920328 | IK84: 42.18626375 | IL84: 42.84340354 | IM84: 43.51077967 | IN84: 44.18855158 | IO84: 44.87688122 | IP84: 45.57593304 | IQ84: 46.28587406 | IR84: 47.00687391 | IS84: 47.73910485 | IT84: 48.48274182 | IU84: 49.2379625 | IV84: 50.00494734 | IW84: 50.78387957 | IX84: 51.57494532 | IY84: 52.37833358 | IZ84: 53.19423629 | JA84: 54.02284841 | JB84: 54.86436791 | JC84: 55.71899584 | JD84: =(JD$63/$H$63)^$H$75*(JD$65/$H$65) -> 56.58693641 | JE84: 57.46839697 | JF84: 58.36358813 | JG84: 59.27272378 | JH84: 60.19602113 | JI84: 61.13370077 | JJ84: 62.08598675 | JK84: 63.05310659 | JL84: 64.03529135 | JM84: 65.03277571 | JN84: 66.04579798 | JO84: 67.07460021 | JP84: 68.11942819 | JQ84: 69.18053157 | JR84: 70.25816386 | JS84: 71.35258255 | JT84: 72.4640491 | JU84: 73.59282909 | JV84: 74.7391922 | JW84: 75.90341233 | JX84: 77.08576763 | JY84: 78.28654061 | JZ84: 79.50601815 | KA84: 80.74449161 | KB84: 82.00225691 | KC84: 83.27961455 | KD84: 84.57686972 | KE84: 85.89433236 | KF84: 87.23231726 | KG84: 88.59114409 | KH84: 89.9711375 | KI84: 91.37262722 | KJ84: 92.79594808 | KK84: 94.24144016 | KL84: 95.70944882 | KM84: 97.2003248 | KN84: 98.71442431 | KO84: 100.2521091 | KP84: 101.8137466 | KQ84: 103.3997098 | KR84: 105.0103778 | KS84: 106.6461353 | KT84: 108.3073732 | KU84: 109.9944884 | KV84: 111.7078839
C85: Low sensitivity | H85: =(H$63/$H$63)^$I$75*(H$65/$H$65) -> 1 | I85: 1.021315079 | J85: 1.036844612 | K85: 1.063879809 | L85: 1.085887011 | M85: 1.111269928 | N85: 1.133931782 | O85: 1.159548157 | P85: 1.159138384 | Q85: 1.117662054 | R85: 1.139404252 | S85: 1.151688337 | T85: 1.167134536 | U85: 1.185496547 | V85: 1.217516021 | W85: 1.240911484 | X85: 1.261955424 | Y85: 1.290110932 | Z85: 1.305868167 | AA85: 1.324172915 | AB85: 1.214334378 | AC85: 1.297884943 | AD85: 1.350374231 | AE85: 1.357148175 | AF85: 1.370175338 | AG85: 1.382616662 | AH85: 1.404257254 | AI85: 1.425398174 | AJ85: 1.446178215 | AK85: 1.468259157 | AL85: 1.49150062 | AM85: 1.515197668 | AN85: 1.539753486 | AO85: 1.564909511 | AP85: 1.590229192 | AQ85: 1.615829667 | AR85: 1.643340157 | AS85: 1.671144086 | AT85: 1.699077248 | AU85: 1.727645698 | AV85: 1.756039089 | AW85: 1.78444488 | AX85: 1.812956395 | AY85: 1.841446875 | AZ85: 1.869871687 | BA85: 1.89861741 | BB85: 1.927797493 | BC85: 1.957163067 | BD85: 1.98656305 | BE85: 2.015926424 | BF85: 2.045587007 | BG85: 2.07554835 | BH85: 2.105694786 | BI85: 2.136028099 | BJ85: 2.166467685 | BK85: 2.197031704 | BL85: 2.22775009 | BM85: 2.258542763 | BN85: 2.28956655 | BO85: 2.3206203 | BP85: 2.35230813 | BQ85: 2.384094023 | BR85: 2.415906289 | BS85: 2.447927287 | BT85: =(BT$63/$H$63)^$I$75*(BT$65/$H$65) -> 2.480452396 | BU85: 2.513558156 | BV85: 2.547282678 | BW85: 2.581977654 | BX85: 2.618300697 | BY85: 2.65612587 | BZ85: 2.695604453 | CA85: 2.73605286 | CB85: 2.776876353 | CC85: 2.818089305 | CD85: 2.853274009 | CE85: 2.888284582 | CF85: 2.922415206 | CG85: 2.957236088 | CH85: 2.992258094 | CI85: 3.027064796 | CJ85: 3.062373715 | CK85: 3.099032251 | CL85: 3.136957374 | CM85: 3.175490375 | CN85: 3.214160044 | CO85: 3.25429683 | CP85: 3.295714065 | CQ85: 3.338124409 | CR85: 3.38162178 | CS85: 3.426893441 | CT85: 3.472059273 | CU85: 3.519419188 | CV85: 3.565062596 | CW85: 3.610935914 | CX85: 3.657248037 | CY85: 3.704038721 | CZ85: 3.751350027 | DA85: 3.799211825 | DB85: 3.847620709 | DC85: 3.896571141 | DD85: 3.946050559 | DE85: 3.996158276 | DF85: 4.04690227 | DG85: 4.098290622 | DH85: 4.150331513 | DI85: 4.203033229 | DJ85: 4.256404162 | DK85: 4.310452809 | DL85: 4.365187777 | DM85: 4.42061778 | DN85: 4.476751644 | DO85: 4.533598306 | DP85: 4.591166819 | DQ85: 4.649466348 | DR85: 4.708506175 | DS85: 4.768295702 | DT85: 4.828844447 | DU85: 4.890162053 | DV85: 4.952258281 | DW85: 5.015143019 | DX85: 5.07882628 | DY85: 5.143318203 | DZ85: 5.208629058 | EA85: 5.274769242 | EB85: 5.341749287 | EC85: 5.409579858 | ED85: 5.478271754 | EE85: 5.547835914 | EF85: =(EF$63/$H$63)^$I$75*(EF$65/$H$65) -> 5.618283413 | EG85: 5.689625467 | EH85: 5.761873437 | EI85: 5.835038826 | EJ85: 5.909133284 | EK85: 5.984168607 | EL85: 6.060156743 | EM85: 6.137109791 | EN85: 6.215040004 | EO85: 6.29395979 | EP85: 6.373881715 | EQ85: 6.454818504 | ER85: 6.536783044 | ES85: 6.619788385 | ET85: 6.703847745 | EU85: 6.788974507 | EV85: 6.875182225 | EW85: 6.962484625 | EX85: 7.050895608 | EY85: 7.140429251 | EZ85: 7.23109981 | FA85: 7.32292172 | FB85: 7.415909604 | FC85: 7.510078265 | FD85: 7.605442699 | FE85: 7.702018089 | FF85: 7.799819811 | FG85: 7.89886344 | FH85: 7.999164743 | FI85: 8.100739692 | FJ85: 8.203604459 | FK85: 8.307775423 | FL85: 8.41326917 | FM85: 8.520102497 | FN85: 8.628292415 | FO85: 8.737856149 | FP85: 8.848811145 | FQ85: 8.961175069 | FR85: 9.074965811 | FS85: 9.190201491 | FT85: 9.306900456 | FU85: 9.425081287 | FV85: 9.544762801 | FW85: 9.665964055 | FX85: 9.788704345 | FY85: 9.913003216 | FZ85: 10.03888046 | GA85: 10.16635611 | GB85: 10.29545048 | GC85: 10.42618411 | GD85: 10.55857782 | GE85: 10.6926527 | GF85: 10.82843008 | GG85: 10.96593159 | GH85: 11.10517912 | GI85: 11.24619484 | GJ85: 11.38900121 | GK85: 11.53362096 | GL85: 11.68007712 | GM85: 11.82839301 | GN85: 11.97859225 | GO85: 12.13069874 | GP85: 12.28473671 | GQ85: 12.44073068 | GR85: =(GR$63/$H$63)^$I$75*(GR$65/$H$65) -> 12.5987055 | GS85: 12.75868631 | GT85: 12.92069859 | GU85: 13.08476813 | GV85: 13.25092106 | GW85: 13.41918383 | GX85: 13.58958324 | GY85: 13.76214641 | GZ85: 13.93690082 | HA85: 14.11387429 | HB85: 14.29309501 | HC85: 14.47459151 | HD85: 14.65839269 | HE85: 14.84452781 | HF85: 15.0330265 | HG85: 15.2239188 | HH85: 15.41723508 | HI85: 15.61300612 | HJ85: 15.81126311 | HK85: 16.0120376 | HL85: 16.21536157 | HM85: 16.42126738 | HN85: 16.62978783 | HO85: 16.84095611 | HP85: 17.05480584 | HQ85: 17.27137108 | HR85: 17.49068631 | HS85: 17.71278644 | HT85: 17.93770685 | HU85: 18.16548333 | HV85: 18.39615217 | HW85: 18.62975009 | HX85: 18.86631428 | HY85: 19.1058824 | HZ85: 19.34849261 | IA85: 19.59418353 | IB85: 19.84299428 | IC85: 20.09496448 | ID85: 20.35013425 | IE85: 20.60854421 | IF85: 20.87023551 | IG85: 21.13524981 | IH85: 21.40362932 | II85: 21.67541677 | IJ85: 21.95065542 | IK85: 22.22938911 | IL85: 22.51166222 | IM85: 22.79751968 | IN85: 23.08700702 | IO85: 23.38017032 | IP85: 23.67705627 | IQ85: 23.97771213 | IR85: 24.28218578 | IS85: 24.59052569 | IT85: 24.90278097 | IU85: 25.21900132 | IV85: 25.5392371 | IW85: 25.8635393 | IX85: 26.19195955 | IY85: 26.52455014 | IZ85: 26.86136403 | JA85: 27.20245486 | JB85: 27.54787691 | JC85: 27.89768521 | JD85: =(JD$63/$H$63)^$I$75*(JD$65/$H$65) -> 28.25193544 | JE85: 28.61068401 | JF85: 28.97398803 | JG85: 29.34190537 | JH85: 29.71449458 | JI85: 30.09181501 | JJ85: 30.47392673 | JK85: 30.86089057 | JL85: 31.25276816 | JM85: 31.64962188 | JN85: 32.05151494 | JO85: 32.4585113 | JP85: 32.87067579 | JQ85: 33.28807402 | JR85: 33.71077245 | JS85: 34.13883839 | JT85: 34.57234 | JU85: 35.01134629 | JV85: 35.45592717 | JW85: 35.90615343 | JX85: 36.36209674 | JY85: 36.82382972 | JZ85: 37.29142586 | KA85: 37.76495964 | KB85: 38.24450644 | KC85: 38.73014261 | KD85: 39.22194549 | KE85: 39.71999338 | KF85: 40.22436557 | KG85: 40.73514239 | KH85: 41.25240514 | KI85: 41.7762362 | KJ85: 42.30671897 | KK85: 42.84393791 | KL85: 43.38797856 | KM85: 43.93892755 | KN85: 44.49687259 | KO85: 45.06190253 | KP85: 45.63410732 | KQ85: 46.21357809 | KR85: 46.80040709 | KS85: 47.39468775 | KT85: 47.99651471 | KU85: 48.60598378 | KV85: 49.22319201
C86: High sensitivity | H86: =(H$63/$H$63)^$J$75*(H$65/$H$65) -> 1 | I86: 1.030159595 | J86: 1.051499601 | K86: 1.090406532 | L86: 1.121469097 | M86: 1.15656344 | N86: 1.188059612 | O86: 1.223606274 | P86: 1.217955664 | Q86: 1.149121244 | R86: 1.178103407 | S86: 1.192224696 | T86: 1.212219448 | U86: 1.236792263 | V86: 1.282438734 | W86: 1.314821523 | X86: 1.343064894 | Y86: 1.384480694 | Z86: 1.406484637 | AA86: 1.432472387 | AB86: 1.256919287 | AC86: 1.386362394 | AD86: 1.464553587 | AE86: 1.468410946 | AF86: 1.481775801 | AG86: 1.49711539 | AH86: 1.529439877 | AI86: 1.561191419 | AJ86: 1.592229497 | AK86: 1.625276579 | AL86: 1.659893527 | AM86: 1.695521111 | AN86: 1.732850873 | AO86: 1.771469659 | AP86: 1.810647809 | AQ86: 1.850585583 | AR86: 1.894085351 | AS86: 1.938370587 | AT86: 1.983151173 | AU86: 2.029313332 | AV86: 2.075434557 | AW86: 2.121846724 | AX86: 2.168722707 | AY86: 2.215836069 | AZ86: 2.263105984 | BA86: 2.311256871 | BB86: 2.360532655 | BC86: 2.410496208 | BD86: 2.460881343 | BE86: 2.511566773 | BF86: 2.563184011 | BG86: 2.61574941 | BH86: 2.669051567 | BI86: 2.723097099 | BJ86: 2.777728485 | BK86: 2.832968257 | BL86: 2.888860719 | BM86: 2.945232807 | BN86: 3.002379492 | BO86: 3.059890091 | BP86: 3.118945346 | BQ86: 3.178478987 | BR86: 3.23833529 | BS86: 3.298873804 | BT86: =(BT$63/$H$63)^$J$75*(BT$65/$H$65) -> 3.360691578 | BU86: 3.423950262 | BV86: 3.48874718 | BW86: 3.555832708 | BX86: 3.626611443 | BY86: 3.700887286 | BZ86: 3.779043721 | CA86: 3.859712008 | CB86: 3.941680822 | CC86: 4.025012635 | CD86: 4.095914465 | CE86: 4.166869052 | CF86: 4.236354135 | CG86: 4.307786184 | CH86: 4.380124967 | CI86: 4.452465785 | CJ86: 4.526397559 | CK86: 4.603822571 | CL86: 4.684599557 | CM86: 4.767283157 | CN86: 4.850818203 | CO86: 4.938225824 | CP86: 5.029120524 | CQ86: 5.122872904 | CR86: 5.219722295 | CS86: 5.321294958 | CT86: 5.423240695 | CU86: 5.530958234 | CV86: 5.635249699 | CW86: 5.74067041 | CX86: 5.8477181 | CY86: 5.956496199 | CZ86: 6.067118196 | DA86: 6.179672029 | DB86: 6.29416525 | DC86: 6.410602496 | DD86: 6.528969121 | DE86: 6.649521291 | DF86: 6.77229936 | DG86: 6.897344427 | DH86: 7.024698351 | DI86: 7.154403763 | DJ86: 7.286504081 | DK86: 7.421043525 | DL86: 7.558067132 | DM86: 7.69762077 | DN86: 7.839751154 | DO86: 7.984505861 | DP86: 8.131933347 | DQ86: 8.282082964 | DR86: 8.435004972 | DS86: 8.590750563 | DT86: 8.749371871 | DU86: 8.910921994 | DV86: 9.07545501 | DW86: 9.243025996 | DX86: 9.413691046 | DY86: 9.587507288 | DZ86: 9.764532908 | EA86: 9.944827164 | EB86: 10.12845041 | EC86: 10.31546411 | ED86: 10.50593087 | EE86: 10.69991444 | EF86: =(EF$63/$H$63)^$J$75*(EF$65/$H$65) -> 10.89747977 | EG86: 11.09869297 | EH86: 11.30362142 | EI86: 11.51233371 | EJ86: 11.72489971 | EK86: 11.94139056 | EL86: 12.16187874 | EM86: 12.38643807 | EN86: 12.61514369 | EO86: 12.84807219 | EP86: 13.08530152 | EQ86: 13.3269111 | ER86: 13.57298181 | ES86: 13.82359601 | ET86: 14.07883761 | EU86: 14.33879203 | EV86: 14.60354631 | EW86: 14.87318906 | EX86: 15.14781055 | EY86: 15.4275027 | EZ86: 15.71235915 | FA86: 16.00247524 | FB86: 16.29794809 | FC86: 16.5988766 | FD86: 16.90536153 | FE86: 17.21750545 | FF86: 17.53541285 | FG86: 17.85919016 | FH86: 18.18894576 | FI86: 18.52479003 | FJ86: 18.8668354 | FK86: 19.21519636 | FL86: 19.56998952 | FM86: 19.93133366 | FN86: 20.29934972 | FO86: 20.67416091 | FP86: 21.05589268 | FQ86: 21.44467283 | FR86: 21.84063148 | FS86: 22.2439012 | FT86: 22.65461696 | FU86: 23.07291627 | FV86: 23.49893913 | FW86: 23.93282816 | FX86: 24.37472861 | FY86: 24.82478839 | FZ86: 25.28315817 | GA86: 25.74999137 | GB86: 26.22544428 | GC86: 26.70967604 | GD86: 27.20284875 | GE86: 27.7051275 | GF86: 28.21668042 | GG86: 28.73767875 | GH86: 29.26829691 | GI86: 29.8087125 | GJ86: 30.35910643 | GK86: 30.91966294 | GL86: 31.49056967 | GM86: 32.07201775 | GN86: 32.66420179 | GO86: 33.26732003 | GP86: 33.88157437 | GQ86: 34.50717043 | GR86: =(GR$63/$H$63)^$J$75*(GR$65/$H$65) -> 35.14431761 | GS86: 35.7932292 | GT86: 36.45412242 | GU86: 37.12721851 | GV86: 37.81274277 | GW86: 38.51092469 | GX86: 39.22199798 | GY86: 39.94620066 | GZ86: 40.68377517 | HA86: 41.43496839 | HB86: 42.2000318 | HC86: 42.97922148 | HD86: 43.77279828 | HE86: 44.58102784 | HF86: 45.4041807 | HG86: 46.24253242 | HH86: 47.09636364 | HI86: 47.96596016 | HJ86: 48.85161308 | HK86: 49.75361887 | HL86: 50.67227947 | HM86: 51.60790241 | HN86: 52.56080087 | HO86: 53.53129383 | HP86: 54.51970617 | HQ86: 55.52636874 | HR86: 56.55161853 | HS86: 57.59579874 | HT86: 58.6592589 | HU86: 59.74235499 | HV86: 60.84544958 | HW86: 61.96891193 | HX86: 63.1131181 | HY86: 64.27845113 | HZ86: 65.46530109 | IA86: 66.67406528 | IB86: 67.90514834 | IC86: 69.15896235 | ID86: 70.43592703 | IE86: 71.73646984 | IF86: 73.06102613 | IG86: 74.41003928 | IH86: 75.78396088 | II86: 77.18325084 | IJ86: 78.60837756 | IK86: 80.0598181 | IL86: 81.53805833 | IM86: 83.04359307 | IN86: 84.57692631 | IO86: 86.13857131 | IP86: 87.72905083 | IQ86: 89.34889727 | IR86: 90.99865288 | IS86: 92.67886991 | IT86: 94.39011079 | IU86: 96.13294836 | IV86: 97.90796602 | IW86: 99.71575796 | IX86: 101.5569293 | IY86: 103.4320964 | IZ86: 105.341887 | JA86: 107.2869403 | JB86: 109.2679075 | JC86: 111.2854516 | JD86: =(JD$63/$H$63)^$J$75*(JD$65/$H$65) -> 113.3402481 | JE86: 115.4329847 | JF86: 117.564362 | JG86: 119.7350936 | JH86: 121.9459059 | JI86: 124.1975391 | JJ86: 126.4907468 | JK86: 128.8262969 | JL86: 131.2049709 | JM86: 133.6275653 | JN86: 136.094891 | JO86: 138.6077738 | JP86: 141.167055 | JQ86: 143.7735913 | JR86: 146.4282551 | JS86: 149.1319352 | JT86: 151.8855366 | JU86: 154.689981 | JV86: 157.5462073 | JW86: 160.4551714 | JX86: 163.4178473 | JY86: 166.4352265 | JZ86: 169.5083193 | KA86: 172.6381542 | KB86: 175.825779 | KC86: 179.0722608 | KD86: 182.3786863 | KE86: 185.7461622 | KF86: 189.1758158 | KG86: 192.6687953 | KH86: 196.2262698 | KI86: 199.8494303 | KJ86: 203.5394895 | KK86: 207.2976826 | KL86: 211.1252678 | KM86: 215.0235263 | KN86: 218.9937629 | KO86: 223.0373068 | KP86: 227.1555115 | KQ86: 231.3497556 | KR86: 235.621443 | KS86: 239.9720036 | KT86: 244.4028939 | KU86: 248.915597 | KV86: 253.5116235
B89: END

Sheet Calculations (values)
B2: Uprating indices
C4: Discount rates
H6: Year
H7: ='Inputs (values)'!$H$13 -> 2023 | I7: =H7+1 -> 2024 | J7: =I7+1 -> 2025 | K7: 2026 | L7: 2027 | M7: 2028 | N7: 2029 | O7: 2030 | P7: 2031 | Q7: 2032 | R7: 2033 | S7: 2034 | T7: 2035 | U7: 2036 | V7: 2037 | W7: 2038 | X7: 2039 | Y7: 2040 | Z7: 2041 | AA7: 2042 | AB7: 2043 | AC7: 2044 | AD7: 2045 | AE7: 2046 | AF7: 2047 | AG7: 2048 | AH7: 2049 | AI7: 2050 | AJ7: 2051 | AK7: 2052 | AL7: 2053 | AM7: 2054 | AN7: 2055 | AO7: 2056 | AP7: 2057 | AQ7: 2058 | AR7: 2059 | AS7: 2060 | AT7: 2061 | AU7: 2062 | AV7: 2063 | AW7: 2064 | AX7: 2065 | AY7: 2066 | AZ7: 2067 | BA7: 2068 | BB7: 2069 | BC7: 2070 | BD7: 2071 | BE7: 2072 | BF7: 2073 | BG7: 2074 | BH7: 2075 | BI7: 2076 | BJ7: 2077 | BK7: 2078 | BL7: 2079 | BM7: 2080 | BN7: 2081 | BO7: 2082 | BP7: 2083 | BQ7: 2084 | BR7: 2085 | BS7: 2086 | BT7: 2087 | BU7: 2088 | BV7: =BU7+1 -> 2089 | BW7: 2090 | BX7: 2091 | BY7: 2092 | BZ7: 2093 | CA7: 2094 | CB7: 2095 | CC7: 2096 | CD7: 2097 | CE7: 2098 | CF7: 2099 | CG7: 2100 | CH7: 2101 | CI7: 2102 | CJ7: 2103 | CK7: 2104 | CL7: 2105 | CM7: 2106 | CN7: 2107 | CO7: 2108 | CP7: 2109 | CQ7: 2110 | CR7: 2111 | CS7: 2112 | CT7: 2113 | CU7: 2114 | CV7: 2115 | CW7: 2116 | CX7: 2117 | CY7: 2118 | CZ7: 2119 | DA7: 2120 | DB7: 2121 | DC7: 2122 | DD7: 2123 | DE7: 2124 | DF7: 2125 | DG7: 2126 | DH7: 2127 | DI7: 2128 | DJ7: 2129 | DK7: 2130 | DL7: 2131 | DM7: 2132 | DN7: 2133 | DO7: 2134 | DP7: 2135 | DQ7: 2136 | DR7: 2137 | DS7: 2138 | DT7: 2139 | DU7: 2140 | DV7: 2141 | DW7: 2142 | DX7: 2143 | DY7: 2144 | DZ7: 2145 | EA7: 2146 | EB7: 2147 | EC7: 2148 | ED7: 2149 | EE7: 2150 | EF7: 2151 | EG7: 2152 | EH7: =EG7+1 -> 2153 | EI7: 2154 | EJ7: 2155 | EK7: 2156 | EL7: 2157 | EM7: 2158 | EN7: 2159 | EO7: 2160 | EP7: 2161 | EQ7: 2162 | ER7: 2163 | ES7: 2164 | ET7: 2165 | EU7: 2166 | EV7: 2167 | EW7: 2168 | EX7: 2169 | EY7: 2170 | EZ7: 2171 | FA7: 2172 | FB7: 2173 | FC7: 2174 | FD7: 2175 | FE7: 2176 | FF7: 2177 | FG7: 2178 | FH7: 2179 | FI7: 2180 | FJ7: 2181 | FK7: 2182 | FL7: 2183 | FM7: 2184 | FN7: 2185 | FO7: 2186 | FP7: 2187 | FQ7: 2188 | FR7: 2189 | FS7: 2190 | FT7: 2191 | FU7: 2192 | FV7: 2193 | FW7: 2194 | FX7: 2195 | FY7: 2196 | FZ7: 2197 | GA7: 2198 | GB7: 2199 | GC7: 2200 | GD7: 2201 | GE7: 2202 | GF7: 2203 | GG7: 2204 | GH7: 2205 | GI7: 2206 | GJ7: 2207 | GK7: 2208 | GL7: 2209 | GM7: 2210 | GN7: 2211 | GO7: 2212 | GP7: 2213 | GQ7: 2214 | GR7: 2215 | GS7: 2216 | GT7: =GS7+1 -> 2217 | GU7: 2218 | GV7: 2219 | GW7: 2220 | GX7: 2221 | GY7: 2222 | GZ7: 2223 | HA7: 2224 | HB7: 2225 | HC7: 2226 | HD7: 2227 | HE7: 2228 | HF7: 2229 | HG7: 2230 | HH7: 2231 | HI7: 2232 | HJ7: 2233 | HK7: 2234 | HL7: 2235 | HM7: 2236 | HN7: 2237 | HO7: 2238 | HP7: 2239 | HQ7: 2240 | HR7: 2241 | HS7: 2242 | HT7: 2243 | HU7: 2244 | HV7: 2245 | HW7: 2246 | HX7: 2247 | HY7: 2248 | HZ7: 2249 | IA7: 2250 | IB7: 2251 | IC7: 2252 | ID7: 2253 | IE7: 2254 | IF7: 2255 | IG7: 2256 | IH7: 2257 | II7: 2258 | IJ7: 2259 | IK7: 2260 | IL7: 2261 | IM7: 2262 | IN7: 2263 | IO7: 2264 | IP7: 2265 | IQ7: 2266 | IR7: 2267 | IS7: 2268 | IT7: 2269 | IU7: 2270 | IV7: 2271 | IW7: 2272 | IX7: 2273 | IY7: 2274 | IZ7: 2275 | JA7: 2276 | JB7: 2277 | JC7: 2278 | JD7: 2279 | JE7: 2280 | JF7: =JE7+1 -> 2281 | JG7: 2282 | JH7: 2283 | JI7: 2284 | JJ7: 2285 | JK7: 2286 | JL7: 2287 | JM7: 2288 | JN7: 2289 | JO7: 2290 | JP7: 2291 | JQ7: 2292 | JR7: 2293 | JS7: 2294 | JT7: 2295 | JU7: 2296 | JV7: 2297 | JW7: 2298 | JX7: 2299 | JY7: 2300 | JZ7: 2301 | KA7: 2302
C8: Discount rates | H8: =LOOKUP(H7-'Inputs (values)'!$H$8,'Inputs (values)'!$C$20:$C$25,'Inputs (values)'!$H$20:$H$25) -> 0.035 | I8: =LOOKUP(I7-'Inputs (values)'!$H$8,'Inputs (values)'!$C$20:$C$25,'Inputs (values)'!$H$20:$H$25) -> 0.035 | J8: =LOOKUP(J7-'Inputs (values)'!$H$8,'Inputs (values)'!$C$20:$C$25,'Inputs (values)'!$H$20:$H$25) -> 0.035 | K8: =LOOKUP(K7-'Inputs (values)'!$H$8,'Inputs (values)'!$C$20:$C$25,'Inputs (values)'!$H$20:$H$25) -> 0.035 | L8: =LOOKUP(L7-'Inputs (values)'!$H$8,'Inputs (values)'!$C$20:$C$25,'Inputs (values)'!$H$20:$H$25) -> 0.035 | M8: =LOOKUP(M7-'Inputs (values)'!$H$8,'Inputs (values)'!$C$20:$C$25,'Inputs (values)'!$H$20:$H$25) -> 0.035 | N8: =LOOKUP(N7-'Inputs (values)'!$H$8,'Inputs (values)'!$C$20:$C$25,'Inputs (values)'!$H$20:$H$25) -> 0.035 | O8: =LOOKUP(O7-'Inputs (values)'!$H$8,'Inputs (values)'!$C$20:$C$25,'Inputs (values)'!$H$20:$H$25) -> 0.035 | P8: =LOOKUP(P7-'Inputs (values)'!$H$8,'Inputs (values)'!$C$20:$C$25,'Inputs (values)'!$H$20:$H$25) -> 0.035 | Q8: =LOOKUP(Q7-'Inputs (values)'!$H$8,'Inputs (values)'!$C$20:$C$25,'Inputs (values)'!$H$20:$H$25) -> 0.035 | R8: =LOOKUP(R7-'Inputs (values)'!$H$8,'Inputs (values)'!$C$20:$C$25,'Inputs (values)'!$H$20:$H$25) -> 0.035 | S8: =LOOKUP(S7-'Inputs (values)'!$H$8,'Inputs (values)'!$C$20:$C$25,'Inputs (values)'!$H$20:$H$25) -> 0.035 | T8: =LOOKUP(T7-'Inputs (values)'!$H$8,'Inputs (values)'!$C$20:$C$25,'Inputs (values)'!$H$20:$H$25) -> 0.035 | U8: =LOOKUP(U7-'Inputs (values)'!$H$8,'Inputs (values)'!$C$20:$C$25,'Inputs (values)'!$H$20:$H$25) -> 0.035 | V8: =LOOKUP(V7-'Inputs (values)'!$H$8,'Inputs (values)'!$C$20:$C$25,'Inputs (values)'!$H$20:$H$25) -> 0.035 | W8: =LOOKUP(W7-'Inputs (values)'!$H$8,'Inputs (values)'!$C$20:$C$25,'Inputs (values)'!$H$20:$H$25) -> 0.035 | X8: =LOOKUP(X7-'Inputs (values)'!$H$8,'Inputs (values)'!$C$20:$C$25,'Inputs (values)'!$H$20:$H$25) -> 0.035 | Y8: =LOOKUP(Y7-'Inputs (values)'!$H$8,'Inputs (values)'!$C$20:$C$25,'Inputs (values)'!$H$20:$H$25) -> 0.035 | Z8: =LOOKUP(Z7-'Inputs (values)'!$H$8,'Inputs (values)'!$C$20:$C$25,'Inputs (values)'!$H$20:$H$25) -> 0.035 | AA8: =LOOKUP(AA7-'Inputs (values)'!$H$8,'Inputs (values)'!$C$20:$C$25,'Inputs (values)'!$H$20:$H$25) -> 0.035 | AB8: =LOOKUP(AB7-'Inputs (values)'!$H$8,'Inputs (values)'!$C$20:$C$25,'Inputs (values)'!$H$20:$H$25) -> 0.035 | AC8: =LOOKUP(AC7-'Inputs (values)'!$H$8,'Inputs (values)'!$C$20:$C$25,'Inputs (values)'!$H$20:$H$25) -> 0.035 | AD8: =LOOKUP(AD7-'Inputs (values)'!$H$8,'Inputs (values)'!$C$20:$C$25,'Inputs (values)'!$H$20:$H$25) -> 0.035 | AE8: =LOOKUP(AE7-'Inputs (values)'!$H$8,'Inputs (values)'!$C$20:$C$25,'Inputs (values)'!$H$20:$H$25) -> 0.035 | AF8: =LOOKUP(AF7-'Inputs (values)'!$H$8,'Inputs (values)'!$C$20:$C$25,'Inputs (values)'!$H$20:$H$25) -> 0.035 | AG8: =LOOKUP(AG7-'Inputs (values)'!$H$8,'Inputs (values)'!$C$20:$C$25,'Inputs (values)'!$H$20:$H$25) -> 0.035 | AH8: =LOOKUP(AH7-'Inputs (values)'!$H$8,'Inputs (values)'!$C$20:$C$25,'Inputs (values)'!$H$20:$H$25) -> 0.035 | AI8: =LOOKUP(AI7-'Inputs (values)'!$H$8,'Inputs (values)'!$C$20:$C$25,'Inputs (values)'!$H$20:$H$25) -> 0.035 | AJ8: =LOOKUP(AJ7-'Inputs (values)'!$H$8,'Inputs (values)'!$C$20:$C$25,'Inputs (values)'!$H$20:$H$25) -> 0.035 | AK8: =LOOKUP(AK7-'Inputs (values)'!$H$8,'Inputs (values)'!$C$20:$C$25,'Inputs (values)'!$H$20:$H$25) -> 0.035 | AL8: =LOOKUP(AL7-'Inputs (values)'!$H$8,'Inputs (values)'!$C$20:$C$25,'Inputs (values)'!$H$20:$H$25) -> 0.035 | AM8: =LOOKUP(AM7-'Inputs (values)'!$H$8,'Inputs (values)'!$C$20:$C$25,'Inputs (values)'!$H$20:$H$25) -> 0.035 | AN8: =LOOKUP(AN7-'Inputs (values)'!$H$8,'Inputs (values)'!$C$20:$C$25,'Inputs (values)'!$H$20:$H$25) -> 0.035 | AO8: =LOOKUP(AO7-'Inputs (values)'!$H$8,'Inputs (values)'!$C$20:$C$25,'Inputs (values)'!$H$20:$H$25) -> 0.03 | AP8: =LOOKUP(AP7-'Inputs (values)'!$H$8,'Inputs (values)'!$C$20:$C$25,'Inputs (values)'!$H$20:$H$25) -> 0.03 | AQ8: =LOOKUP(AQ7-'Inputs (values)'!$H$8,'Inputs (values)'!$C$20:$C$25,'Inputs (values)'!$H$20:$H$25) -> 0.03 | AR8: =LOOKUP(AR7-'Inputs (values)'!$H$8,'Inputs (values)'!$C$20:$C$25,'Inputs (values)'!$H$20:$H$25) -> 0.03 | AS8: =LOOKUP(AS7-'Inputs (values)'!$H$8,'Inputs (values)'!$C$20:$C$25,'Inputs (values)'!$H$20:$H$25) -> 0.03 | AT8: =LOOKUP(AT7-'Inputs (values)'!$H$8,'Inputs (values)'!$C$20:$C$25,'Inputs (values)'!$H$20:$H$25) -> 0.03 | AU8: =LOOKUP(AU7-'Inputs (values)'!$H$8,'Inputs (values)'!$C$20:$C$25,'Inputs (values)'!$H$20:$H$25) -> 0.03 | AV8: =LOOKUP(AV7-'Inputs (values)'!$H$8,'Inputs (values)'!$C$20:$C$25,'Inputs (values)'!$H$20:$H$25) -> 0.03 | AW8: =LOOKUP(AW7-'Inputs (values)'!$H$8,'Inputs (values)'!$C$20:$C$25,'Inputs (values)'!$H$20:$H$25) -> 0.03 | AX8: =LOOKUP(AX7-'Inputs (values)'!$H$8,'Inputs (values)'!$C$20:$C$25,'Inputs (values)'!$H$20:$H$25) -> 0.03 | AY8: =LOOKUP(AY7-'Inputs (values)'!$H$8,'Inputs (values)'!$C$20:$C$25,'Inputs (values)'!$H$20:$H$25) -> 0.03 | AZ8: =LOOKUP(AZ7-'Inputs (values)'!$H$8,'Inputs (values)'!$C$20:$C$25,'Inputs (values)'!$H$20:$H$25) -> 0.03 | BA8: =LOOKUP(BA7-'Inputs (values)'!$H$8,'Inputs (values)'!$C$20:$C$25,'Inputs (values)'!$H$20:$H$25) -> 0.03 | BB8: =LOOKUP(BB7-'Inputs (values)'!$H$8,'Inputs (values)'!$C$20:$C$25,'Inputs (values)'!$H$20:$H$25) -> 0.03 | BC8: =LOOKUP(BC7-'Inputs (values)'!$H$8,'Inputs (values)'!$C$20:$C$25,'Inputs (values)'!$H$20:$H$25) -> 0.03 | BD8: =LOOKUP(BD7-'Inputs (values)'!$H$8,'Inputs (values)'!$C$20:$C$25,'Inputs (values)'!$H$20:$H$25) -> 0.03 | BE8: =LOOKUP(BE7-'Inputs (values)'!$H$8,'Inputs (values)'!$C$20:$C$25,'Inputs (values)'!$H$20:$H$25) -> 0.03 | BF8: =LOOKUP(BF7-'Inputs (values)'!$H$8,'Inputs (values)'!$C$20:$C$25,'Inputs (values)'!$H$20:$H$25) -> 0.03 | BG8: =LOOKUP(BG7-'Inputs (values)'!$H$8,'Inputs (values)'!$C$20:$C$25,'Inputs (values)'!$H$20:$H$25) -> 0.03 | BH8: =LOOKUP(BH7-'Inputs (values)'!$H$8,'Inputs (values)'!$C$20:$C$25,'Inputs (values)'!$H$20:$H$25) -> 0.03 | BI8: =LOOKUP(BI7-'Inputs (values)'!$H$8,'Inputs (values)'!$C$20:$C$25,'Inputs (values)'!$H$20:$H$25) -> 0.03 | BJ8: =LOOKUP(BJ7-'Inputs (values)'!$H$8,'Inputs (values)'!$C$20:$C$25,'Inputs (values)'!$H$20:$H$25) -> 0.03 | BK8: =LOOKUP(BK7-'Inputs (values)'!$H$8,'Inputs (values)'!$C$20:$C$25,'Inputs (values)'!$H$20:$H$25) -> 0.03 | BL8: =LOOKUP(BL7-'Inputs (values)'!$H$8,'Inputs (values)'!$C$20:$C$25,'Inputs (values)'!$H$20:$H$25) -> 0.03 | BM8: =LOOKUP(BM7-'Inputs (values)'!$H$8,'Inputs (values)'!$C$20:$C$25,'Inputs (values)'!$H$20:$H$25) -> 0.03 | BN8: =LOOKUP(BN7-'Inputs (values)'!$H$8,'Inputs (values)'!$C$20:$C$25,'Inputs (values)'!$H$20:$H$25) -> 0.03 | BO8: =LOOKUP(BO7-'Inputs (values)'!$H$8,'Inputs (values)'!$C$20:$C$25,'Inputs (values)'!$H$20:$H$25) -> 0.03 | BP8: =LOOKUP(BP7-'Inputs (values)'!$H$8,'Inputs (values)'!$C$20:$C$25,'Inputs (values)'!$H$20:$H$25) -> 0.03 | BQ8: =LOOKUP(BQ7-'Inputs (values)'!$H$8,'Inputs (values)'!$C$20:$C$25,'Inputs (values)'!$H$20:$H$25) -> 0.03 | BR8: =LOOKUP(BR7-'Inputs (values)'!$H$8,'Inputs (values)'!$C$20:$C$25,'Inputs (values)'!$H$20:$H$25) -> 0.03 | BS8: =LOOKUP(BS7-'Inputs (values)'!$H$8,'Inputs (values)'!$C$20:$C$25,'Inputs (values)'!$H$20:$H$25) -> 0.03 | BT8: =LOOKUP(BT7-'Inputs (values)'!$H$8,'Inputs (values)'!$C$20:$C$25,'Inputs (values)'!$H$20:$H$25) -> 0.03 | BU8: =LOOKUP(BU7-'Inputs (values)'!$H$8,'Inputs (values)'!$C$20:$C$25,'Inputs (values)'!$H$20:$H$25) -> 0.03 | BV8: =LOOKUP(BV7-'Inputs (values)'!$H$8,'Inputs (values)'!$C$20:$C$25,'Inputs (values)'!$H$20:$H$25) -> 0.03 | BW8: =LOOKUP(BW7-'Inputs (values)'!$H$8,'Inputs (values)'!$C$20:$C$25,'Inputs (values)'!$H$20:$H$25) -> 0.03 | BX8: =LOOKUP(BX7-'Inputs (values)'!$H$8,'Inputs (values)'!$C$20:$C$25,'Inputs (values)'!$H$20:$H$25) -> 0.03 | BY8: =LOOKUP(BY7-'Inputs (values)'!$H$8,'Inputs (values)'!$C$20:$C$25,'Inputs (values)'!$H$20:$H$25) -> 0.03 | BZ8: =LOOKUP(BZ7-'Inputs (values)'!$H$8,'Inputs (values)'!$C$20:$C$25,'Inputs (values)'!$H$20:$H$25) -> 0.03 | CA8: =LOOKUP(CA7-'Inputs (values)'!$H$8,'Inputs (values)'!$C$20:$C$25,'Inputs (values)'!$H$20:$H$25) -> 0.03 | CB8: =LOOKUP(CB7-'Inputs (values)'!$H$8,'Inputs (values)'!$C$20:$C$25,'Inputs (values)'!$H$20:$H$25) -> 0.03 | CC8: =LOOKUP(CC7-'Inputs (values)'!$H$8,'Inputs (values)'!$C$20:$C$25,'Inputs (values)'!$H$20:$H$25) -> 0.03 | CD8: =LOOKUP(CD7-'Inputs (values)'!$H$8,'Inputs (values)'!$C$20:$C$25,'Inputs (values)'!$H$20:$H$25) -> 0.03 | CE8: =LOOKUP(CE7-'Inputs (values)'!$H$8,'Inputs (values)'!$C$20:$C$25,'Inputs (values)'!$H$20:$H$25) -> 0.03 | CF8: =LOOKUP(CF7-'Inputs (values)'!$H$8,'Inputs (values)'!$C$20:$C$25,'Inputs (values)'!$H$20:$H$25) -> 0.03 | CG8: =LOOKUP(CG7-'Inputs (values)'!$H$8,'Inputs (values)'!$C$20:$C$25,'Inputs (values)'!$H$20:$H$25) -> 0.03 | CH8: =LOOKUP(CH7-'Inputs (values)'!$H$8,'Inputs (values)'!$C$20:$C$25,'Inputs (values)'!$H$20:$H$25) -> 0.025 | CI8: =LOOKUP(CI7-'Inputs (values)'!$H$8,'Inputs (values)'!$C$20:$C$25,'Inputs (values)'!$H$20:$H$25) -> 0.025 | CJ8: =LOOKUP(CJ7-'Inputs (values)'!$H$8,'Inputs (values)'!$C$20:$C$25,'Inputs (values)'!$H$20:$H$25) -> 0.025 | CK8: =LOOKUP(CK7-'Inputs (values)'!$H$8,'Inputs (values)'!$C$20:$C$25,'Inputs (values)'!$H$20:$H$25) -> 0.025 | CL8: =LOOKUP(CL7-'Inputs (values)'!$H$8,'Inputs (values)'!$C$20:$C$25,'Inputs (values)'!$H$20:$H$25) -> 0.025 | CM8: =LOOKUP(CM7-'Inputs (values)'!$H$8,'Inputs (values)'!$C$20:$C$25,'Inputs (values)'!$H$20:$H$25) -> 0.025 | CN8: =LOOKUP(CN7-'Inputs (values)'!$H$8,'Inputs (values)'!$C$20:$C$25,'Inputs (values)'!$H$20:$H$25) -> 0.025 | CO8: =LOOKUP(CO7-'Inputs (values)'!$H$8,'Inputs (values)'!$C$20:$C$25,'Inputs (values)'!$H$20:$H$25) -> 0.025 | CP8: =LOOKUP(CP7-'Inputs (values)'!$H$8,'Inputs (values)'!$C$20:$C$25,'Inputs (values)'!$H$20:$H$25) -> 0.025 | CQ8: =LOOKUP(CQ7-'Inputs (values)'!$H$8,'Inputs (values)'!$C$20:$C$25,'Inputs (values)'!$H$20:$H$25) -> 0.025 | CR8: =LOOKUP(CR7-'Inputs (values)'!$H$8,'Inputs (values)'!$C$20:$C$25,'Inputs (values)'!$H$20:$H$25) -> 0.025 | CS8: =LOOKUP(CS7-'Inputs (values)'!$H$8,'Inputs (values)'!$C$20:$C$25,'Inputs (values)'!$H$20:$H$25) -> 0.025 | CT8: =LOOKUP(CT7-'Inputs (values)'!$H$8,'Inputs (values)'!$C$20:$C$25,'Inputs (values)'!$H$20:$H$25) -> 0.025 | CU8: =LOOKUP(CU7-'Inputs (values)'!$H$8,'Inputs (values)'!$C$20:$C$25,'Inputs (values)'!$H$20:$H$25) -> 0.025 | CV8: =LOOKUP(CV7-'Inputs (values)'!$H$8,'Inputs (values)'!$C$20:$C$25,'Inputs (values)'!$H$20:$H$25) -> 0.025 | CW8: =LOOKUP(CW7-'Inputs (values)'!$H$8,'Inputs (values)'!$C$20:$C$25,'Inputs (values)'!$H$20:$H$25) -> 0.025 | CX8: =LOOKUP(CX7-'Inputs (values)'!$H$8,'Inputs (values)'!$C$20:$C$25,'Inputs (values)'!$H$20:$H$25) -> 0.025 | CY8: =LOOKUP(CY7-'Inputs (values)'!$H$8,'Inputs (values)'!$C$20:$C$25,'Inputs (values)'!$H$20:$H$25) -> 0.025 | CZ8: =LOOKUP(CZ7-'Inputs (values)'!$H$8,'Inputs (values)'!$C$20:$C$25,'Inputs (values)'!$H$20:$H$25) -> 0.025 | DA8: =LOOKUP(DA7-'Inputs (values)'!$H$8,'Inputs (values)'!$C$20:$C$25,'Inputs (values)'!$H$20:$H$25) -> 0.025 | DB8: =LOOKUP(DB7-'Inputs (values)'!$H$8,'Inputs (values)'!$C$20:$C$25,'Inputs (values)'!$H$20:$H$25) -> 0.025 | DC8: =LOOKUP(DC7-'Inputs (values)'!$H$8,'Inputs (values)'!$C$20:$C$25,'Inputs (values)'!$H$20:$H$25) -> 0.025 | DD8: =LOOKUP(DD7-'Inputs (values)'!$H$8,'Inputs (values)'!$C$20:$C$25,'Inputs (values)'!$H$20:$H$25) -> 0.025 | DE8: =LOOKUP(DE7-'Inputs (values)'!$H$8,'Inputs (values)'!$C$20:$C$25,'Inputs (values)'!$H$20:$H$25) -> 0.025 | DF8: =LOOKUP(DF7-'Inputs (values)'!$H$8,'Inputs (values)'!$C$20:$C$25,'Inputs (values)'!$H$20:$H$25) -> 0.025 | DG8: =LOOKUP(DG7-'Inputs (values)'!$H$8,'Inputs (values)'!$C$20:$C$25,'Inputs (values)'!$H$20:$H$25) -> 0.025 | DH8: =LOOKUP(DH7-'Inputs (values)'!$H$8,'Inputs (values)'!$C$20:$C$25,'Inputs (values)'!$H$20:$H$25) -> 0.025 | DI8: =LOOKUP(DI7-'Inputs (values)'!$H$8,'Inputs (values)'!$C$20:$C$25,'Inputs (values)'!$H$20:$H$25) -> 0.025 | DJ8: =LOOKUP(DJ7-'Inputs (values)'!$H$8,'Inputs (values)'!$C$20:$C$25,'Inputs (values)'!$H$20:$H$25) -> 0.025 | DK8: =LOOKUP(DK7-'Inputs (values)'!$H$8,'Inputs (values)'!$C$20:$C$25,'Inputs (values)'!$H$20:$H$25) -> 0.025 | DL8: =LOOKUP(DL7-'Inputs (values)'!$H$8,'Inputs (values)'!$C$20:$C$25,'Inputs (values)'!$H$20:$H$25) -> 0.025 | DM8: =LOOKUP(DM7-'Inputs (values)'!$H$8,'Inputs (values)'!$C$20:$C$25,'Inputs (values)'!$H$20:$H$25) -> 0.025 | DN8: =LOOKUP(DN7-'Inputs (values)'!$H$8,'Inputs (values)'!$C$20:$C$25,'Inputs (values)'!$H$20:$H$25) -> 0.025 | DO8: =LOOKUP(DO7-'Inputs (values)'!$H$8,'Inputs (values)'!$C$20:$C$25,'Inputs (values)'!$H$20:$H$25) -> 0.025 | DP8: =LOOKUP(DP7-'Inputs (values)'!$H$8,'Inputs (values)'!$C$20:$C$25,'Inputs (values)'!$H$20:$H$25) -> 0.025 | DQ8: =LOOKUP(DQ7-'Inputs (values)'!$H$8,'Inputs (values)'!$C$20:$C$25,'Inputs (values)'!$H$20:$H$25) -> 0.025 | DR8: =LOOKUP(DR7-'Inputs (values)'!$H$8,'Inputs (values)'!$C$20:$C$25,'Inputs (values)'!$H$20:$H$25) -> 0.025 | DS8: =LOOKUP(DS7-'Inputs (values)'!$H$8,'Inputs (values)'!$C$20:$C$25,'Inputs (values)'!$H$20:$H$25) -> 0.025 | DT8: =LOOKUP(DT7-'Inputs (values)'!$H$8,'Inputs (values)'!$C$20:$C$25,'Inputs (values)'!$H$20:$H$25) -> 0.025 | DU8: =LOOKUP(DU7-'Inputs (values)'!$H$8,'Inputs (values)'!$C$20:$C$25,'Inputs (values)'!$H$20:$H$25) -> 0.025 | DV8: =LOOKUP(DV7-'Inputs (values)'!$H$8,'Inputs (values)'!$C$20:$C$25,'Inputs (values)'!$H$20:$H$25) -> 0.025 | DW8: =LOOKUP(DW7-'Inputs (values)'!$H$8,'Inputs (values)'!$C$20:$C$25,'Inputs (values)'!$H$20:$H$25) -> 0.025 | DX8: =LOOKUP(DX7-'Inputs (values)'!$H$8,'Inputs (values)'!$C$20:$C$25,'Inputs (values)'!$H$20:$H$25) -> 0.025 | DY8: =LOOKUP(DY7-'Inputs (values)'!$H$8,'Inputs (values)'!$C$20:$C$25,'Inputs (values)'!$H$20:$H$25) -> 0.025 | DZ8: =LOOKUP(DZ7-'Inputs (values)'!$H$8,'Inputs (values)'!$C$20:$C$25,'Inputs (values)'!$H$20:$H$25) -> 0.025 | EA8: =LOOKUP(EA7-'Inputs (values)'!$H$8,'Inputs (values)'!$C$20:$C$25,'Inputs (values)'!$H$20:$H$25) -> 0.025 | EB8: =LOOKUP(EB7-'Inputs (values)'!$H$8,'Inputs (values)'!$C$20:$C$25,'Inputs (values)'!$H$20:$H$25) -> 0.025 | EC8: =LOOKUP(EC7-'Inputs (values)'!$H$8,'Inputs (values)'!$C$20:$C$25,'Inputs (values)'!$H$20:$H$25) -> 0.025 | ED8: =LOOKUP(ED7-'Inputs (values)'!$H$8,'Inputs (values)'!$C$20:$C$25,'Inputs (values)'!$H$20:$H$25) -> 0.025 | EE8: =LOOKUP(EE7-'Inputs (values)'!$H$8,'Inputs (values)'!$C$20:$C$25,'Inputs (values)'!$H$20:$H$25) -> 0.025 | EF8: =LOOKUP(EF7-'Inputs (values)'!$H$8,'Inputs (values)'!$C$20:$C$25,'Inputs (values)'!$H$20:$H$25) -> 0.02 | EG8: =LOOKUP(EG7-'Inputs (values)'!$H$8,'Inputs (values)'!$C$20:$C$25,'Inputs (values)'!$H$20:$H$25) -> 0.02 | EH8: =LOOKUP(EH7-'Inputs (values)'!$H$8,'Inputs (values)'!$C$20:$C$25,'Inputs (values)'!$H$20:$H$25) -> 0.02 | EI8: =LOOKUP(EI7-'Inputs (values)'!$H$8,'Inputs (values)'!$C$20:$C$25,'Inputs (values)'!$H$20:$H$25) -> 0.02 | EJ8: =LOOKUP(EJ7-'Inputs (values)'!$H$8,'Inputs (values)'!$C$20:$C$25,'Inputs (values)'!$H$20:$H$25) -> 0.02 | EK8: =LOOKUP(EK7-'Inputs (values)'!$H$8,'Inputs (values)'!$C$20:$C$25,'Inputs (values)'!$H$20:$H$25) -> 0.02 | EL8: =LOOKUP(EL7-'Inputs (values)'!$H$8,'Inputs (values)'!$C$20:$C$25,'Inputs (values)'!$H$20:$H$25) -> 0.02 | EM8: =LOOKUP(EM7-'Inputs (values)'!$H$8,'Inputs (values)'!$C$20:$C$25,'Inputs (values)'!$H$20:$H$25) -> 0.02 | EN8: =LOOKUP(EN7-'Inputs (values)'!$H$8,'Inputs (values)'!$C$20:$C$25,'Inputs (values)'!$H$20:$H$25) -> 0.02 | EO8: =LOOKUP(EO7-'Inputs (values)'!$H$8,'Inputs (values)'!$C$20:$C$25,'Inputs (values)'!$H$20:$H$25) -> 0.02 | EP8: =LOOKUP(EP7-'Inputs (values)'!$H$8,'Inputs (values)'!$C$20:$C$25,'Inputs (values)'!$H$20:$H$25) -> 0.02 | EQ8: =LOOKUP(EQ7-'Inputs (values)'!$H$8,'Inputs (values)'!$C$20:$C$25,'Inputs (values)'!$H$20:$H$25) -> 0.02 | ER8: =LOOKUP(ER7-'Inputs (values)'!$H$8,'Inputs (values)'!$C$20:$C$25,'Inputs (values)'!$H$20:$H$25) -> 0.02 | ES8: =LOOKUP(ES7-'Inputs (values)'!$H$8,'Inputs (values)'!$C$20:$C$25,'Inputs (values)'!$H$20:$H$25) -> 0.02 | ET8: =LOOKUP(ET7-'Inputs (values)'!$H$8,'Inputs (values)'!$C$20:$C$25,'Inputs (values)'!$H$20:$H$25) -> 0.02 | EU8: =LOOKUP(EU7-'Inputs (values)'!$H$8,'Inputs (values)'!$C$20:$C$25,'Inputs (values)'!$H$20:$H$25) -> 0.02 | EV8: =LOOKUP(EV7-'Inputs (values)'!$H$8,'Inputs (values)'!$C$20:$C$25,'Inputs (values)'!$H$20:$H$25) -> 0.02 | EW8: =LOOKUP(EW7-'Inputs (values)'!$H$8,'Inputs (values)'!$C$20:$C$25,'Inputs (values)'!$H$20:$H$25) -> 0.02 | EX8: =LOOKUP(EX7-'Inputs (values)'!$H$8,'Inputs (values)'!$C$20:$C$25,'Inputs (values)'!$H$20:$H$25) -> 0.02 | EY8: =LOOKUP(EY7-'Inputs (values)'!$H$8,'Inputs (values)'!$C$20:$C$25,'Inputs (values)'!$H$20:$H$25) -> 0.02 | EZ8: =LOOKUP(EZ7-'Inputs (values)'!$H$8,'Inputs (values)'!$C$20:$C$25,'Inputs (values)'!$H$20:$H$25) -> 0.02 | FA8: =LOOKUP(FA7-'Inputs (values)'!$H$8,'Inputs (values)'!$C$20:$C$25,'Inputs (values)'!$H$20:$H$25) -> 0.02 | FB8: =LOOKUP(FB7-'Inputs (values)'!$H$8,'Inputs (values)'!$C$20:$C$25,'Inputs (values)'!$H$20:$H$25) -> 0.02 | FC8: =LOOKUP(FC7-'Inputs (values)'!$H$8,'Inputs (values)'!$C$20:$C$25,'Inputs (values)'!$H$20:$H$25) -> 0.02 | FD8: =LOOKUP(FD7-'Inputs (values)'!$H$8,'Inputs (values)'!$C$20:$C$25,'Inputs (values)'!$H$20:$H$25) -> 0.02 | FE8: =LOOKUP(FE7-'Inputs (values)'!$H$8,'Inputs (values)'!$C$20:$C$25,'Inputs (values)'!$H$20:$H$25) -> 0.02 | FF8: =LOOKUP(FF7-'Inputs (values)'!$H$8,'Inputs (values)'!$C$20:$C$25,'Inputs (values)'!$H$20:$H$25) -> 0.02 | FG8: =LOOKUP(FG7-'Inputs (values)'!$H$8,'Inputs (values)'!$C$20:$C$25,'Inputs (values)'!$H$20:$H$25) -> 0.02 | FH8: =LOOKUP(FH7-'Inputs (values)'!$H$8,'Inputs (values)'!$C$20:$C$25,'Inputs (values)'!$H$20:$H$25) -> 0.02 | FI8: =LOOKUP(FI7-'Inputs (values)'!$H$8,'Inputs (values)'!$C$20:$C$25,'Inputs (values)'!$H$20:$H$25) -> 0.02 | FJ8: =LOOKUP(FJ7-'Inputs (values)'!$H$8,'Inputs (values)'!$C$20:$C$25,'Inputs (values)'!$H$20:$H$25) -> 0.02 | FK8: =LOOKUP(FK7-'Inputs (values)'!$H$8,'Inputs (values)'!$C$20:$C$25,'Inputs (values)'!$H$20:$H$25) -> 0.02 | FL8: =LOOKUP(FL7-'Inputs (values)'!$H$8,'Inputs (values)'!$C$20:$C$25,'Inputs (values)'!$H$20:$H$25) -> 0.02 | FM8: =LOOKUP(FM7-'Inputs (values)'!$H$8,'Inputs (values)'!$C$20:$C$25,'Inputs (values)'!$H$20:$H$25) -> 0.02 | FN8: =LOOKUP(FN7-'Inputs (values)'!$H$8,'Inputs (values)'!$C$20:$C$25,'Inputs (values)'!$H$20:$H$25) -> 0.02 | FO8: =LOOKUP(FO7-'Inputs (values)'!$H$8,'Inputs (values)'!$C$20:$C$25,'Inputs (values)'!$H$20:$H$25) -> 0.02 | FP8: =LOOKUP(FP7-'Inputs (values)'!$H$8,'Inputs (values)'!$C$20:$C$25,'Inputs (values)'!$H$20:$H$25) -> 0.02 | FQ8: =LOOKUP(FQ7-'Inputs (values)'!$H$8,'Inputs (values)'!$C$20:$C$25,'Inputs (values)'!$H$20:$H$25) -> 0.02 | FR8: =LOOKUP(FR7-'Inputs (values)'!$H$8,'Inputs (values)'!$C$20:$C$25,'Inputs (values)'!$H$20:$H$25) -> 0.02 | FS8: =LOOKUP(FS7-'Inputs (values)'!$H$8,'Inputs (values)'!$C$20:$C$25,'Inputs (values)'!$H$20:$H$25) -> 0.02 | FT8: =LOOKUP(FT7-'Inputs (values)'!$H$8,'Inputs (values)'!$C$20:$C$25,'Inputs (values)'!$H$20:$H$25) -> 0.02 | FU8: =LOOKUP(FU7-'Inputs (values)'!$H$8,'Inputs (values)'!$C$20:$C$25,'Inputs (values)'!$H$20:$H$25) -> 0.02 | FV8: =LOOKUP(FV7-'Inputs (values)'!$H$8,'Inputs (values)'!$C$20:$C$25,'Inputs (values)'!$H$20:$H$25) -> 0.02 | FW8: =LOOKUP(FW7-'Inputs (values)'!$H$8,'Inputs (values)'!$C$20:$C$25,'Inputs (values)'!$H$20:$H$25) -> 0.02 | FX8: =LOOKUP(FX7-'Inputs (values)'!$H$8,'Inputs (values)'!$C$20:$C$25,'Inputs (values)'!$H$20:$H$25) -> 0.02 | FY8: =LOOKUP(FY7-'Inputs (values)'!$H$8,'Inputs (values)'!$C$20:$C$25,'Inputs (values)'!$H$20:$H$25) -> 0.02 | FZ8: =LOOKUP(FZ7-'Inputs (values)'!$H$8,'Inputs (values)'!$C$20:$C$25,'Inputs (values)'!$H$20:$H$25) -> 0.02 | GA8: =LOOKUP(GA7-'Inputs (values)'!$H$8,'Inputs (values)'!$C$20:$C$25,'Inputs (values)'!$H$20:$H$25) -> 0.02 | GB8: =LOOKUP(GB7-'Inputs (values)'!$H$8,'Inputs (values)'!$C$20:$C$25,'Inputs (values)'!$H$20:$H$25) -> 0.02 | GC8: =LOOKUP(GC7-'Inputs (values)'!$H$8,'Inputs (values)'!$C$20:$C$25,'Inputs (values)'!$H$20:$H$25) -> 0.02 | GD8: =LOOKUP(GD7-'Inputs (values)'!$H$8,'Inputs (values)'!$C$20:$C$25,'Inputs (values)'!$H$20:$H$25) -> 0.02 | GE8: =LOOKUP(GE7-'Inputs (values)'!$H$8,'Inputs (values)'!$C$20:$C$25,'Inputs (values)'!$H$20:$H$25) -> 0.02 | GF8: =LOOKUP(GF7-'Inputs (values)'!$H$8,'Inputs (values)'!$C$20:$C$25,'Inputs (values)'!$H$20:$H$25) -> 0.02 | GG8: =LOOKUP(GG7-'Inputs (values)'!$H$8,'Inputs (values)'!$C$20:$C$25,'Inputs (values)'!$H$20:$H$25) -> 0.02 | GH8: =LOOKUP(GH7-'Inputs (values)'!$H$8,'Inputs (values)'!$C$20:$C$25,'Inputs (values)'!$H$20:$H$25) -> 0.02 | GI8: =LOOKUP(GI7-'Inputs (values)'!$H$8,'Inputs (values)'!$C$20:$C$25,'Inputs (values)'!$H$20:$H$25) -> 0.02 | GJ8: =LOOKUP(GJ7-'Inputs (values)'!$H$8,'Inputs (values)'!$C$20:$C$25,'Inputs (values)'!$H$20:$H$25) -> 0.02 | GK8: =LOOKUP(GK7-'Inputs (values)'!$H$8,'Inputs (values)'!$C$20:$C$25,'Inputs (values)'!$H$20:$H$25) -> 0.02 | GL8: =LOOKUP(GL7-'Inputs (values)'!$H$8,'Inputs (values)'!$C$20:$C$25,'Inputs (values)'!$H$20:$H$25) -> 0.02 | GM8: =LOOKUP(GM7-'Inputs (values)'!$H$8,'Inputs (values)'!$C$20:$C$25,'Inputs (values)'!$H$20:$H$25) -> 0.02 | GN8: =LOOKUP(GN7-'Inputs (values)'!$H$8,'Inputs (values)'!$C$20:$C$25,'Inputs (values)'!$H$20:$H$25) -> 0.02 | GO8: =LOOKUP(GO7-'Inputs (values)'!$H$8,'Inputs (values)'!$C$20:$C$25,'Inputs (values)'!$H$20:$H$25) -> 0.02 | GP8: =LOOKUP(GP7-'Inputs (values)'!$H$8,'Inputs (values)'!$C$20:$C$25,'Inputs (values)'!$H$20:$H$25) -> 0.02 | GQ8: =LOOKUP(GQ7-'Inputs (values)'!$H$8,'Inputs (values)'!$C$20:$C$25,'Inputs (values)'!$H$20:$H$25) -> 0.02 | GR8: =LOOKUP(GR7-'Inputs (values)'!$H$8,'Inputs (values)'!$C$20:$C$25,'Inputs (values)'!$H$20:$H$25) -> 0.02 | GS8: =LOOKUP(GS7-'Inputs (values)'!$H$8,'Inputs (values)'!$C$20:$C$25,'Inputs (values)'!$H$20:$H$25) -> 0.02 | GT8: =LOOKUP(GT7-'Inputs (values)'!$H$8,'Inputs (values)'!$C$20:$C$25,'Inputs (values)'!$H$20:$H$25) -> 0.02 | GU8: =LOOKUP(GU7-'Inputs (values)'!$H$8,'Inputs (values)'!$C$20:$C$25,'Inputs (values)'!$H$20:$H$25) -> 0.02 | GV8: =LOOKUP(GV7-'Inputs (values)'!$H$8,'Inputs (values)'!$C$20:$C$25,'Inputs (values)'!$H$20:$H$25) -> 0.02 | GW8: =LOOKUP(GW7-'Inputs (values)'!$H$8,'Inputs (values)'!$C$20:$C$25,'Inputs (values)'!$H$20:$H$25) -> 0.02 | GX8: =LOOKUP(GX7-'Inputs (values)'!$H$8,'Inputs (values)'!$C$20:$C$25,'Inputs (values)'!$H$20:$H$25) -> 0.02 | GY8: =LOOKUP(GY7-'Inputs (values)'!$H$8,'Inputs (values)'!$C$20:$C$25,'Inputs (values)'!$H$20:$H$25) -> 0.02 | GZ8: =LOOKUP(GZ7-'Inputs (values)'!$H$8,'Inputs (values)'!$C$20:$C$25,'Inputs (values)'!$H$20:$H$25) -> 0.02 | HA8: =LOOKUP(HA7-'Inputs (values)'!$H$8,'Inputs (values)'!$C$20:$C$25,'Inputs (values)'!$H$20:$H$25) -> 0.02 | HB8: =LOOKUP(HB7-'Inputs (values)'!$H$8,'Inputs (values)'!$C$20:$C$25,'Inputs (values)'!$H$20:$H$25) -> 0.02 | HC8: =LOOKUP(HC7-'Inputs (values)'!$H$8,'Inputs (values)'!$C$20:$C$25,'Inputs (values)'!$H$20:$H$25) -> 0.015 | HD8: =LOOKUP(HD7-'Inputs (values)'!$H$8,'Inputs (values)'!$C$20:$C$25,'Inputs (values)'!$H$20:$H$25) -> 0.015 | HE8: =LOOKUP(HE7-'Inputs (values)'!$H$8,'Inputs (values)'!$C$20:$C$25,'Inputs (values)'!$H$20:$H$25) -> 0.015 | HF8: =LOOKUP(HF7-'Inputs (values)'!$H$8,'Inputs (values)'!$C$20:$C$25,'Inputs (values)'!$H$20:$H$25) -> 0.015 | HG8: =LOOKUP(HG7-'Inputs (values)'!$H$8,'Inputs (values)'!$C$20:$C$25,'Inputs (values)'!$H$20:$H$25) -> 0.015 | HH8: =LOOKUP(HH7-'Inputs (values)'!$H$8,'Inputs (values)'!$C$20:$C$25,'Inputs (values)'!$H$20:$H$25) -> 0.015 | HI8: =LOOKUP(HI7-'Inputs (values)'!$H$8,'Inputs (values)'!$C$20:$C$25,'Inputs (values)'!$H$20:$H$25) -> 0.015 | HJ8: =LOOKUP(HJ7-'Inputs (values)'!$H$8,'Inputs (values)'!$C$20:$C$25,'Inputs (values)'!$H$20:$H$25) -> 0.015 | HK8: =LOOKUP(HK7-'Inputs (values)'!$H$8,'Inputs (values)'!$C$20:$C$25,'Inputs (values)'!$H$20:$H$25) -> 0.015 | HL8: =LOOKUP(HL7-'Inputs (values)'!$H$8,'Inputs (values)'!$C$20:$C$25,'Inputs (values)'!$H$20:$H$25) -> 0.015 | HM8: =LOOKUP(HM7-'Inputs (values)'!$H$8,'Inputs (values)'!$C$20:$C$25,'Inputs (values)'!$H$20:$H$25) -> 0.015 | HN8: =LOOKUP(HN7-'Inputs (values)'!$H$8,'Inputs (values)'!$C$20:$C$25,'Inputs (values)'!$H$20:$H$25) -> 0.015 | HO8: =LOOKUP(HO7-'Inputs (values)'!$H$8,'Inputs (values)'!$C$20:$C$25,'Inputs (values)'!$H$20:$H$25) -> 0.015 | HP8: =LOOKUP(HP7-'Inputs (values)'!$H$8,'Inputs (values)'!$C$20:$C$25,'Inputs (values)'!$H$20:$H$25) -> 0.015 | HQ8: =LOOKUP(HQ7-'Inputs (values)'!$H$8,'Inputs (values)'!$C$20:$C$25,'Inputs (values)'!$H$20:$H$25) -> 0.015 | HR8: =LOOKUP(HR7-'Inputs (values)'!$H$8,'Inputs (values)'!$C$20:$C$25,'Inputs (values)'!$H$20:$H$25) -> 0.015 | HS8: =LOOKUP(HS7-'Inputs (values)'!$H$8,'Inputs (values)'!$C$20:$C$25,'Inputs (values)'!$H$20:$H$25) -> 0.015 | HT8: =LOOKUP(HT7-'Inputs (values)'!$H$8,'Inputs (values)'!$C$20:$C$25,'Inputs (values)'!$H$20:$H$25) -> 0.015 | HU8: =LOOKUP(HU7-'Inputs (values)'!$H$8,'Inputs (values)'!$C$20:$C$25,'Inputs (values)'!$H$20:$H$25) -> 0.015 | HV8: =LOOKUP(HV7-'Inputs (values)'!$H$8,'Inputs (values)'!$C$20:$C$25,'Inputs (values)'!$H$20:$H$25) -> 0.015 | HW8: =LOOKUP(HW7-'Inputs (values)'!$H$8,'Inputs (values)'!$C$20:$C$25,'Inputs (values)'!$H$20:$H$25) -> 0.015 | HX8: =LOOKUP(HX7-'Inputs (values)'!$H$8,'Inputs (values)'!$C$20:$C$25,'Inputs (values)'!$H$20:$H$25) -> 0.015 | HY8: =LOOKUP(HY7-'Inputs (values)'!$H$8,'Inputs (values)'!$C$20:$C$25,'Inputs (values)'!$H$20:$H$25) -> 0.015 | HZ8: =LOOKUP(HZ7-'Inputs (values)'!$H$8,'Inputs (values)'!$C$20:$C$25,'Inputs (values)'!$H$20:$H$25) -> 0.015 | IA8: =LOOKUP(IA7-'Inputs (values)'!$H$8,'Inputs (values)'!$C$20:$C$25,'Inputs (values)'!$H$20:$H$25) -> 0.015 | IB8: =LOOKUP(IB7-'Inputs (values)'!$H$8,'Inputs (values)'!$C$20:$C$25,'Inputs (values)'!$H$20:$H$25) -> 0.015 | IC8: =LOOKUP(IC7-'Inputs (values)'!$H$8,'Inputs (values)'!$C$20:$C$25,'Inputs (values)'!$H$20:$H$25) -> 0.015 | ID8: =LOOKUP(ID7-'Inputs (values)'!$H$8,'Inputs (values)'!$C$20:$C$25,'Inputs (values)'!$H$20:$H$25) -> 0.015 | IE8: =LOOKUP(IE7-'Inputs (values)'!$H$8,'Inputs (values)'!$C$20:$C$25,'Inputs (values)'!$H$20:$H$25) -> 0.015 | IF8: =LOOKUP(IF7-'Inputs (values)'!$H$8,'Inputs (values)'!$C$20:$C$25,'Inputs (values)'!$H$20:$H$25) -> 0.015 | IG8: =LOOKUP(IG7-'Inputs (values)'!$H$8,'Inputs (values)'!$C$20:$C$25,'Inputs (values)'!$H$20:$H$25) -> 0.015 | IH8: =LOOKUP(IH7-'Inputs (values)'!$H$8,'Inputs (values)'!$C$20:$C$25,'Inputs (values)'!$H$20:$H$25) -> 0.015 | II8: =LOOKUP(II7-'Inputs (values)'!$H$8,'Inputs (values)'!$C$20:$C$25,'Inputs (values)'!$H$20:$H$25) -> 0.015 | IJ8: =LOOKUP(IJ7-'Inputs (values)'!$H$8,'Inputs (values)'!$C$20:$C$25,'Inputs (values)'!$H$20:$H$25) -> 0.015 | IK8: =LOOKUP(IK7-'Inputs (values)'!$H$8,'Inputs (values)'!$C$20:$C$25,'Inputs (values)'!$H$20:$H$25) -> 0.015 | IL8: =LOOKUP(IL7-'Inputs (values)'!$H$8,'Inputs (values)'!$C$20:$C$25,'Inputs (values)'!$H$20:$H$25) -> 0.015 | IM8: =LOOKUP(IM7-'Inputs (values)'!$H$8,'Inputs (values)'!$C$20:$C$25,'Inputs (values)'!$H$20:$H$25) -> 0.015 | IN8: =LOOKUP(IN7-'Inputs (values)'!$H$8,'Inputs (values)'!$C$20:$C$25,'Inputs (values)'!$H$20:$H$25) -> 0.015 | IO8: =LOOKUP(IO7-'Inputs (values)'!$H$8,'Inputs (values)'!$C$20:$C$25,'Inputs (values)'!$H$20:$H$25) -> 0.015 | IP8: =LOOKUP(IP7-'Inputs (values)'!$H$8,'Inputs (values)'!$C$20:$C$25,'Inputs (values)'!$H$20:$H$25) -> 0.015 | IQ8: =LOOKUP(IQ7-'Inputs (values)'!$H$8,'Inputs (values)'!$C$20:$C$25,'Inputs (values)'!$H$20:$H$25) -> 0.015 | IR8: =LOOKUP(IR7-'Inputs (values)'!$H$8,'Inputs (values)'!$C$20:$C$25,'Inputs (values)'!$H$20:$H$25) -> 0.015 | IS8: =LOOKUP(IS7-'Inputs (values)'!$H$8,'Inputs (values)'!$C$20:$C$25,'Inputs (values)'!$H$20:$H$25) -> 0.015 | IT8: =LOOKUP(IT7-'Inputs (values)'!$H$8,'Inputs (values)'!$C$20:$C$25,'Inputs (values)'!$H$20:$H$25) -> 0.015 | IU8: =LOOKUP(IU7-'Inputs (values)'!$H$8,'Inputs (values)'!$C$20:$C$25,'Inputs (values)'!$H$20:$H$25) -> 0.015 | IV8: =LOOKUP(IV7-'Inputs (values)'!$H$8,'Inputs (values)'!$C$20:$C$25,'Inputs (values)'!$H$20:$H$25) -> 0.015 | IW8: =LOOKUP(IW7-'Inputs (values)'!$H$8,'Inputs (values)'!$C$20:$C$25,'Inputs (values)'!$H$20:$H$25) -> 0.015 | IX8: =LOOKUP(IX7-'Inputs (values)'!$H$8,'Inputs (values)'!$C$20:$C$25,'Inputs (values)'!$H$20:$H$25) -> 0.015 | IY8: =LOOKUP(IY7-'Inputs (values)'!$H$8,'Inputs (values)'!$C$20:$C$25,'Inputs (values)'!$H$20:$H$25) -> 0.015 | IZ8: =LOOKUP(IZ7-'Inputs (values)'!$H$8,'Inputs (values)'!$C$20:$C$25,'Inputs (values)'!$H$20:$H$25) -> 0.015 | JA8: =LOOKUP(JA7-'Inputs (values)'!$H$8,'Inputs (values)'!$C$20:$C$25,'Inputs (values)'!$H$20:$H$25) -> 0.015 | JB8: =LOOKUP(JB7-'Inputs (values)'!$H$8,'Inputs (values)'!$C$20:$C$25,'Inputs (values)'!$H$20:$H$25) -> 0.015 | JC8: =LOOKUP(JC7-'Inputs (values)'!$H$8,'Inputs (values)'!$C$20:$C$25,'Inputs (values)'!$H$20:$H$25) -> 0.015 | JD8: =LOOKUP(JD7-'Inputs (values)'!$H$8,'Inputs (values)'!$C$20:$C$25,'Inputs (values)'!$H$20:$H$25) -> 0.015 | JE8: =LOOKUP(JE7-'Inputs (values)'!$H$8,'Inputs (values)'!$C$20:$C$25,'Inputs (values)'!$H$20:$H$25) -> 0.015 | JF8: =LOOKUP(JF7-'Inputs (values)'!$H$8,'Inputs (values)'!$C$20:$C$25,'Inputs (values)'!$H$20:$H$25) -> 0.015 | JG8: =LOOKUP(JG7-'Inputs (values)'!$H$8,'Inputs (values)'!$C$20:$C$25,'Inputs (values)'!$H$20:$H$25) -> 0.015 | JH8: =LOOKUP(JH7-'Inputs (values)'!$H$8,'Inputs (values)'!$C$20:$C$25,'Inputs (values)'!$H$20:$H$25) -> 0.015 | JI8: =LOOKUP(JI7-'Inputs (values)'!$H$8,'Inputs (values)'!$C$20:$C$25,'Inputs (values)'!$H$20:$H$25) -> 0.015 | JJ8: =LOOKUP(JJ7-'Inputs (values)'!$H$8,'Inputs (values)'!$C$20:$C$25,'Inputs (values)'!$H$20:$H$25) -> 0.015 | JK8: =LOOKUP(JK7-'Inputs (values)'!$H$8,'Inputs (values)'!$C$20:$C$25,'Inputs (values)'!$H$20:$H$25) -> 0.015 | JL8: =LOOKUP(JL7-'Inputs (values)'!$H$8,'Inputs (values)'!$C$20:$C$25,'Inputs (values)'!$H$20:$H$25) -> 0.015 | JM8: =LOOKUP(JM7-'Inputs (values)'!$H$8,'Inputs (values)'!$C$20:$C$25,'Inputs (values)'!$H$20:$H$25) -> 0.015 | JN8: =LOOKUP(JN7-'Inputs (values)'!$H$8,'Inputs (values)'!$C$20:$C$25,'Inputs (values)'!$H$20:$H$25) -> 0.015 | JO8: =LOOKUP(JO7-'Inputs (values)'!$H$8,'Inputs (values)'!$C$20:$C$25,'Inputs (values)'!$H$20:$H$25) -> 0.015 | JP8: =LOOKUP(JP7-'Inputs (values)'!$H$8,'Inputs (values)'!$C$20:$C$25,'Inputs (values)'!$H$20:$H$25) -> 0.015 | JQ8: =LOOKUP(JQ7-'Inputs (values)'!$H$8,'Inputs (values)'!$C$20:$C$25,'Inputs (values)'!$H$20:$H$25) -> 0.015 | JR8: =LOOKUP(JR7-'Inputs (values)'!$H$8,'Inputs (values)'!$C$20:$C$25,'Inputs (values)'!$H$20:$H$25) -> 0.015 | JS8: =LOOKUP(JS7-'Inputs (values)'!$H$8,'Inputs (values)'!$C$20:$C$25,'Inputs (values)'!$H$20:$H$25) -> 0.015 | JT8: =LOOKUP(JT7-'Inputs (values)'!$H$8,'Inputs (values)'!$C$20:$C$25,'Inputs (values)'!$H$20:$H$25) -> 0.015 | JU8: =LOOKUP(JU7-'Inputs (values)'!$H$8,'Inputs (values)'!$C$20:$C$25,'Inputs (values)'!$H$20:$H$25) -> 0.015 | JV8: =LOOKUP(JV7-'Inputs (values)'!$H$8,'Inputs (values)'!$C$20:$C$25,'Inputs (values)'!$H$20:$H$25) -> 0.015 | JW8: =LOOKUP(JW7-'Inputs (values)'!$H$8,'Inputs (values)'!$C$20:$C$25,'Inputs (values)'!$H$20:$H$25) -> 0.015 | JX8: =LOOKUP(JX7-'Inputs (values)'!$H$8,'Inputs (values)'!$C$20:$C$25,'Inputs (values)'!$H$20:$H$25) -> 0.015 | JY8: =LOOKUP(JY7-'Inputs (values)'!$H$8,'Inputs (values)'!$C$20:$C$25,'Inputs (values)'!$H$20:$H$25) -> 0.015 | JZ8: =LOOKUP(JZ7-'Inputs (values)'!$H$8,'Inputs (values)'!$C$20:$C$25,'Inputs (values)'!$H$20:$H$25) -> 0.015 | KA8: =LOOKUP(KA7-'Inputs (values)'!$H$8,'Inputs (values)'!$C$20:$C$25,'Inputs (values)'!$H$20:$H$25) -> 0.015
C11: Discount factors
H13: Year
H14: ='Inputs (values)'!$H$13 -> 2023 | I14: =H14+1 -> 2024 | J14: =I14+1 -> 2025 | K14: 2026 | L14: 2027 | M14: 2028 | N14: 2029 | O14: 2030 | P14: 2031 | Q14: 2032 | R14: 2033 | S14: 2034 | T14: 2035 | U14: 2036 | V14: 2037 | W14: 2038 | X14: 2039 | Y14: 2040 | Z14: 2041 | AA14: 2042 | AB14: 2043 | AC14: 2044 | AD14: 2045 | AE14: 2046 | AF14: 2047 | AG14: 2048 | AH14: 2049 | AI14: 2050 | AJ14: 2051 | AK14: 2052 | AL14: 2053 | AM14: 2054 | AN14: 2055 | AO14: 2056 | AP14: 2057 | AQ14: 2058 | AR14: 2059 | AS14: 2060 | AT14: 2061 | AU14: 2062 | AV14: 2063 | AW14: 2064 | AX14: 2065 | AY14: 2066 | AZ14: 2067 | BA14: 2068 | BB14: 2069 | BC14: 2070 | BD14: 2071 | BE14: 2072 | BF14: 2073 | BG14: 2074 | BH14: 2075 | BI14: 2076 | BJ14: 2077 | BK14: 2078 | BL14: 2079 | BM14: 2080 | BN14: 2081 | BO14: 2082 | BP14: 2083 | BQ14: 2084 | BR14: 2085 | BS14: 2086 | BT14: 2087 | BU14: 2088 | BV14: =BU14+1 -> 2089 | BW14: 2090 | BX14: 2091 | BY14: 2092 | BZ14: 2093 | CA14: 2094 | CB14: 2095 | CC14: 2096 | CD14: 2097 | CE14: 2098 | CF14: 2099 | CG14: 2100 | CH14: 2101 | CI14: 2102 | CJ14: 2103 | CK14: 2104 | CL14: 2105 | CM14: 2106 | CN14: 2107 | CO14: 2108 | CP14: 2109 | CQ14: 2110 | CR14: 2111 | CS14: 2112 | CT14: 2113 | CU14: 2114 | CV14: 2115 | CW14: 2116 | CX14: 2117 | CY14: 2118 | CZ14: 2119 | DA14: 2120 | DB14: 2121 | DC14: 2122 | DD14: 2123 | DE14: 2124 | DF14: 2125 | DG14: 2126 | DH14: 2127 | DI14: 2128 | DJ14: 2129 | DK14: 2130 | DL14: 2131 | DM14: 2132 | DN14: 2133 | DO14: 2134 | DP14: 2135 | DQ14: 2136 | DR14: 2137 | DS14: 2138 | DT14: 2139 | DU14: 2140 | DV14: 2141 | DW14: 2142 | DX14: 2143 | DY14: 2144 | DZ14: 2145 | EA14: 2146 | EB14: 2147 | EC14: 2148 | ED14: 2149 | EE14: 2150 | EF14: 2151 | EG14: 2152 | EH14: =EG14+1 -> 2153 | EI14: 2154 | EJ14: 2155 | EK14: 2156 | EL14: 2157 | EM14: 2158 | EN14: 2159 | EO14: 2160 | EP14: 2161 | EQ14: 2162 | ER14: 2163 | ES14: 2164 | ET14: 2165 | EU14: 2166 | EV14: 2167 | EW14: 2168 | EX14: 2169 | EY14: 2170 | EZ14: 2171 | FA14: 2172 | FB14: 2173 | FC14: 2174 | FD14: 2175 | FE14: 2176 | FF14: 2177 | FG14: 2178 | FH14: 2179 | FI14: 2180 | FJ14: 2181 | FK14: 2182 | FL14: 2183 | FM14: 2184 | FN14: 2185 | FO14: 2186 | FP14: 2187 | FQ14: 2188 | FR14: 2189 | FS14: 2190 | FT14: 2191 | FU14: 2192 | FV14: 2193 | FW14: 2194 | FX14: 2195 | FY14: 2196 | FZ14: 2197 | GA14: 2198 | GB14: 2199 | GC14: 2200 | GD14: 2201 | GE14: 2202 | GF14: 2203 | GG14: 2204 | GH14: 2205 | GI14: 2206 | GJ14: 2207 | GK14: 2208 | GL14: 2209 | GM14: 2210 | GN14: 2211 | GO14: 2212 | GP14: 2213 | GQ14: 2214 | GR14: 2215 | GS14: 2216 | GT14: =GS14+1 -> 2217 | GU14: 2218 | GV14: 2219 | GW14: 2220 | GX14: 2221 | GY14: 2222 | GZ14: 2223 | HA14: 2224 | HB14: 2225 | HC14: 2226 | HD14: 2227 | HE14: 2228 | HF14: 2229 | HG14: 2230 | HH14: 2231 | HI14: 2232 | HJ14: 2233 | HK14: 2234 | HL14: 2235 | HM14: 2236 | HN14: 2237 | HO14: 2238 | HP14: 2239 | HQ14: 2240 | HR14: 2241 | HS14: 2242 | HT14: 2243 | HU14: 2244 | HV14: 2245 | HW14: 2246 | HX14: 2247 | HY14: 2248 | HZ14: 2249 | IA14: 2250 | IB14: 2251 | IC14: 2252 | ID14: 2253 | IE14: 2254 | IF14: 2255 | IG14: 2256 | IH14: 2257 | II14: 2258 | IJ14: 2259 | IK14: 2260 | IL14: 2261 | IM14: 2262 | IN14: 2263 | IO14: 2264 | IP14: 2265 | IQ14: 2266 | IR14: 2267 | IS14: 2268 | IT14: 2269 | IU14: 2270 | IV14: 2271 | IW14: 2272 | IX14: 2273 | IY14: 2274 | IZ14: 2275 | JA14: 2276 | JB14: 2277 | JC14: 2278 | JD14: 2279 | JE14: 2280 | JF14: =JE14+1 -> 2281 | JG14: 2282 | JH14: 2283 | JI14: 2284 | JJ14: 2285 | JK14: 2286 | JL14: 2287 | JM14: 2288 | JN14: 2289 | JO14: 2290 | JP14: 2291 | JQ14: 2292 | JR14: 2293 | JS14: 2294 | JT14: 2295 | JU14: 2296 | JV14: 2297 | JW14: 2298 | JX14: 2299 | JY14: 2300 | JZ14: 2301 | KA14: 2302
C15: Discount factors | H15: 1 | I15: =H15/(1+I8) -> 0.9661835749 | J15: 0.9335107004 | K15: 0.9019427057 | L15: 0.8714422277 | M15: 0.8419731669 | N15: 0.8135006443 | O15: 0.7859909607 | P15: 0.7594115562 | Q15: 0.7337309722 | R15: 0.7089188137 | S15: 0.6849457137 | T15: 0.6617832983 | U15: 0.6394041529 | V15: 0.6177817903 | W15: 0.5968906186 | X15: 0.5767059117 | Y15: 0.5572037794 | Z15: 0.5383611396 | AA15: 0.5201556904 | AB15: 0.5025658844 | AC15: 0.4855709028 | AD15: 0.4691506308 | AE15: 0.4532856336 | AF15: 0.4379571339 | AG15: 0.4231469893 | AH15: 0.4088376708 | AI15: 0.3950122423 | AJ15: 0.3816543404 | AK15: 0.368748155 | AL15: 0.3562784106 | AM15: 0.3442303484 | AN15: 0.3325897086 | AO15: 0.3229026297 | AP15: 0.3134976988 | AQ15: 0.3043666978 | AR15: 0.2955016484 | AS15: 0.2868948042 | AT15: 0.2785386449 | AU15: 0.2704258688 | AV15: 0.2625493872 | AW15: 0.2549023177 | AX15: 0.2474779783 | AY15: 0.2402698819 | AZ15: 0.23327173 | BA15: 0.2264774077 | BB15: 0.2198809784 | BC15: 0.2134766781 | BD15: 0.2072589107 | BE15: 0.2012222434 | BF15: 0.1953614014 | BG15: 0.1896712635 | BH15: 0.1841468577 | BI15: 0.178783357 | BJ15: 0.1735760748 | BK15: 0.168520461 | BL15: 0.163612098 | BM15: 0.1588466971 | BN15: 0.1542200943 | BO15: 0.1497282469 | BP15: 0.14536723 | BQ15: 0.141133233 | BR15: 0.1370225563 | BS15: 0.1330316081 | BT15: 0.129156901 | BU15: =BT15/(1+BU8) -> 0.1253950495 | BV15: 0.1217427665 | BW15: 0.1181968607 | BX15: 0.1147542337 | BY15: 0.1114118774 | BZ15: 0.1081668713 | CA15: 0.1050163799 | CB15: 0.1019576503 | CC15: 0.09898801004 | CD15: 0.09610486412 | CE15: 0.09330569332 | CF15: 0.09058805177 | CG15: 0.08794956482 | CH15: 0.08580445349 | CI15: 0.08371166194 | CJ15: 0.08166991408 | CK15: 0.07967796496 | CL15: 0.07773459996 | CM15: 0.07583863411 | CN15: 0.07398891133 | CO15: 0.07218430373 | CP15: 0.07042371096 | CQ15: 0.06870605947 | CR15: 0.06703030192 | CS15: 0.06539541651 | CT15: 0.06380040635 | CU15: 0.06224429888 | CV15: 0.06072614525 | CW15: 0.05924501975 | CX15: 0.05780001927 | CY15: 0.05639026271 | CZ15: 0.05501489044 | DA15: 0.05367306385 | DB15: 0.05236396473 | DC15: 0.05108679486 | DD15: 0.04984077547 | DE15: 0.0486251468 | DF15: 0.04743916761 | DG15: 0.04628211474 | DH15: 0.04515328268 | DI15: 0.0440519831 | DJ15: 0.04297754449 | DK15: 0.04192931169 | DL15: 0.04090664555 | DM15: 0.03990892249 | DN15: 0.03893553414 | DO15: 0.03798588697 | DP15: 0.03705940192 | DQ15: 0.03615551407 | DR15: 0.03527367226 | DS15: 0.03441333879 | DT15: 0.03357398906 | DU15: 0.03275511128 | DV15: 0.03195620613 | DW15: 0.03117678647 | DX15: 0.03041637704 | DY15: 0.02967451419 | DZ15: 0.02895074555 | EA15: 0.0282446298 | EB15: 0.02755573639 | EC15: 0.02688364526 | ED15: 0.0262279466 | EE15: 0.02558824058 | EF15: 0.02508651037 | EG15: =EF15/(1+EG8) -> 0.02459461801 | EH15: 0.0241123706 | EI15: 0.02363957902 | EJ15: 0.02317605786 | EK15: 0.02272162536 | EL15: 0.02227610329 | EM15: 0.02183931695 | EN15: 0.02141109505 | EO15: 0.02099126966 | EP15: 0.02057967613 | EQ15: 0.02017615307 | ER15: 0.01978054223 | ES15: 0.01939268846 | ET15: 0.01901243967 | EU15: 0.01863964673 | EV15: 0.01827416346 | EW15: 0.01791584653 | EX15: 0.01756455542 | EY15: 0.01722015238 | EZ15: 0.01688250233 | FA15: 0.01655147287 | FB15: 0.01622693419 | FC15: 0.01590875901 | FD15: 0.01559682256 | FE15: 0.01529100251 | FF15: 0.01499117893 | FG15: 0.01469723424 | FH15: 0.01440905318 | FI15: 0.01412652272 | FJ15: 0.01384953208 | FK15: 0.01357797263 | FL15: 0.01331173787 | FM15: 0.01305072341 | FN15: 0.01279482687 | FO15: 0.01254394791 | FP15: 0.01229798815 | FQ15: 0.01205685112 | FR15: 0.01182044228 | FS15: 0.0115886689 | FT15: 0.0113614401 | FU15: 0.01113866676 | FV15: 0.01092026153 | FW15: 0.01070613876 | FX15: 0.01049621447 | FY15: 0.01029040634 | FZ15: 0.01008863367 | GA15: 0.009890817321 | GB15: 0.009696879727 | GC15: 0.00950674483 | GD15: 0.009320338069 | GE15: 0.009137586342 | GF15: 0.008958417982 | GG15: 0.008782762728 | GH15: 0.008610551694 | GI15: 0.008441717347 | GJ15: 0.008276193478 | GK15: 0.008113915174 | GL15: 0.007954818798 | GM15: 0.007798841959 | GN15: 0.007645923489 | GO15: 0.007496003421 | GP15: 0.007349022961 | GQ15: 0.007204924472 | GR15: 0.007063651443 | GS15: =GR15/(1+GS8) -> 0.006925148474 | GT15: 0.006789361249 | GU15: 0.006656236518 | GV15: 0.006525722077 | GW15: 0.006397766742 | GX15: 0.006272320335 | GY15: 0.006149333662 | GZ15: 0.006028758492 | HA15: 0.005910547541 | HB15: 0.005794654452 | HC15: 0.005709019165 | HD15: 0.005624649424 | HE15: 0.005541526526 | HF15: 0.005459632045 | HG15: 0.005378947828 | HH15: 0.005299455988 | HI15: 0.005221138904 | HJ15: 0.005143979216 | HK15: 0.005067959819 | HL15: 0.004993063861 | HM15: 0.00491927474 | HN15: 0.004846576098 | HO15: 0.004774951821 | HP15: 0.00470438603 | HQ15: 0.004634863084 | HR15: 0.004566367571 | HS15: 0.004498884306 | HT15: 0.004432398331 | HU15: 0.004366894907 | HV15: 0.004302359515 | HW15: 0.004238777847 | HX15: 0.00417613581 | HY15: 0.004114419517 | HZ15: 0.004053615288 | IA15: 0.003993709643 | IB15: 0.003934689304 | IC15: 0.003876541186 | ID15: 0.0038192524 | IE15: 0.003762810246 | IF15: 0.003707202213 | IG15: 0.003652415973 | IH15: 0.003598439383 | II15: 0.003545260475 | IJ15: 0.003492867463 | IK15: 0.003441248732 | IL15: 0.00339039284 | IM15: 0.003340288512 | IN15: 0.003290924643 | IO15: 0.003242290288 | IP15: 0.003194374668 | IQ15: 0.003147167161 | IR15: 0.003100657301 | IS15: 0.00305483478 | IT15: 0.003009689438 | IU15: 0.002965211269 | IV15: 0.002921390413 | IW15: 0.002878217155 | IX15: 0.002835681927 | IY15: =IX15/(1+IY8) -> 0.002793775297 | IZ15: 0.002752487977 | JA15: 0.002711810815 | JB15: 0.002671734793 | JC15: 0.002632251028 | JD15: 0.002593350766 | JE15: 0.002555025386 | JF15: 0.00251726639 | JG15: 0.002480065409 | JH15: 0.002443414196 | JI15: 0.002407304626 | JJ15: 0.002371728696 | JK15: 0.002336678518 | JL15: 0.002302146323 | JM15: 0.002268124456 | JN15: 0.002234605376 | JO15: 0.002201581651 | JP15: 0.002169045962 | JQ15: 0.002136991095 | JR15: 0.002105409946 | JS15: 0.002074295513 | JT15: 0.0020436409 | JU15: 0.00201343931 | JV15: 0.001983684049 | JW15: 0.001954368522 | JX15: 0.001925486228 | JY15: 0.001897030767 | JZ15: 0.001868995829 | KA15: 0.001841375201
C18: Uprating indices
H20: Year
H21: ='Inputs (values)'!$H$8 -> 2025 | I21: =H21+1 -> 2026 | J21: =I21+1 -> 2027 | K21: 2028 | L21: 2029 | M21: 2030 | N21: 2031 | O21: 2032 | P21: 2033 | Q21: 2034 | R21: 2035 | S21: 2036 | T21: 2037 | U21: 2038 | V21: 2039 | W21: 2040 | X21: 2041 | Y21: 2042 | Z21: 2043 | AA21: 2044 | AB21: 2045 | AC21: 2046 | AD21: 2047 | AE21: 2048 | AF21: 2049 | AG21: 2050 | AH21: 2051 | AI21: 2052 | AJ21: 2053 | AK21: 2054 | AL21: 2055 | AM21: 2056 | AN21: 2057 | AO21: 2058 | AP21: 2059 | AQ21: 2060 | AR21: 2061 | AS21: 2062 | AT21: 2063 | AU21: 2064 | AV21: 2065 | AW21: 2066 | AX21: 2067 | AY21: 2068 | AZ21: 2069 | BA21: 2070 | BB21: 2071 | BC21: 2072 | BD21: 2073 | BE21: 2074 | BF21: 2075 | BG21: 2076 | BH21: 2077 | BI21: 2078 | BJ21: 2079 | BK21: 2080 | BL21: 2081 | BM21: 2082 | BN21: 2083 | BO21: 2084 | BP21: 2085 | BQ21: 2086 | BR21: 2087 | BS21: 2088 | BT21: 2089 | BU21: 2090 | BV21: =BU21+1 -> 2091 | BW21: 2092 | BX21: 2093 | BY21: 2094 | BZ21: 2095 | CA21: 2096 | CB21: 2097 | CC21: 2098 | CD21: 2099 | CE21: 2100 | CF21: 2101 | CG21: 2102 | CH21: 2103 | CI21: 2104 | CJ21: 2105 | CK21: 2106 | CL21: 2107 | CM21: 2108 | CN21: 2109 | CO21: 2110 | CP21: 2111 | CQ21: 2112 | CR21: 2113 | CS21: 2114 | CT21: 2115 | CU21: 2116 | CV21: 2117 | CW21: 2118 | CX21: 2119 | CY21: 2120 | CZ21: 2121 | DA21: 2122 | DB21: 2123 | DC21: 2124 | DD21: 2125 | DE21: 2126 | DF21: 2127 | DG21: 2128 | DH21: 2129 | DI21: 2130 | DJ21: 2131 | DK21: 2132 | DL21: 2133 | DM21: 2134 | DN21: 2135 | DO21: 2136 | DP21: 2137 | DQ21: 2138 | DR21: 2139 | DS21: 2140 | DT21: 2141 | DU21: 2142 | DV21: 2143 | DW21: 2144 | DX21: 2145 | DY21: 2146 | DZ21: 2147 | EA21: 2148 | EB21: 2149 | EC21: 2150 | ED21: 2151 | EE21: 2152 | EF21: 2153 | EG21: 2154 | EH21: =EG21+1 -> 2155 | EI21: 2156 | EJ21: 2157 | EK21: 2158 | EL21: 2159 | EM21: 2160 | EN21: 2161 | EO21: 2162 | EP21: 2163 | EQ21: 2164 | ER21: 2165 | ES21: 2166 | ET21: 2167 | EU21: 2168 | EV21: 2169 | EW21: 2170 | EX21: 2171 | EY21: 2172 | EZ21: 2173 | FA21: 2174 | FB21: 2175 | FC21: 2176 | FD21: 2177 | FE21: 2178 | FF21: 2179 | FG21: 2180 | FH21: 2181 | FI21: 2182 | FJ21: 2183 | FK21: 2184 | FL21: 2185 | FM21: 2186 | FN21: 2187 | FO21: 2188 | FP21: 2189 | FQ21: 2190 | FR21: 2191 | FS21: 2192 | FT21: 2193 | FU21: 2194 | FV21: 2195 | FW21: 2196 | FX21: 2197 | FY21: 2198 | FZ21: 2199 | GA21: 2200 | GB21: 2201 | GC21: 2202 | GD21: 2203 | GE21: 2204 | GF21: 2205 | GG21: 2206 | GH21: 2207 | GI21: 2208 | GJ21: 2209 | GK21: 2210 | GL21: 2211 | GM21: 2212 | GN21: 2213 | GO21: 2214 | GP21: 2215 | GQ21: 2216 | GR21: 2217 | GS21: 2218 | GT21: =GS21+1 -> 2219 | GU21: 2220 | GV21: 2221 | GW21: 2222 | GX21: 2223 | GY21: 2224 | GZ21: 2225 | HA21: 2226 | HB21: 2227 | HC21: 2228 | HD21: 2229 | HE21: 2230 | HF21: 2231 | HG21: 2232 | HH21: 2233 | HI21: 2234 | HJ21: 2235 | HK21: 2236 | HL21: 2237 | HM21: 2238 | HN21: 2239 | HO21: 2240 | HP21: 2241 | HQ21: 2242 | HR21: 2243 | HS21: 2244 | HT21: 2245 | HU21: 2246 | HV21: 2247 | HW21: 2248 | HX21: 2249 | HY21: 2250 | HZ21: 2251 | IA21: 2252 | IB21: 2253 | IC21: 2254 | ID21: 2255 | IE21: 2256 | IF21: 2257 | IG21: 2258 | IH21: 2259 | II21: 2260 | IJ21: 2261 | IK21: 2262 | IL21: 2263 | IM21: 2264 | IN21: 2265 | IO21: 2266 | IP21: 2267 | IQ21: 2268 | IR21: 2269 | IS21: 2270 | IT21: 2271 | IU21: 2272 | IV21: 2273 | IW21: 2274 | IX21: 2275 | IY21: 2276 | IZ21: 2277 | JA21: 2278 | JB21: 2279 | JC21: 2280 | JD21: 2281 | JE21: 2282 | JF21: =JE21+1 -> 2283 | JG21: 2284 | JH21: 2285 | JI21: 2286 | JJ21: 2287 | JK21: 2288 | JL21: 2289 | JM21: 2290 | JN21: 2291 | JO21: 2292 | JP21: 2293 | JQ21: 2294 | JR21: 2295 | JS21: 2296 | JT21: 2297 | JU21: 2298 | JV21: 2299 | JW21: 2300 | JX21: 2301 | JY21: 2302 | JZ21: 2303 | KA21: 2304
C22: Central series | H22: =(INDEX('Inputs (values)'!$H$84:$KV$86,1,MATCH('Calculations (values)'!H$21,'Inputs (values)'!$H$83:'Inputs (values)'!$KV$83,0))/INDEX('Inputs (values)'!$H$84:$KV$86,1,MATCH('Inputs (values)'!$H$10,'Inputs (values)'!$H$83:$KV$83,0)))*(INDEX('Inputs (values)'!$H$62:$KV$62,1,MATCH('Inputs (values)'!$H$12,'Inputs (values)'!$H$83:$KV$83,0))/INDEX('Inputs (values)'!$H$62:$KV$62,1,MATCH('Inputs (values)'!$H$11,'Inputs (values)'!$H$83:$KV$83,0))) -> 1.721713224 | I22: =(INDEX('Inputs (values)'!$H$84:$KV$86,1,MATCH('Calculations (values)'!I$21,'Inputs (values)'!$H$83:'Inputs (values)'!$KV$83,0))/INDEX('Inputs (values)'!$H$84:$KV$86,1,MATCH('Inputs (values)'!$H$10,'Inputs (values)'!$H$83:$KV$83,0)))*(INDEX('Inputs (values)'!$H$62:$KV$62,1,MATCH('Inputs (values)'!$H$12,'Inputs (values)'!$H$83:$KV$83,0))/INDEX('Inputs (values)'!$H$62:$KV$62,1,MATCH('Inputs (values)'!$H$11,'Inputs (values)'!$H$83:$KV$83,0))) -> 1.753766731 | J22: =(INDEX('Inputs (values)'!$H$84:$KV$86,1,MATCH('Calculations (values)'!J$21,'Inputs (values)'!$H$83:'Inputs (values)'!$KV$83,0))/INDEX('Inputs (values)'!$H$84:$KV$86,1,MATCH('Inputs (values)'!$H$10,'Inputs (values)'!$H$83:$KV$83,0)))*(INDEX('Inputs (values)'!$H$62:$KV$62,1,MATCH('Inputs (values)'!$H$12,'Inputs (values)'!$H$83:$KV$83,0))/INDEX('Inputs (values)'!$H$62:$KV$62,1,MATCH('Inputs (values)'!$H$11,'Inputs (values)'!$H$83:$KV$83,0))) -> 1.785165403 | K22: =(INDEX('Inputs (values)'!$H$84:$KV$86,1,MATCH('Calculations (values)'!K$21,'Inputs (values)'!$H$83:'Inputs (values)'!$KV$83,0))/INDEX('Inputs (values)'!$H$84:$KV$86,1,MATCH('Inputs (values)'!$H$10,'Inputs (values)'!$H$83:$KV$83,0)))*(INDEX('Inputs (values)'!$H$62:$KV$62,1,MATCH('Inputs (values)'!$H$12,'Inputs (values)'!$H$83:$KV$83,0))/INDEX('Inputs (values)'!$H$62:$KV$62,1,MATCH('Inputs (values)'!$H$11,'Inputs (values)'!$H$83:$KV$83,0))) -> 1.815917127 | L22: =(INDEX('Inputs (values)'!$H$84:$KV$86,1,MATCH('Calculations (values)'!L$21,'Inputs (values)'!$H$83:'Inputs (values)'!$KV$83,0))/INDEX('Inputs (values)'!$H$84:$KV$86,1,MATCH('Inputs (values)'!$H$10,'Inputs (values)'!$H$83:$KV$83,0)))*(INDEX('Inputs (values)'!$H$62:$KV$62,1,MATCH('Inputs (values)'!$H$12,'Inputs (values)'!$H$83:$KV$83,0))/INDEX('Inputs (values)'!$H$62:$KV$62,1,MATCH('Inputs (values)'!$H$11,'Inputs (values)'!$H$83:$KV$83,0))) -> 1.848618446 | M22: =(INDEX('Inputs (values)'!$H$84:$KV$86,1,MATCH('Calculations (values)'!M$21,'Inputs (values)'!$H$83:'Inputs (values)'!$KV$83,0))/INDEX('Inputs (values)'!$H$84:$KV$86,1,MATCH('Inputs (values)'!$H$10,'Inputs (values)'!$H$83:$KV$83,0)))*(INDEX('Inputs (values)'!$H$62:$KV$62,1,MATCH('Inputs (values)'!$H$12,'Inputs (values)'!$H$83:$KV$83,0))/INDEX('Inputs (values)'!$H$62:$KV$62,1,MATCH('Inputs (values)'!$H$11,'Inputs (values)'!$H$83:$KV$83,0))) -> 1.882929759 | N22: =(INDEX('Inputs (values)'!$H$84:$KV$86,1,MATCH('Calculations (values)'!N$21,'Inputs (values)'!$H$83:'Inputs (values)'!$KV$83,0))/INDEX('Inputs (values)'!$H$84:$KV$86,1,MATCH('Inputs (values)'!$H$10,'Inputs (values)'!$H$83:$KV$83,0)))*(INDEX('Inputs (values)'!$H$62:$KV$62,1,MATCH('Inputs (values)'!$H$12,'Inputs (values)'!$H$83:$KV$83,0))/INDEX('Inputs (values)'!$H$62:$KV$62,1,MATCH('Inputs (values)'!$H$11,'Inputs (values)'!$H$83:$KV$83,0))) -> 1.918088017 | O22: =(INDEX('Inputs (values)'!$H$84:$KV$86,1,MATCH('Calculations (values)'!O$21,'Inputs (values)'!$H$83:'Inputs (values)'!$KV$83,0))/INDEX('Inputs (values)'!$H$84:$KV$86,1,MATCH('Inputs (values)'!$H$10,'Inputs (values)'!$H$83:$KV$83,0)))*(INDEX('Inputs (values)'!$H$62:$KV$62,1,MATCH('Inputs (values)'!$H$12,'Inputs (values)'!$H$83:$KV$83,0))/INDEX('Inputs (values)'!$H$62:$KV$62,1,MATCH('Inputs (values)'!$H$11,'Inputs (values)'!$H$83:$KV$83,0))) -> 1.954737647 | P22: =(INDEX('Inputs (values)'!$H$84:$KV$86,1,MATCH('Calculations (values)'!P$21,'Inputs (values)'!$H$83:'Inputs (values)'!$KV$83,0))/INDEX('Inputs (values)'!$H$84:$KV$86,1,MATCH('Inputs (values)'!$H$10,'Inputs (values)'!$H$83:$KV$83,0)))*(INDEX('Inputs (values)'!$H$62:$KV$62,1,MATCH('Inputs (values)'!$H$12,'Inputs (values)'!$H$83:$KV$83,0))/INDEX('Inputs (values)'!$H$62:$KV$62,1,MATCH('Inputs (values)'!$H$11,'Inputs (values)'!$H$83:$KV$83,0))) -> 1.992479028 | Q22: =(INDEX('Inputs (values)'!$H$84:$KV$86,1,MATCH('Calculations (values)'!Q$21,'Inputs (values)'!$H$83:'Inputs (values)'!$KV$83,0))/INDEX('Inputs (values)'!$H$84:$KV$86,1,MATCH('Inputs (values)'!$H$10,'Inputs (values)'!$H$83:$KV$83,0)))*(INDEX('Inputs (values)'!$H$62:$KV$62,1,MATCH('Inputs (values)'!$H$12,'Inputs (values)'!$H$83:$KV$83,0))/INDEX('Inputs (values)'!$H$62:$KV$62,1,MATCH('Inputs (values)'!$H$11,'Inputs (values)'!$H$83:$KV$83,0))) -> 2.030622234 | R22: =(INDEX('Inputs (values)'!$H$84:$KV$86,1,MATCH('Calculations (values)'!R$21,'Inputs (values)'!$H$83:'Inputs (values)'!$KV$83,0))/INDEX('Inputs (values)'!$H$84:$KV$86,1,MATCH('Inputs (values)'!$H$10,'Inputs (values)'!$H$83:$KV$83,0)))*(INDEX('Inputs (values)'!$H$62:$KV$62,1,MATCH('Inputs (values)'!$H$12,'Inputs (values)'!$H$83:$KV$83,0))/INDEX('Inputs (values)'!$H$62:$KV$62,1,MATCH('Inputs (values)'!$H$11,'Inputs (values)'!$H$83:$KV$83,0))) -> 2.06935338 | S22: =(INDEX('Inputs (values)'!$H$84:$KV$86,1,MATCH('Calculations (values)'!S$21,'Inputs (values)'!$H$83:'Inputs (values)'!$KV$83,0))/INDEX('Inputs (values)'!$H$84:$KV$86,1,MATCH('Inputs (values)'!$H$10,'Inputs (values)'!$H$83:$KV$83,0)))*(INDEX('Inputs (values)'!$H$62:$KV$62,1,MATCH('Inputs (values)'!$H$12,'Inputs (values)'!$H$83:$KV$83,0))/INDEX('Inputs (values)'!$H$62:$KV$62,1,MATCH('Inputs (values)'!$H$11,'Inputs (values)'!$H$83:$KV$83,0))) -> 2.111279794 | T22: =(INDEX('Inputs (values)'!$H$84:$KV$86,1,MATCH('Calculations (values)'!T$21,'Inputs (values)'!$H$83:'Inputs (values)'!$KV$83,0))/INDEX('Inputs (values)'!$H$84:$KV$86,1,MATCH('Inputs (values)'!$H$10,'Inputs (values)'!$H$83:$KV$83,0)))*(INDEX('Inputs (values)'!$H$62:$KV$62,1,MATCH('Inputs (values)'!$H$12,'Inputs (values)'!$H$83:$KV$83,0))/INDEX('Inputs (values)'!$H$62:$KV$62,1,MATCH('Inputs (values)'!$H$11,'Inputs (values)'!$H$83:$KV$83,0))) -> 2.153811237 | U22: =(INDEX('Inputs (values)'!$H$84:$KV$86,1,MATCH('Calculations (values)'!U$21,'Inputs (values)'!$H$83:'Inputs (values)'!$KV$83,0))/INDEX('Inputs (values)'!$H$84:$KV$86,1,MATCH('Inputs (values)'!$H$10,'Inputs (values)'!$H$83:$KV$83,0)))*(INDEX('Inputs (values)'!$H$62:$KV$62,1,MATCH('Inputs (values)'!$H$12,'Inputs (values)'!$H$83:$KV$83,0))/INDEX('Inputs (values)'!$H$62:$KV$62,1,MATCH('Inputs (values)'!$H$11,'Inputs (values)'!$H$83:$KV$83,0))) -> 2.196679805 | V22: =(INDEX('Inputs (values)'!$H$84:$KV$86,1,MATCH('Calculations (values)'!V$21,'Inputs (values)'!$H$83:'Inputs (values)'!$KV$83,0))/INDEX('Inputs (values)'!$H$84:$KV$86,1,MATCH('Inputs (values)'!$H$10,'Inputs (values)'!$H$83:$KV$83,0)))*(INDEX('Inputs (values)'!$H$62:$KV$62,1,MATCH('Inputs (values)'!$H$12,'Inputs (values)'!$H$83:$KV$83,0))/INDEX('Inputs (values)'!$H$62:$KV$62,1,MATCH('Inputs (values)'!$H$11,'Inputs (values)'!$H$83:$KV$83,0))) -> 2.240702406 | W22: =(INDEX('Inputs (values)'!$H$84:$KV$86,1,MATCH('Calculations (values)'!W$21,'Inputs (values)'!$H$83:'Inputs (values)'!$KV$83,0))/INDEX('Inputs (values)'!$H$84:$KV$86,1,MATCH('Inputs (values)'!$H$10,'Inputs (values)'!$H$83:$KV$83,0)))*(INDEX('Inputs (values)'!$H$62:$KV$62,1,MATCH('Inputs (values)'!$H$12,'Inputs (values)'!$H$83:$KV$83,0))/INDEX('Inputs (values)'!$H$62:$KV$62,1,MATCH('Inputs (values)'!$H$11,'Inputs (values)'!$H$83:$KV$83,0))) -> 2.284566983 | X22: =(INDEX('Inputs (values)'!$H$84:$KV$86,1,MATCH('Calculations (values)'!X$21,'Inputs (values)'!$H$83:'Inputs (values)'!$KV$83,0))/INDEX('Inputs (values)'!$H$84:$KV$86,1,MATCH('Inputs (values)'!$H$10,'Inputs (values)'!$H$83:$KV$83,0)))*(INDEX('Inputs (values)'!$H$62:$KV$62,1,MATCH('Inputs (values)'!$H$12,'Inputs (values)'!$H$83:$KV$83,0))/INDEX('Inputs (values)'!$H$62:$KV$62,1,MATCH('Inputs (values)'!$H$11,'Inputs (values)'!$H$83:$KV$83,0))) -> 2.328578363 | Y22: =(INDEX('Inputs (values)'!$H$84:$KV$86,1,MATCH('Calculations (values)'!Y$21,'Inputs (values)'!$H$83:'Inputs (values)'!$KV$83,0))/INDEX('Inputs (values)'!$H$84:$KV$86,1,MATCH('Inputs (values)'!$H$10,'Inputs (values)'!$H$83:$KV$83,0)))*(INDEX('Inputs (values)'!$H$62:$KV$62,1,MATCH('Inputs (values)'!$H$12,'Inputs (values)'!$H$83:$KV$83,0))/INDEX('Inputs (values)'!$H$62:$KV$62,1,MATCH('Inputs (values)'!$H$11,'Inputs (values)'!$H$83:$KV$83,0))) -> 2.372892028 | Z22: =(INDEX('Inputs (values)'!$H$84:$KV$86,1,MATCH('Calculations (values)'!Z$21,'Inputs (values)'!$H$83:'Inputs (values)'!$KV$83,0))/INDEX('Inputs (values)'!$H$84:$KV$86,1,MATCH('Inputs (values)'!$H$10,'Inputs (values)'!$H$83:$KV$83,0)))*(INDEX('Inputs (values)'!$H$62:$KV$62,1,MATCH('Inputs (values)'!$H$12,'Inputs (values)'!$H$83:$KV$83,0))/INDEX('Inputs (values)'!$H$62:$KV$62,1,MATCH('Inputs (values)'!$H$11,'Inputs (values)'!$H$83:$KV$83,0))) -> 2.417300798 | AA22: =(INDEX('Inputs (values)'!$H$84:$KV$86,1,MATCH('Calculations (values)'!AA$21,'Inputs (values)'!$H$83:'Inputs (values)'!$KV$83,0))/INDEX('Inputs (values)'!$H$84:$KV$86,1,MATCH('Inputs (values)'!$H$10,'Inputs (values)'!$H$83:$KV$83,0)))*(INDEX('Inputs (values)'!$H$62:$KV$62,1,MATCH('Inputs (values)'!$H$12,'Inputs (values)'!$H$83:$KV$83,0))/INDEX('Inputs (values)'!$H$62:$KV$62,1,MATCH('Inputs (values)'!$H$11,'Inputs (values)'!$H$83:$KV$83,0))) -> 2.461731223 | AB22: =(INDEX('Inputs (values)'!$H$84:$KV$86,1,MATCH('Calculations (values)'!AB$21,'Inputs (values)'!$H$83:'Inputs (values)'!$KV$83,0))/INDEX('Inputs (values)'!$H$84:$KV$86,1,MATCH('Inputs (values)'!$H$10,'Inputs (values)'!$H$83:$KV$83,0)))*(INDEX('Inputs (values)'!$H$62:$KV$62,1,MATCH('Inputs (values)'!$H$12,'Inputs (values)'!$H$83:$KV$83,0))/INDEX('Inputs (values)'!$H$62:$KV$62,1,MATCH('Inputs (values)'!$H$11,'Inputs (values)'!$H$83:$KV$83,0))) -> 2.506831376 | AC22: =(INDEX('Inputs (values)'!$H$84:$KV$86,1,MATCH('Calculations (values)'!AC$21,'Inputs (values)'!$H$83:'Inputs (values)'!$KV$83,0))/INDEX('Inputs (values)'!$H$84:$KV$86,1,MATCH('Inputs (values)'!$H$10,'Inputs (values)'!$H$83:$KV$83,0)))*(INDEX('Inputs (values)'!$H$62:$KV$62,1,MATCH('Inputs (values)'!$H$12,'Inputs (values)'!$H$83:$KV$83,0))/INDEX('Inputs (values)'!$H$62:$KV$62,1,MATCH('Inputs (values)'!$H$11,'Inputs (values)'!$H$83:$KV$83,0))) -> 2.552807085 | AD22: =(INDEX('Inputs (values)'!$H$84:$KV$86,1,MATCH('Calculations (values)'!AD$21,'Inputs (values)'!$H$83:'Inputs (values)'!$KV$83,0))/INDEX('Inputs (values)'!$H$84:$KV$86,1,MATCH('Inputs (values)'!$H$10,'Inputs (values)'!$H$83:$KV$83,0)))*(INDEX('Inputs (values)'!$H$62:$KV$62,1,MATCH('Inputs (values)'!$H$12,'Inputs (values)'!$H$83:$KV$83,0))/INDEX('Inputs (values)'!$H$62:$KV$62,1,MATCH('Inputs (values)'!$H$11,'Inputs (values)'!$H$83:$KV$83,0))) -> 2.59925577 | AE22: =(INDEX('Inputs (values)'!$H$84:$KV$86,1,MATCH('Calculations (values)'!AE$21,'Inputs (values)'!$H$83:'Inputs (values)'!$KV$83,0))/INDEX('Inputs (values)'!$H$84:$KV$86,1,MATCH('Inputs (values)'!$H$10,'Inputs (values)'!$H$83:$KV$83,0)))*(INDEX('Inputs (values)'!$H$62:$KV$62,1,MATCH('Inputs (values)'!$H$12,'Inputs (values)'!$H$83:$KV$83,0))/INDEX('Inputs (values)'!$H$62:$KV$62,1,MATCH('Inputs (values)'!$H$11,'Inputs (values)'!$H$83:$KV$83,0))) -> 2.645932728 | AF22: =(INDEX('Inputs (values)'!$H$84:$KV$86,1,MATCH('Calculations (values)'!AF$21,'Inputs (values)'!$H$83:'Inputs (values)'!$KV$83,0))/INDEX('Inputs (values)'!$H$84:$KV$86,1,MATCH('Inputs (values)'!$H$10,'Inputs (values)'!$H$83:$KV$83,0)))*(INDEX('Inputs (values)'!$H$62:$KV$62,1,MATCH('Inputs (values)'!$H$12,'Inputs (values)'!$H$83:$KV$83,0))/INDEX('Inputs (values)'!$H$62:$KV$62,1,MATCH('Inputs (values)'!$H$11,'Inputs (values)'!$H$83:$KV$83,0))) -> 2.692724909 | AG22: =(INDEX('Inputs (values)'!$H$84:$KV$86,1,MATCH('Calculations (values)'!AG$21,'Inputs (values)'!$H$83:'Inputs (values)'!$KV$83,0))/INDEX('Inputs (values)'!$H$84:$KV$86,1,MATCH('Inputs (values)'!$H$10,'Inputs (values)'!$H$83:$KV$83,0)))*(INDEX('Inputs (values)'!$H$62:$KV$62,1,MATCH('Inputs (values)'!$H$12,'Inputs (values)'!$H$83:$KV$83,0))/INDEX('Inputs (values)'!$H$62:$KV$62,1,MATCH('Inputs (values)'!$H$11,'Inputs (values)'!$H$83:$KV$83,0))) -> 2.740193019 | AH22: =(INDEX('Inputs (values)'!$H$84:$KV$86,1,MATCH('Calculations (values)'!AH$21,'Inputs (values)'!$H$83:'Inputs (values)'!$KV$83,0))/INDEX('Inputs (values)'!$H$84:$KV$86,1,MATCH('Inputs (values)'!$H$10,'Inputs (values)'!$H$83:$KV$83,0)))*(INDEX('Inputs (values)'!$H$62:$KV$62,1,MATCH('Inputs (values)'!$H$12,'Inputs (values)'!$H$83:$KV$83,0))/INDEX('Inputs (values)'!$H$62:$KV$62,1,MATCH('Inputs (values)'!$H$11,'Inputs (values)'!$H$83:$KV$83,0))) -> 2.788346749 | AI22: =(INDEX('Inputs (values)'!$H$84:$KV$86,1,MATCH('Calculations (values)'!AI$21,'Inputs (values)'!$H$83:'Inputs (values)'!$KV$83,0))/INDEX('Inputs (values)'!$H$84:$KV$86,1,MATCH('Inputs (values)'!$H$10,'Inputs (values)'!$H$83:$KV$83,0)))*(INDEX('Inputs (values)'!$H$62:$KV$62,1,MATCH('Inputs (values)'!$H$12,'Inputs (values)'!$H$83:$KV$83,0))/INDEX('Inputs (values)'!$H$62:$KV$62,1,MATCH('Inputs (values)'!$H$11,'Inputs (values)'!$H$83:$KV$83,0))) -> 2.836994395 | AJ22: =(INDEX('Inputs (values)'!$H$84:$KV$86,1,MATCH('Calculations (values)'!AJ$21,'Inputs (values)'!$H$83:'Inputs (values)'!$KV$83,0))/INDEX('Inputs (values)'!$H$84:$KV$86,1,MATCH('Inputs (values)'!$H$10,'Inputs (values)'!$H$83:$KV$83,0)))*(INDEX('Inputs (values)'!$H$62:$KV$62,1,MATCH('Inputs (values)'!$H$12,'Inputs (values)'!$H$83:$KV$83,0))/INDEX('Inputs (values)'!$H$62:$KV$62,1,MATCH('Inputs (values)'!$H$11,'Inputs (values)'!$H$83:$KV$83,0))) -> 2.886139569 | AK22: =(INDEX('Inputs (values)'!$H$84:$KV$86,1,MATCH('Calculations (values)'!AK$21,'Inputs (values)'!$H$83:'Inputs (values)'!$KV$83,0))/INDEX('Inputs (values)'!$H$84:$KV$86,1,MATCH('Inputs (values)'!$H$10,'Inputs (values)'!$H$83:$KV$83,0)))*(INDEX('Inputs (values)'!$H$62:$KV$62,1,MATCH('Inputs (values)'!$H$12,'Inputs (values)'!$H$83:$KV$83,0))/INDEX('Inputs (values)'!$H$62:$KV$62,1,MATCH('Inputs (values)'!$H$11,'Inputs (values)'!$H$83:$KV$83,0))) -> 2.935643325 | AL22: =(INDEX('Inputs (values)'!$H$84:$KV$86,1,MATCH('Calculations (values)'!AL$21,'Inputs (values)'!$H$83:'Inputs (values)'!$KV$83,0))/INDEX('Inputs (values)'!$H$84:$KV$86,1,MATCH('Inputs (values)'!$H$10,'Inputs (values)'!$H$83:$KV$83,0)))*(INDEX('Inputs (values)'!$H$62:$KV$62,1,MATCH('Inputs (values)'!$H$12,'Inputs (values)'!$H$83:$KV$83,0))/INDEX('Inputs (values)'!$H$62:$KV$62,1,MATCH('Inputs (values)'!$H$11,'Inputs (values)'!$H$83:$KV$83,0))) -> 2.985529046 | AM22: =(INDEX('Inputs (values)'!$H$84:$KV$86,1,MATCH('Calculations (values)'!AM$21,'Inputs (values)'!$H$83:'Inputs (values)'!$KV$83,0))/INDEX('Inputs (values)'!$H$84:$KV$86,1,MATCH('Inputs (values)'!$H$10,'Inputs (values)'!$H$83:$KV$83,0)))*(INDEX('Inputs (values)'!$H$62:$KV$62,1,MATCH('Inputs (values)'!$H$12,'Inputs (values)'!$H$83:$KV$83,0))/INDEX('Inputs (values)'!$H$62:$KV$62,1,MATCH('Inputs (values)'!$H$11,'Inputs (values)'!$H$83:$KV$83,0))) -> 3.035839598 | AN22: =(INDEX('Inputs (values)'!$H$84:$KV$86,1,MATCH('Calculations (values)'!AN$21,'Inputs (values)'!$H$83:'Inputs (values)'!$KV$83,0))/INDEX('Inputs (values)'!$H$84:$KV$86,1,MATCH('Inputs (values)'!$H$10,'Inputs (values)'!$H$83:$KV$83,0)))*(INDEX('Inputs (values)'!$H$62:$KV$62,1,MATCH('Inputs (values)'!$H$12,'Inputs (values)'!$H$83:$KV$83,0))/INDEX('Inputs (values)'!$H$62:$KV$62,1,MATCH('Inputs (values)'!$H$11,'Inputs (values)'!$H$83:$KV$83,0))) -> 3.086428768 | AO22: =(INDEX('Inputs (values)'!$H$84:$KV$86,1,MATCH('Calculations (values)'!AO$21,'Inputs (values)'!$H$83:'Inputs (values)'!$KV$83,0))/INDEX('Inputs (values)'!$H$84:$KV$86,1,MATCH('Inputs (values)'!$H$10,'Inputs (values)'!$H$83:$KV$83,0)))*(INDEX('Inputs (values)'!$H$62:$KV$62,1,MATCH('Inputs (values)'!$H$12,'Inputs (values)'!$H$83:$KV$83,0))/INDEX('Inputs (values)'!$H$62:$KV$62,1,MATCH('Inputs (values)'!$H$11,'Inputs (values)'!$H$83:$KV$83,0))) -> 3.137557639 | AP22: =(INDEX('Inputs (values)'!$H$84:$KV$86,1,MATCH('Calculations (values)'!AP$21,'Inputs (values)'!$H$83:'Inputs (values)'!$KV$83,0))/INDEX('Inputs (values)'!$H$84:$KV$86,1,MATCH('Inputs (values)'!$H$10,'Inputs (values)'!$H$83:$KV$83,0)))*(INDEX('Inputs (values)'!$H$62:$KV$62,1,MATCH('Inputs (values)'!$H$12,'Inputs (values)'!$H$83:$KV$83,0))/INDEX('Inputs (values)'!$H$62:$KV$62,1,MATCH('Inputs (values)'!$H$11,'Inputs (values)'!$H$83:$KV$83,0))) -> 3.188873134 | AQ22: =(INDEX('Inputs (values)'!$H$84:$KV$86,1,MATCH('Calculations (values)'!AQ$21,'Inputs (values)'!$H$83:'Inputs (values)'!$KV$83,0))/INDEX('Inputs (values)'!$H$84:$KV$86,1,MATCH('Inputs (values)'!$H$10,'Inputs (values)'!$H$83:$KV$83,0)))*(INDEX('Inputs (values)'!$H$62:$KV$62,1,MATCH('Inputs (values)'!$H$12,'Inputs (values)'!$H$83:$KV$83,0))/INDEX('Inputs (values)'!$H$62:$KV$62,1,MATCH('Inputs (values)'!$H$11,'Inputs (values)'!$H$83:$KV$83,0))) -> 3.241404806 | AR22: =(INDEX('Inputs (values)'!$H$84:$KV$86,1,MATCH('Calculations (values)'!AR$21,'Inputs (values)'!$H$83:'Inputs (values)'!$KV$83,0))/INDEX('Inputs (values)'!$H$84:$KV$86,1,MATCH('Inputs (values)'!$H$10,'Inputs (values)'!$H$83:$KV$83,0)))*(INDEX('Inputs (values)'!$H$62:$KV$62,1,MATCH('Inputs (values)'!$H$12,'Inputs (values)'!$H$83:$KV$83,0))/INDEX('Inputs (values)'!$H$62:$KV$62,1,MATCH('Inputs (values)'!$H$11,'Inputs (values)'!$H$83:$KV$83,0))) -> 3.294227941 | AS22: =(INDEX('Inputs (values)'!$H$84:$KV$86,1,MATCH('Calculations (values)'!AS$21,'Inputs (values)'!$H$83:'Inputs (values)'!$KV$83,0))/INDEX('Inputs (values)'!$H$84:$KV$86,1,MATCH('Inputs (values)'!$H$10,'Inputs (values)'!$H$83:$KV$83,0)))*(INDEX('Inputs (values)'!$H$62:$KV$62,1,MATCH('Inputs (values)'!$H$12,'Inputs (values)'!$H$83:$KV$83,0))/INDEX('Inputs (values)'!$H$62:$KV$62,1,MATCH('Inputs (values)'!$H$11,'Inputs (values)'!$H$83:$KV$83,0))) -> 3.347212102 | AT22: =(INDEX('Inputs (values)'!$H$84:$KV$86,1,MATCH('Calculations (values)'!AT$21,'Inputs (values)'!$H$83:'Inputs (values)'!$KV$83,0))/INDEX('Inputs (values)'!$H$84:$KV$86,1,MATCH('Inputs (values)'!$H$10,'Inputs (values)'!$H$83:$KV$83,0)))*(INDEX('Inputs (values)'!$H$62:$KV$62,1,MATCH('Inputs (values)'!$H$12,'Inputs (values)'!$H$83:$KV$83,0))/INDEX('Inputs (values)'!$H$62:$KV$62,1,MATCH('Inputs (values)'!$H$11,'Inputs (values)'!$H$83:$KV$83,0))) -> 3.400669235 | AU22: =(INDEX('Inputs (values)'!$H$84:$KV$86,1,MATCH('Calculations (values)'!AU$21,'Inputs (values)'!$H$83:'Inputs (values)'!$KV$83,0))/INDEX('Inputs (values)'!$H$84:$KV$86,1,MATCH('Inputs (values)'!$H$10,'Inputs (values)'!$H$83:$KV$83,0)))*(INDEX('Inputs (values)'!$H$62:$KV$62,1,MATCH('Inputs (values)'!$H$12,'Inputs (values)'!$H$83:$KV$83,0))/INDEX('Inputs (values)'!$H$62:$KV$62,1,MATCH('Inputs (values)'!$H$11,'Inputs (values)'!$H$83:$KV$83,0))) -> 3.455111457 | AV22: =(INDEX('Inputs (values)'!$H$84:$KV$86,1,MATCH('Calculations (values)'!AV$21,'Inputs (values)'!$H$83:'Inputs (values)'!$KV$83,0))/INDEX('Inputs (values)'!$H$84:$KV$86,1,MATCH('Inputs (values)'!$H$10,'Inputs (values)'!$H$83:$KV$83,0)))*(INDEX('Inputs (values)'!$H$62:$KV$62,1,MATCH('Inputs (values)'!$H$12,'Inputs (values)'!$H$83:$KV$83,0))/INDEX('Inputs (values)'!$H$62:$KV$62,1,MATCH('Inputs (values)'!$H$11,'Inputs (values)'!$H$83:$KV$83,0))) -> 3.510673793 | AW22: =(INDEX('Inputs (values)'!$H$84:$KV$86,1,MATCH('Calculations (values)'!AW$21,'Inputs (values)'!$H$83:'Inputs (values)'!$KV$83,0))/INDEX('Inputs (values)'!$H$84:$KV$86,1,MATCH('Inputs (values)'!$H$10,'Inputs (values)'!$H$83:$KV$83,0)))*(INDEX('Inputs (values)'!$H$62:$KV$62,1,MATCH('Inputs (values)'!$H$12,'Inputs (values)'!$H$83:$KV$83,0))/INDEX('Inputs (values)'!$H$62:$KV$62,1,MATCH('Inputs (values)'!$H$11,'Inputs (values)'!$H$83:$KV$83,0))) -> 3.56743119 | AX22: =(INDEX('Inputs (values)'!$H$84:$KV$86,1,MATCH('Calculations (values)'!AX$21,'Inputs (values)'!$H$83:'Inputs (values)'!$KV$83,0))/INDEX('Inputs (values)'!$H$84:$KV$86,1,MATCH('Inputs (values)'!$H$10,'Inputs (values)'!$H$83:$KV$83,0)))*(INDEX('Inputs (values)'!$H$62:$KV$62,1,MATCH('Inputs (values)'!$H$12,'Inputs (values)'!$H$83:$KV$83,0))/INDEX('Inputs (values)'!$H$62:$KV$62,1,MATCH('Inputs (values)'!$H$11,'Inputs (values)'!$H$83:$KV$83,0))) -> 3.626011561 | AY22: =(INDEX('Inputs (values)'!$H$84:$KV$86,1,MATCH('Calculations (values)'!AY$21,'Inputs (values)'!$H$83:'Inputs (values)'!$KV$83,0))/INDEX('Inputs (values)'!$H$84:$KV$86,1,MATCH('Inputs (values)'!$H$10,'Inputs (values)'!$H$83:$KV$83,0)))*(INDEX('Inputs (values)'!$H$62:$KV$62,1,MATCH('Inputs (values)'!$H$12,'Inputs (values)'!$H$83:$KV$83,0))/INDEX('Inputs (values)'!$H$62:$KV$62,1,MATCH('Inputs (values)'!$H$11,'Inputs (values)'!$H$83:$KV$83,0))) -> 3.68758941 | AZ22: =(INDEX('Inputs (values)'!$H$84:$KV$86,1,MATCH('Calculations (values)'!AZ$21,'Inputs (values)'!$H$83:'Inputs (values)'!$KV$83,0))/INDEX('Inputs (values)'!$H$84:$KV$86,1,MATCH('Inputs (values)'!$H$10,'Inputs (values)'!$H$83:$KV$83,0)))*(INDEX('Inputs (values)'!$H$62:$KV$62,1,MATCH('Inputs (values)'!$H$12,'Inputs (values)'!$H$83:$KV$83,0))/INDEX('Inputs (values)'!$H$62:$KV$62,1,MATCH('Inputs (values)'!$H$11,'Inputs (values)'!$H$83:$KV$83,0))) -> 3.751971577 | BA22: =(INDEX('Inputs (values)'!$H$84:$KV$86,1,MATCH('Calculations (values)'!BA$21,'Inputs (values)'!$H$83:'Inputs (values)'!$KV$83,0))/INDEX('Inputs (values)'!$H$84:$KV$86,1,MATCH('Inputs (values)'!$H$10,'Inputs (values)'!$H$83:$KV$83,0)))*(INDEX('Inputs (values)'!$H$62:$KV$62,1,MATCH('Inputs (values)'!$H$12,'Inputs (values)'!$H$83:$KV$83,0))/INDEX('Inputs (values)'!$H$62:$KV$62,1,MATCH('Inputs (values)'!$H$11,'Inputs (values)'!$H$83:$KV$83,0))) -> 3.819454365 | BB22: =(INDEX('Inputs (values)'!$H$84:$KV$86,1,MATCH('Calculations (values)'!BB$21,'Inputs (values)'!$H$83:'Inputs (values)'!$KV$83,0))/INDEX('Inputs (values)'!$H$84:$KV$86,1,MATCH('Inputs (values)'!$H$10,'Inputs (values)'!$H$83:$KV$83,0)))*(INDEX('Inputs (values)'!$H$62:$KV$62,1,MATCH('Inputs (values)'!$H$12,'Inputs (values)'!$H$83:$KV$83,0))/INDEX('Inputs (values)'!$H$62:$KV$62,1,MATCH('Inputs (values)'!$H$11,'Inputs (values)'!$H$83:$KV$83,0))) -> 3.888857029 | BC22: =(INDEX('Inputs (values)'!$H$84:$KV$86,1,MATCH('Calculations (values)'!BC$21,'Inputs (values)'!$H$83:'Inputs (values)'!$KV$83,0))/INDEX('Inputs (values)'!$H$84:$KV$86,1,MATCH('Inputs (values)'!$H$10,'Inputs (values)'!$H$83:$KV$83,0)))*(INDEX('Inputs (values)'!$H$62:$KV$62,1,MATCH('Inputs (values)'!$H$12,'Inputs (values)'!$H$83:$KV$83,0))/INDEX('Inputs (values)'!$H$62:$KV$62,1,MATCH('Inputs (values)'!$H$11,'Inputs (values)'!$H$83:$KV$83,0))) -> 3.959143862 | BD22: =(INDEX('Inputs (values)'!$H$84:$KV$86,1,MATCH('Calculations (values)'!BD$21,'Inputs (values)'!$H$83:'Inputs (values)'!$KV$83,0))/INDEX('Inputs (values)'!$H$84:$KV$86,1,MATCH('Inputs (values)'!$H$10,'Inputs (values)'!$H$83:$KV$83,0)))*(INDEX('Inputs (values)'!$H$62:$KV$62,1,MATCH('Inputs (values)'!$H$12,'Inputs (values)'!$H$83:$KV$83,0))/INDEX('Inputs (values)'!$H$62:$KV$62,1,MATCH('Inputs (values)'!$H$11,'Inputs (values)'!$H$83:$KV$83,0))) -> 4.030354845 | BE22: =(INDEX('Inputs (values)'!$H$84:$KV$86,1,MATCH('Calculations (values)'!BE$21,'Inputs (values)'!$H$83:'Inputs (values)'!$KV$83,0))/INDEX('Inputs (values)'!$H$84:$KV$86,1,MATCH('Inputs (values)'!$H$10,'Inputs (values)'!$H$83:$KV$83,0)))*(INDEX('Inputs (values)'!$H$62:$KV$62,1,MATCH('Inputs (values)'!$H$12,'Inputs (values)'!$H$83:$KV$83,0))/INDEX('Inputs (values)'!$H$62:$KV$62,1,MATCH('Inputs (values)'!$H$11,'Inputs (values)'!$H$83:$KV$83,0))) -> 4.090999856 | BF22: =(INDEX('Inputs (values)'!$H$84:$KV$86,1,MATCH('Calculations (values)'!BF$21,'Inputs (values)'!$H$83:'Inputs (values)'!$KV$83,0))/INDEX('Inputs (values)'!$H$84:$KV$86,1,MATCH('Inputs (values)'!$H$10,'Inputs (values)'!$H$83:$KV$83,0)))*(INDEX('Inputs (values)'!$H$62:$KV$62,1,MATCH('Inputs (values)'!$H$12,'Inputs (values)'!$H$83:$KV$83,0))/INDEX('Inputs (values)'!$H$62:$KV$62,1,MATCH('Inputs (values)'!$H$11,'Inputs (values)'!$H$83:$KV$83,0))) -> 4.151520644 | BG22: =(INDEX('Inputs (values)'!$H$84:$KV$86,1,MATCH('Calculations (values)'!BG$21,'Inputs (values)'!$H$83:'Inputs (values)'!$KV$83,0))/INDEX('Inputs (values)'!$H$84:$KV$86,1,MATCH('Inputs (values)'!$H$10,'Inputs (values)'!$H$83:$KV$83,0)))*(INDEX('Inputs (values)'!$H$62:$KV$62,1,MATCH('Inputs (values)'!$H$12,'Inputs (values)'!$H$83:$KV$83,0))/INDEX('Inputs (values)'!$H$62:$KV$62,1,MATCH('Inputs (values)'!$H$11,'Inputs (values)'!$H$83:$KV$83,0))) -> 4.210652226 | BH22: =(INDEX('Inputs (values)'!$H$84:$KV$86,1,MATCH('Calculations (values)'!BH$21,'Inputs (values)'!$H$83:'Inputs (values)'!$KV$83,0))/INDEX('Inputs (values)'!$H$84:$KV$86,1,MATCH('Inputs (values)'!$H$10,'Inputs (values)'!$H$83:$KV$83,0)))*(INDEX('Inputs (values)'!$H$62:$KV$62,1,MATCH('Inputs (values)'!$H$12,'Inputs (values)'!$H$83:$KV$83,0))/INDEX('Inputs (values)'!$H$62:$KV$62,1,MATCH('Inputs (values)'!$H$11,'Inputs (values)'!$H$83:$KV$83,0))) -> 4.271224046 | BI22: =(INDEX('Inputs (values)'!$H$84:$KV$86,1,MATCH('Calculations (values)'!BI$21,'Inputs (values)'!$H$83:'Inputs (values)'!$KV$83,0))/INDEX('Inputs (values)'!$H$84:$KV$86,1,MATCH('Inputs (values)'!$H$10,'Inputs (values)'!$H$83:$KV$83,0)))*(INDEX('Inputs (values)'!$H$62:$KV$62,1,MATCH('Inputs (values)'!$H$12,'Inputs (values)'!$H$83:$KV$83,0))/INDEX('Inputs (values)'!$H$62:$KV$62,1,MATCH('Inputs (values)'!$H$11,'Inputs (values)'!$H$83:$KV$83,0))) -> 4.332365218 | BJ22: =(INDEX('Inputs (values)'!$H$84:$KV$86,1,MATCH('Calculations (values)'!BJ$21,'Inputs (values)'!$H$83:'Inputs (values)'!$KV$83,0))/INDEX('Inputs (values)'!$H$84:$KV$86,1,MATCH('Inputs (values)'!$H$10,'Inputs (values)'!$H$83:$KV$83,0)))*(INDEX('Inputs (values)'!$H$62:$KV$62,1,MATCH('Inputs (values)'!$H$12,'Inputs (values)'!$H$83:$KV$83,0))/INDEX('Inputs (values)'!$H$62:$KV$62,1,MATCH('Inputs (values)'!$H$11,'Inputs (values)'!$H$83:$KV$83,0))) -> 4.393326082 | BK22: =(INDEX('Inputs (values)'!$H$84:$KV$86,1,MATCH('Calculations (values)'!BK$21,'Inputs (values)'!$H$83:'Inputs (values)'!$KV$83,0))/INDEX('Inputs (values)'!$H$84:$KV$86,1,MATCH('Inputs (values)'!$H$10,'Inputs (values)'!$H$83:$KV$83,0)))*(INDEX('Inputs (values)'!$H$62:$KV$62,1,MATCH('Inputs (values)'!$H$12,'Inputs (values)'!$H$83:$KV$83,0))/INDEX('Inputs (values)'!$H$62:$KV$62,1,MATCH('Inputs (values)'!$H$11,'Inputs (values)'!$H$83:$KV$83,0))) -> 4.455410529 | BL22: =(INDEX('Inputs (values)'!$H$84:$KV$86,1,MATCH('Calculations (values)'!BL$21,'Inputs (values)'!$H$83:'Inputs (values)'!$KV$83,0))/INDEX('Inputs (values)'!$H$84:$KV$86,1,MATCH('Inputs (values)'!$H$10,'Inputs (values)'!$H$83:$KV$83,0)))*(INDEX('Inputs (values)'!$H$62:$KV$62,1,MATCH('Inputs (values)'!$H$12,'Inputs (values)'!$H$83:$KV$83,0))/INDEX('Inputs (values)'!$H$62:$KV$62,1,MATCH('Inputs (values)'!$H$11,'Inputs (values)'!$H$83:$KV$83,0))) -> 4.520168468 | BM22: =(INDEX('Inputs (values)'!$H$84:$KV$86,1,MATCH('Calculations (values)'!BM$21,'Inputs (values)'!$H$83:'Inputs (values)'!$KV$83,0))/INDEX('Inputs (values)'!$H$84:$KV$86,1,MATCH('Inputs (values)'!$H$10,'Inputs (values)'!$H$83:$KV$83,0)))*(INDEX('Inputs (values)'!$H$62:$KV$62,1,MATCH('Inputs (values)'!$H$12,'Inputs (values)'!$H$83:$KV$83,0))/INDEX('Inputs (values)'!$H$62:$KV$62,1,MATCH('Inputs (values)'!$H$11,'Inputs (values)'!$H$83:$KV$83,0))) -> 4.587465697 | BN22: =(INDEX('Inputs (values)'!$H$84:$KV$86,1,MATCH('Calculations (values)'!BN$21,'Inputs (values)'!$H$83:'Inputs (values)'!$KV$83,0))/INDEX('Inputs (values)'!$H$84:$KV$86,1,MATCH('Inputs (values)'!$H$10,'Inputs (values)'!$H$83:$KV$83,0)))*(INDEX('Inputs (values)'!$H$62:$KV$62,1,MATCH('Inputs (values)'!$H$12,'Inputs (values)'!$H$83:$KV$83,0))/INDEX('Inputs (values)'!$H$62:$KV$62,1,MATCH('Inputs (values)'!$H$11,'Inputs (values)'!$H$83:$KV$83,0))) -> 4.656109218 | BO22: =(INDEX('Inputs (values)'!$H$84:$KV$86,1,MATCH('Calculations (values)'!BO$21,'Inputs (values)'!$H$83:'Inputs (values)'!$KV$83,0))/INDEX('Inputs (values)'!$H$84:$KV$86,1,MATCH('Inputs (values)'!$H$10,'Inputs (values)'!$H$83:$KV$83,0)))*(INDEX('Inputs (values)'!$H$62:$KV$62,1,MATCH('Inputs (values)'!$H$12,'Inputs (values)'!$H$83:$KV$83,0))/INDEX('Inputs (values)'!$H$62:$KV$62,1,MATCH('Inputs (values)'!$H$11,'Inputs (values)'!$H$83:$KV$83,0))) -> 4.725236314 | BP22: =(INDEX('Inputs (values)'!$H$84:$KV$86,1,MATCH('Calculations (values)'!BP$21,'Inputs (values)'!$H$83:'Inputs (values)'!$KV$83,0))/INDEX('Inputs (values)'!$H$84:$KV$86,1,MATCH('Inputs (values)'!$H$10,'Inputs (values)'!$H$83:$KV$83,0)))*(INDEX('Inputs (values)'!$H$62:$KV$62,1,MATCH('Inputs (values)'!$H$12,'Inputs (values)'!$H$83:$KV$83,0))/INDEX('Inputs (values)'!$H$62:$KV$62,1,MATCH('Inputs (values)'!$H$11,'Inputs (values)'!$H$83:$KV$83,0))) -> 4.79729405 | BQ22: =(INDEX('Inputs (values)'!$H$84:$KV$86,1,MATCH('Calculations (values)'!BQ$21,'Inputs (values)'!$H$83:'Inputs (values)'!$KV$83,0))/INDEX('Inputs (values)'!$H$84:$KV$86,1,MATCH('Inputs (values)'!$H$10,'Inputs (values)'!$H$83:$KV$83,0)))*(INDEX('Inputs (values)'!$H$62:$KV$62,1,MATCH('Inputs (values)'!$H$12,'Inputs (values)'!$H$83:$KV$83,0))/INDEX('Inputs (values)'!$H$62:$KV$62,1,MATCH('Inputs (values)'!$H$11,'Inputs (values)'!$H$83:$KV$83,0))) -> 4.871952767 | BR22: =(INDEX('Inputs (values)'!$H$84:$KV$86,1,MATCH('Calculations (values)'!BR$21,'Inputs (values)'!$H$83:'Inputs (values)'!$KV$83,0))/INDEX('Inputs (values)'!$H$84:$KV$86,1,MATCH('Inputs (values)'!$H$10,'Inputs (values)'!$H$83:$KV$83,0)))*(INDEX('Inputs (values)'!$H$62:$KV$62,1,MATCH('Inputs (values)'!$H$12,'Inputs (values)'!$H$83:$KV$83,0))/INDEX('Inputs (values)'!$H$62:$KV$62,1,MATCH('Inputs (values)'!$H$11,'Inputs (values)'!$H$83:$KV$83,0))) -> 4.948690972 | BS22: =(INDEX('Inputs (values)'!$H$84:$KV$86,1,MATCH('Calculations (values)'!BS$21,'Inputs (values)'!$H$83:'Inputs (values)'!$KV$83,0))/INDEX('Inputs (values)'!$H$84:$KV$86,1,MATCH('Inputs (values)'!$H$10,'Inputs (values)'!$H$83:$KV$83,0)))*(INDEX('Inputs (values)'!$H$62:$KV$62,1,MATCH('Inputs (values)'!$H$12,'Inputs (values)'!$H$83:$KV$83,0))/INDEX('Inputs (values)'!$H$62:$KV$62,1,MATCH('Inputs (values)'!$H$11,'Inputs (values)'!$H$83:$KV$83,0))) -> 5.027690089 | BT22: =(INDEX('Inputs (values)'!$H$84:$KV$86,1,MATCH('Calculations (values)'!BT$21,'Inputs (values)'!$H$83:'Inputs (values)'!$KV$83,0))/INDEX('Inputs (values)'!$H$84:$KV$86,1,MATCH('Inputs (values)'!$H$10,'Inputs (values)'!$H$83:$KV$83,0)))*(INDEX('Inputs (values)'!$H$62:$KV$62,1,MATCH('Inputs (values)'!$H$12,'Inputs (values)'!$H$83:$KV$83,0))/INDEX('Inputs (values)'!$H$62:$KV$62,1,MATCH('Inputs (values)'!$H$11,'Inputs (values)'!$H$83:$KV$83,0))) -> 5.110239458 | BU22: =(INDEX('Inputs (values)'!$H$84:$KV$86,1,MATCH('Calculations (values)'!BU$21,'Inputs (values)'!$H$83:'Inputs (values)'!$KV$83,0))/INDEX('Inputs (values)'!$H$84:$KV$86,1,MATCH('Inputs (values)'!$H$10,'Inputs (values)'!$H$83:$KV$83,0)))*(INDEX('Inputs (values)'!$H$62:$KV$62,1,MATCH('Inputs (values)'!$H$12,'Inputs (values)'!$H$83:$KV$83,0))/INDEX('Inputs (values)'!$H$62:$KV$62,1,MATCH('Inputs (values)'!$H$11,'Inputs (values)'!$H$83:$KV$83,0))) -> 5.192844165 | BV22: =(INDEX('Inputs (values)'!$H$84:$KV$86,1,MATCH('Calculations (values)'!BV$21,'Inputs (values)'!$H$83:'Inputs (values)'!$KV$83,0))/INDEX('Inputs (values)'!$H$84:$KV$86,1,MATCH('Inputs (values)'!$H$10,'Inputs (values)'!$H$83:$KV$83,0)))*(INDEX('Inputs (values)'!$H$62:$KV$62,1,MATCH('Inputs (values)'!$H$12,'Inputs (values)'!$H$83:$KV$83,0))/INDEX('Inputs (values)'!$H$62:$KV$62,1,MATCH('Inputs (values)'!$H$11,'Inputs (values)'!$H$83:$KV$83,0))) -> 5.279806093 | BW22: =(INDEX('Inputs (values)'!$H$84:$KV$86,1,MATCH('Calculations (values)'!BW$21,'Inputs (values)'!$H$83:'Inputs (values)'!$KV$83,0))/INDEX('Inputs (values)'!$H$84:$KV$86,1,MATCH('Inputs (values)'!$H$10,'Inputs (values)'!$H$83:$KV$83,0)))*(INDEX('Inputs (values)'!$H$62:$KV$62,1,MATCH('Inputs (values)'!$H$12,'Inputs (values)'!$H$83:$KV$83,0))/INDEX('Inputs (values)'!$H$62:$KV$62,1,MATCH('Inputs (values)'!$H$11,'Inputs (values)'!$H$83:$KV$83,0))) -> 5.363798404 | BX22: =(INDEX('Inputs (values)'!$H$84:$KV$86,1,MATCH('Calculations (values)'!BX$21,'Inputs (values)'!$H$83:'Inputs (values)'!$KV$83,0))/INDEX('Inputs (values)'!$H$84:$KV$86,1,MATCH('Inputs (values)'!$H$10,'Inputs (values)'!$H$83:$KV$83,0)))*(INDEX('Inputs (values)'!$H$62:$KV$62,1,MATCH('Inputs (values)'!$H$12,'Inputs (values)'!$H$83:$KV$83,0))/INDEX('Inputs (values)'!$H$62:$KV$62,1,MATCH('Inputs (values)'!$H$11,'Inputs (values)'!$H$83:$KV$83,0))) -> 5.448456423 | BY22: =(INDEX('Inputs (values)'!$H$84:$KV$86,1,MATCH('Calculations (values)'!BY$21,'Inputs (values)'!$H$83:'Inputs (values)'!$KV$83,0))/INDEX('Inputs (values)'!$H$84:$KV$86,1,MATCH('Inputs (values)'!$H$10,'Inputs (values)'!$H$83:$KV$83,0)))*(INDEX('Inputs (values)'!$H$62:$KV$62,1,MATCH('Inputs (values)'!$H$12,'Inputs (values)'!$H$83:$KV$83,0))/INDEX('Inputs (values)'!$H$62:$KV$62,1,MATCH('Inputs (values)'!$H$11,'Inputs (values)'!$H$83:$KV$83,0))) -> 5.534172687 | BZ22: =(INDEX('Inputs (values)'!$H$84:$KV$86,1,MATCH('Calculations (values)'!BZ$21,'Inputs (values)'!$H$83:'Inputs (values)'!$KV$83,0))/INDEX('Inputs (values)'!$H$84:$KV$86,1,MATCH('Inputs (values)'!$H$10,'Inputs (values)'!$H$83:$KV$83,0)))*(INDEX('Inputs (values)'!$H$62:$KV$62,1,MATCH('Inputs (values)'!$H$12,'Inputs (values)'!$H$83:$KV$83,0))/INDEX('Inputs (values)'!$H$62:$KV$62,1,MATCH('Inputs (values)'!$H$11,'Inputs (values)'!$H$83:$KV$83,0))) -> 5.621024499 | CA22: =(INDEX('Inputs (values)'!$H$84:$KV$86,1,MATCH('Calculations (values)'!CA$21,'Inputs (values)'!$H$83:'Inputs (values)'!$KV$83,0))/INDEX('Inputs (values)'!$H$84:$KV$86,1,MATCH('Inputs (values)'!$H$10,'Inputs (values)'!$H$83:$KV$83,0)))*(INDEX('Inputs (values)'!$H$62:$KV$62,1,MATCH('Inputs (values)'!$H$12,'Inputs (values)'!$H$83:$KV$83,0))/INDEX('Inputs (values)'!$H$62:$KV$62,1,MATCH('Inputs (values)'!$H$11,'Inputs (values)'!$H$83:$KV$83,0))) -> 5.709095487 | CB22: =(INDEX('Inputs (values)'!$H$84:$KV$86,1,MATCH('Calculations (values)'!CB$21,'Inputs (values)'!$H$83:'Inputs (values)'!$KV$83,0))/INDEX('Inputs (values)'!$H$84:$KV$86,1,MATCH('Inputs (values)'!$H$10,'Inputs (values)'!$H$83:$KV$83,0)))*(INDEX('Inputs (values)'!$H$62:$KV$62,1,MATCH('Inputs (values)'!$H$12,'Inputs (values)'!$H$83:$KV$83,0))/INDEX('Inputs (values)'!$H$62:$KV$62,1,MATCH('Inputs (values)'!$H$11,'Inputs (values)'!$H$83:$KV$83,0))) -> 5.798447803 | CC22: =(INDEX('Inputs (values)'!$H$84:$KV$86,1,MATCH('Calculations (values)'!CC$21,'Inputs (values)'!$H$83:'Inputs (values)'!$KV$83,0))/INDEX('Inputs (values)'!$H$84:$KV$86,1,MATCH('Inputs (values)'!$H$10,'Inputs (values)'!$H$83:$KV$83,0)))*(INDEX('Inputs (values)'!$H$62:$KV$62,1,MATCH('Inputs (values)'!$H$12,'Inputs (values)'!$H$83:$KV$83,0))/INDEX('Inputs (values)'!$H$62:$KV$62,1,MATCH('Inputs (values)'!$H$11,'Inputs (values)'!$H$83:$KV$83,0))) -> 5.889080377 | CD22: =(INDEX('Inputs (values)'!$H$84:$KV$86,1,MATCH('Calculations (values)'!CD$21,'Inputs (values)'!$H$83:'Inputs (values)'!$KV$83,0))/INDEX('Inputs (values)'!$H$84:$KV$86,1,MATCH('Inputs (values)'!$H$10,'Inputs (values)'!$H$83:$KV$83,0)))*(INDEX('Inputs (values)'!$H$62:$KV$62,1,MATCH('Inputs (values)'!$H$12,'Inputs (values)'!$H$83:$KV$83,0))/INDEX('Inputs (values)'!$H$62:$KV$62,1,MATCH('Inputs (values)'!$H$11,'Inputs (values)'!$H$83:$KV$83,0))) -> 5.980989137 | CE22: =(INDEX('Inputs (values)'!$H$84:$KV$86,1,MATCH('Calculations (values)'!CE$21,'Inputs (values)'!$H$83:'Inputs (values)'!$KV$83,0))/INDEX('Inputs (values)'!$H$84:$KV$86,1,MATCH('Inputs (values)'!$H$10,'Inputs (values)'!$H$83:$KV$83,0)))*(INDEX('Inputs (values)'!$H$62:$KV$62,1,MATCH('Inputs (values)'!$H$12,'Inputs (values)'!$H$83:$KV$83,0))/INDEX('Inputs (values)'!$H$62:$KV$62,1,MATCH('Inputs (values)'!$H$11,'Inputs (values)'!$H$83:$KV$83,0))) -> 6.074155623 | CF22: =(INDEX('Inputs (values)'!$H$84:$KV$86,1,MATCH('Calculations (values)'!CF$21,'Inputs (values)'!$H$83:'Inputs (values)'!$KV$83,0))/INDEX('Inputs (values)'!$H$84:$KV$86,1,MATCH('Inputs (values)'!$H$10,'Inputs (values)'!$H$83:$KV$83,0)))*(INDEX('Inputs (values)'!$H$62:$KV$62,1,MATCH('Inputs (values)'!$H$12,'Inputs (values)'!$H$83:$KV$83,0))/INDEX('Inputs (values)'!$H$62:$KV$62,1,MATCH('Inputs (values)'!$H$11,'Inputs (values)'!$H$83:$KV$83,0))) -> 6.168773374 | CG22: =(INDEX('Inputs (values)'!$H$84:$KV$86,1,MATCH('Calculations (values)'!CG$21,'Inputs (values)'!$H$83:'Inputs (values)'!$KV$83,0))/INDEX('Inputs (values)'!$H$84:$KV$86,1,MATCH('Inputs (values)'!$H$10,'Inputs (values)'!$H$83:$KV$83,0)))*(INDEX('Inputs (values)'!$H$62:$KV$62,1,MATCH('Inputs (values)'!$H$12,'Inputs (values)'!$H$83:$KV$83,0))/INDEX('Inputs (values)'!$H$62:$KV$62,1,MATCH('Inputs (values)'!$H$11,'Inputs (values)'!$H$83:$KV$83,0))) -> 6.264864994 | CH22: =(INDEX('Inputs (values)'!$H$84:$KV$86,1,MATCH('Calculations (values)'!CH$21,'Inputs (values)'!$H$83:'Inputs (values)'!$KV$83,0))/INDEX('Inputs (values)'!$H$84:$KV$86,1,MATCH('Inputs (values)'!$H$10,'Inputs (values)'!$H$83:$KV$83,0)))*(INDEX('Inputs (values)'!$H$62:$KV$62,1,MATCH('Inputs (values)'!$H$12,'Inputs (values)'!$H$83:$KV$83,0))/INDEX('Inputs (values)'!$H$62:$KV$62,1,MATCH('Inputs (values)'!$H$11,'Inputs (values)'!$H$83:$KV$83,0))) -> 6.362453444 | CI22: =(INDEX('Inputs (values)'!$H$84:$KV$86,1,MATCH('Calculations (values)'!CI$21,'Inputs (values)'!$H$83:'Inputs (values)'!$KV$83,0))/INDEX('Inputs (values)'!$H$84:$KV$86,1,MATCH('Inputs (values)'!$H$10,'Inputs (values)'!$H$83:$KV$83,0)))*(INDEX('Inputs (values)'!$H$62:$KV$62,1,MATCH('Inputs (values)'!$H$12,'Inputs (values)'!$H$83:$KV$83,0))/INDEX('Inputs (values)'!$H$62:$KV$62,1,MATCH('Inputs (values)'!$H$11,'Inputs (values)'!$H$83:$KV$83,0))) -> 6.46156204 | CJ22: =(INDEX('Inputs (values)'!$H$84:$KV$86,1,MATCH('Calculations (values)'!CJ$21,'Inputs (values)'!$H$83:'Inputs (values)'!$KV$83,0))/INDEX('Inputs (values)'!$H$84:$KV$86,1,MATCH('Inputs (values)'!$H$10,'Inputs (values)'!$H$83:$KV$83,0)))*(INDEX('Inputs (values)'!$H$62:$KV$62,1,MATCH('Inputs (values)'!$H$12,'Inputs (values)'!$H$83:$KV$83,0))/INDEX('Inputs (values)'!$H$62:$KV$62,1,MATCH('Inputs (values)'!$H$11,'Inputs (values)'!$H$83:$KV$83,0))) -> 6.56221446 | CK22: =(INDEX('Inputs (values)'!$H$84:$KV$86,1,MATCH('Calculations (values)'!CK$21,'Inputs (values)'!$H$83:'Inputs (values)'!$KV$83,0))/INDEX('Inputs (values)'!$H$84:$KV$86,1,MATCH('Inputs (values)'!$H$10,'Inputs (values)'!$H$83:$KV$83,0)))*(INDEX('Inputs (values)'!$H$62:$KV$62,1,MATCH('Inputs (values)'!$H$12,'Inputs (values)'!$H$83:$KV$83,0))/INDEX('Inputs (values)'!$H$62:$KV$62,1,MATCH('Inputs (values)'!$H$11,'Inputs (values)'!$H$83:$KV$83,0))) -> 6.664434753 | CL22: =(INDEX('Inputs (values)'!$H$84:$KV$86,1,MATCH('Calculations (values)'!CL$21,'Inputs (values)'!$H$83:'Inputs (values)'!$KV$83,0))/INDEX('Inputs (values)'!$H$84:$KV$86,1,MATCH('Inputs (values)'!$H$10,'Inputs (values)'!$H$83:$KV$83,0)))*(INDEX('Inputs (values)'!$H$62:$KV$62,1,MATCH('Inputs (values)'!$H$12,'Inputs (values)'!$H$83:$KV$83,0))/INDEX('Inputs (values)'!$H$62:$KV$62,1,MATCH('Inputs (values)'!$H$11,'Inputs (values)'!$H$83:$KV$83,0))) -> 6.768247343 | CM22: =(INDEX('Inputs (values)'!$H$84:$KV$86,1,MATCH('Calculations (values)'!CM$21,'Inputs (values)'!$H$83:'Inputs (values)'!$KV$83,0))/INDEX('Inputs (values)'!$H$84:$KV$86,1,MATCH('Inputs (values)'!$H$10,'Inputs (values)'!$H$83:$KV$83,0)))*(INDEX('Inputs (values)'!$H$62:$KV$62,1,MATCH('Inputs (values)'!$H$12,'Inputs (values)'!$H$83:$KV$83,0))/INDEX('Inputs (values)'!$H$62:$KV$62,1,MATCH('Inputs (values)'!$H$11,'Inputs (values)'!$H$83:$KV$83,0))) -> 6.873677031 | CN22: =(INDEX('Inputs (values)'!$H$84:$KV$86,1,MATCH('Calculations (values)'!CN$21,'Inputs (values)'!$H$83:'Inputs (values)'!$KV$83,0))/INDEX('Inputs (values)'!$H$84:$KV$86,1,MATCH('Inputs (values)'!$H$10,'Inputs (values)'!$H$83:$KV$83,0)))*(INDEX('Inputs (values)'!$H$62:$KV$62,1,MATCH('Inputs (values)'!$H$12,'Inputs (values)'!$H$83:$KV$83,0))/INDEX('Inputs (values)'!$H$62:$KV$62,1,MATCH('Inputs (values)'!$H$11,'Inputs (values)'!$H$83:$KV$83,0))) -> 6.980749009 | CO22: =(INDEX('Inputs (values)'!$H$84:$KV$86,1,MATCH('Calculations (values)'!CO$21,'Inputs (values)'!$H$83:'Inputs (values)'!$KV$83,0))/INDEX('Inputs (values)'!$H$84:$KV$86,1,MATCH('Inputs (values)'!$H$10,'Inputs (values)'!$H$83:$KV$83,0)))*(INDEX('Inputs (values)'!$H$62:$KV$62,1,MATCH('Inputs (values)'!$H$12,'Inputs (values)'!$H$83:$KV$83,0))/INDEX('Inputs (values)'!$H$62:$KV$62,1,MATCH('Inputs (values)'!$H$11,'Inputs (values)'!$H$83:$KV$83,0))) -> 7.089488859 | CP22: =(INDEX('Inputs (values)'!$H$84:$KV$86,1,MATCH('Calculations (values)'!CP$21,'Inputs (values)'!$H$83:'Inputs (values)'!$KV$83,0))/INDEX('Inputs (values)'!$H$84:$KV$86,1,MATCH('Inputs (values)'!$H$10,'Inputs (values)'!$H$83:$KV$83,0)))*(INDEX('Inputs (values)'!$H$62:$KV$62,1,MATCH('Inputs (values)'!$H$12,'Inputs (values)'!$H$83:$KV$83,0))/INDEX('Inputs (values)'!$H$62:$KV$62,1,MATCH('Inputs (values)'!$H$11,'Inputs (values)'!$H$83:$KV$83,0))) -> 7.19992256 | CQ22: =(INDEX('Inputs (values)'!$H$84:$KV$86,1,MATCH('Calculations (values)'!CQ$21,'Inputs (values)'!$H$83:'Inputs (values)'!$KV$83,0))/INDEX('Inputs (values)'!$H$84:$KV$86,1,MATCH('Inputs (values)'!$H$10,'Inputs (values)'!$H$83:$KV$83,0)))*(INDEX('Inputs (values)'!$H$62:$KV$62,1,MATCH('Inputs (values)'!$H$12,'Inputs (values)'!$H$83:$KV$83,0))/INDEX('Inputs (values)'!$H$62:$KV$62,1,MATCH('Inputs (values)'!$H$11,'Inputs (values)'!$H$83:$KV$83,0))) -> 7.312076498 | CR22: =(INDEX('Inputs (values)'!$H$84:$KV$86,1,MATCH('Calculations (values)'!CR$21,'Inputs (values)'!$H$83:'Inputs (values)'!$KV$83,0))/INDEX('Inputs (values)'!$H$84:$KV$86,1,MATCH('Inputs (values)'!$H$10,'Inputs (values)'!$H$83:$KV$83,0)))*(INDEX('Inputs (values)'!$H$62:$KV$62,1,MATCH('Inputs (values)'!$H$12,'Inputs (values)'!$H$83:$KV$83,0))/INDEX('Inputs (values)'!$H$62:$KV$62,1,MATCH('Inputs (values)'!$H$11,'Inputs (values)'!$H$83:$KV$83,0))) -> 7.42597747 | CS22: =(INDEX('Inputs (values)'!$H$84:$KV$86,1,MATCH('Calculations (values)'!CS$21,'Inputs (values)'!$H$83:'Inputs (values)'!$KV$83,0))/INDEX('Inputs (values)'!$H$84:$KV$86,1,MATCH('Inputs (values)'!$H$10,'Inputs (values)'!$H$83:$KV$83,0)))*(INDEX('Inputs (values)'!$H$62:$KV$62,1,MATCH('Inputs (values)'!$H$12,'Inputs (values)'!$H$83:$KV$83,0))/INDEX('Inputs (values)'!$H$62:$KV$62,1,MATCH('Inputs (values)'!$H$11,'Inputs (values)'!$H$83:$KV$83,0))) -> 7.541652689 | CT22: =(INDEX('Inputs (values)'!$H$84:$KV$86,1,MATCH('Calculations (values)'!CT$21,'Inputs (values)'!$H$83:'Inputs (values)'!$KV$83,0))/INDEX('Inputs (values)'!$H$84:$KV$86,1,MATCH('Inputs (values)'!$H$10,'Inputs (values)'!$H$83:$KV$83,0)))*(INDEX('Inputs (values)'!$H$62:$KV$62,1,MATCH('Inputs (values)'!$H$12,'Inputs (values)'!$H$83:$KV$83,0))/INDEX('Inputs (values)'!$H$62:$KV$62,1,MATCH('Inputs (values)'!$H$11,'Inputs (values)'!$H$83:$KV$83,0))) -> 7.659129793 | CU22: =(INDEX('Inputs (values)'!$H$84:$KV$86,1,MATCH('Calculations (values)'!CU$21,'Inputs (values)'!$H$83:'Inputs (values)'!$KV$83,0))/INDEX('Inputs (values)'!$H$84:$KV$86,1,MATCH('Inputs (values)'!$H$10,'Inputs (values)'!$H$83:$KV$83,0)))*(INDEX('Inputs (values)'!$H$62:$KV$62,1,MATCH('Inputs (values)'!$H$12,'Inputs (values)'!$H$83:$KV$83,0))/INDEX('Inputs (values)'!$H$62:$KV$62,1,MATCH('Inputs (values)'!$H$11,'Inputs (values)'!$H$83:$KV$83,0))) -> 7.77843685 | CV22: =(INDEX('Inputs (values)'!$H$84:$KV$86,1,MATCH('Calculations (values)'!CV$21,'Inputs (values)'!$H$83:'Inputs (values)'!$KV$83,0))/INDEX('Inputs (values)'!$H$84:$KV$86,1,MATCH('Inputs (values)'!$H$10,'Inputs (values)'!$H$83:$KV$83,0)))*(INDEX('Inputs (values)'!$H$62:$KV$62,1,MATCH('Inputs (values)'!$H$12,'Inputs (values)'!$H$83:$KV$83,0))/INDEX('Inputs (values)'!$H$62:$KV$62,1,MATCH('Inputs (values)'!$H$11,'Inputs (values)'!$H$83:$KV$83,0))) -> 7.899602365 | CW22: =(INDEX('Inputs (values)'!$H$84:$KV$86,1,MATCH('Calculations (values)'!CW$21,'Inputs (values)'!$H$83:'Inputs (values)'!$KV$83,0))/INDEX('Inputs (values)'!$H$84:$KV$86,1,MATCH('Inputs (values)'!$H$10,'Inputs (values)'!$H$83:$KV$83,0)))*(INDEX('Inputs (values)'!$H$62:$KV$62,1,MATCH('Inputs (values)'!$H$12,'Inputs (values)'!$H$83:$KV$83,0))/INDEX('Inputs (values)'!$H$62:$KV$62,1,MATCH('Inputs (values)'!$H$11,'Inputs (values)'!$H$83:$KV$83,0))) -> 8.022655288 | CX22: =(INDEX('Inputs (values)'!$H$84:$KV$86,1,MATCH('Calculations (values)'!CX$21,'Inputs (values)'!$H$83:'Inputs (values)'!$KV$83,0))/INDEX('Inputs (values)'!$H$84:$KV$86,1,MATCH('Inputs (values)'!$H$10,'Inputs (values)'!$H$83:$KV$83,0)))*(INDEX('Inputs (values)'!$H$62:$KV$62,1,MATCH('Inputs (values)'!$H$12,'Inputs (values)'!$H$83:$KV$83,0))/INDEX('Inputs (values)'!$H$62:$KV$62,1,MATCH('Inputs (values)'!$H$11,'Inputs (values)'!$H$83:$KV$83,0))) -> 8.147625019 | CY22: =(INDEX('Inputs (values)'!$H$84:$KV$86,1,MATCH('Calculations (values)'!CY$21,'Inputs (values)'!$H$83:'Inputs (values)'!$KV$83,0))/INDEX('Inputs (values)'!$H$84:$KV$86,1,MATCH('Inputs (values)'!$H$10,'Inputs (values)'!$H$83:$KV$83,0)))*(INDEX('Inputs (values)'!$H$62:$KV$62,1,MATCH('Inputs (values)'!$H$12,'Inputs (values)'!$H$83:$KV$83,0))/INDEX('Inputs (values)'!$H$62:$KV$62,1,MATCH('Inputs (values)'!$H$11,'Inputs (values)'!$H$83:$KV$83,0))) -> 8.274541417 | CZ22: =(INDEX('Inputs (values)'!$H$84:$KV$86,1,MATCH('Calculations (values)'!CZ$21,'Inputs (values)'!$H$83:'Inputs (values)'!$KV$83,0))/INDEX('Inputs (values)'!$H$84:$KV$86,1,MATCH('Inputs (values)'!$H$10,'Inputs (values)'!$H$83:$KV$83,0)))*(INDEX('Inputs (values)'!$H$62:$KV$62,1,MATCH('Inputs (values)'!$H$12,'Inputs (values)'!$H$83:$KV$83,0))/INDEX('Inputs (values)'!$H$62:$KV$62,1,MATCH('Inputs (values)'!$H$11,'Inputs (values)'!$H$83:$KV$83,0))) -> 8.403434804 | DA22: =(INDEX('Inputs (values)'!$H$84:$KV$86,1,MATCH('Calculations (values)'!DA$21,'Inputs (values)'!$H$83:'Inputs (values)'!$KV$83,0))/INDEX('Inputs (values)'!$H$84:$KV$86,1,MATCH('Inputs (values)'!$H$10,'Inputs (values)'!$H$83:$KV$83,0)))*(INDEX('Inputs (values)'!$H$62:$KV$62,1,MATCH('Inputs (values)'!$H$12,'Inputs (values)'!$H$83:$KV$83,0))/INDEX('Inputs (values)'!$H$62:$KV$62,1,MATCH('Inputs (values)'!$H$11,'Inputs (values)'!$H$83:$KV$83,0))) -> 8.534335977 | DB22: =(INDEX('Inputs (values)'!$H$84:$KV$86,1,MATCH('Calculations (values)'!DB$21,'Inputs (values)'!$H$83:'Inputs (values)'!$KV$83,0))/INDEX('Inputs (values)'!$H$84:$KV$86,1,MATCH('Inputs (values)'!$H$10,'Inputs (values)'!$H$83:$KV$83,0)))*(INDEX('Inputs (values)'!$H$62:$KV$62,1,MATCH('Inputs (values)'!$H$12,'Inputs (values)'!$H$83:$KV$83,0))/INDEX('Inputs (values)'!$H$62:$KV$62,1,MATCH('Inputs (values)'!$H$11,'Inputs (values)'!$H$83:$KV$83,0))) -> 8.667276211 | DC22: =(INDEX('Inputs (values)'!$H$84:$KV$86,1,MATCH('Calculations (values)'!DC$21,'Inputs (values)'!$H$83:'Inputs (values)'!$KV$83,0))/INDEX('Inputs (values)'!$H$84:$KV$86,1,MATCH('Inputs (values)'!$H$10,'Inputs (values)'!$H$83:$KV$83,0)))*(INDEX('Inputs (values)'!$H$62:$KV$62,1,MATCH('Inputs (values)'!$H$12,'Inputs (values)'!$H$83:$KV$83,0))/INDEX('Inputs (values)'!$H$62:$KV$62,1,MATCH('Inputs (values)'!$H$11,'Inputs (values)'!$H$83:$KV$83,0))) -> 8.802287269 | DD22: =(INDEX('Inputs (values)'!$H$84:$KV$86,1,MATCH('Calculations (values)'!DD$21,'Inputs (values)'!$H$83:'Inputs (values)'!$KV$83,0))/INDEX('Inputs (values)'!$H$84:$KV$86,1,MATCH('Inputs (values)'!$H$10,'Inputs (values)'!$H$83:$KV$83,0)))*(INDEX('Inputs (values)'!$H$62:$KV$62,1,MATCH('Inputs (values)'!$H$12,'Inputs (values)'!$H$83:$KV$83,0))/INDEX('Inputs (values)'!$H$62:$KV$62,1,MATCH('Inputs (values)'!$H$11,'Inputs (values)'!$H$83:$KV$83,0))) -> 8.939401408 | DE22: =(INDEX('Inputs (values)'!$H$84:$KV$86,1,MATCH('Calculations (values)'!DE$21,'Inputs (values)'!$H$83:'Inputs (values)'!$KV$83,0))/INDEX('Inputs (values)'!$H$84:$KV$86,1,MATCH('Inputs (values)'!$H$10,'Inputs (values)'!$H$83:$KV$83,0)))*(INDEX('Inputs (values)'!$H$62:$KV$62,1,MATCH('Inputs (values)'!$H$12,'Inputs (values)'!$H$83:$KV$83,0))/INDEX('Inputs (values)'!$H$62:$KV$62,1,MATCH('Inputs (values)'!$H$11,'Inputs (values)'!$H$83:$KV$83,0))) -> 9.078651389 | DF22: =(INDEX('Inputs (values)'!$H$84:$KV$86,1,MATCH('Calculations (values)'!DF$21,'Inputs (values)'!$H$83:'Inputs (values)'!$KV$83,0))/INDEX('Inputs (values)'!$H$84:$KV$86,1,MATCH('Inputs (values)'!$H$10,'Inputs (values)'!$H$83:$KV$83,0)))*(INDEX('Inputs (values)'!$H$62:$KV$62,1,MATCH('Inputs (values)'!$H$12,'Inputs (values)'!$H$83:$KV$83,0))/INDEX('Inputs (values)'!$H$62:$KV$62,1,MATCH('Inputs (values)'!$H$11,'Inputs (values)'!$H$83:$KV$83,0))) -> 9.22007048 | DG22: =(INDEX('Inputs (values)'!$H$84:$KV$86,1,MATCH('Calculations (values)'!DG$21,'Inputs (values)'!$H$83:'Inputs (values)'!$KV$83,0))/INDEX('Inputs (values)'!$H$84:$KV$86,1,MATCH('Inputs (values)'!$H$10,'Inputs (values)'!$H$83:$KV$83,0)))*(INDEX('Inputs (values)'!$H$62:$KV$62,1,MATCH('Inputs (values)'!$H$12,'Inputs (values)'!$H$83:$KV$83,0))/INDEX('Inputs (values)'!$H$62:$KV$62,1,MATCH('Inputs (values)'!$H$11,'Inputs (values)'!$H$83:$KV$83,0))) -> 9.363692472 | DH22: =(INDEX('Inputs (values)'!$H$84:$KV$86,1,MATCH('Calculations (values)'!DH$21,'Inputs (values)'!$H$83:'Inputs (values)'!$KV$83,0))/INDEX('Inputs (values)'!$H$84:$KV$86,1,MATCH('Inputs (values)'!$H$10,'Inputs (values)'!$H$83:$KV$83,0)))*(INDEX('Inputs (values)'!$H$62:$KV$62,1,MATCH('Inputs (values)'!$H$12,'Inputs (values)'!$H$83:$KV$83,0))/INDEX('Inputs (values)'!$H$62:$KV$62,1,MATCH('Inputs (values)'!$H$11,'Inputs (values)'!$H$83:$KV$83,0))) -> 9.509551678 | DI22: =(INDEX('Inputs (values)'!$H$84:$KV$86,1,MATCH('Calculations (values)'!DI$21,'Inputs (values)'!$H$83:'Inputs (values)'!$KV$83,0))/INDEX('Inputs (values)'!$H$84:$KV$86,1,MATCH('Inputs (values)'!$H$10,'Inputs (values)'!$H$83:$KV$83,0)))*(INDEX('Inputs (values)'!$H$62:$KV$62,1,MATCH('Inputs (values)'!$H$12,'Inputs (values)'!$H$83:$KV$83,0))/INDEX('Inputs (values)'!$H$62:$KV$62,1,MATCH('Inputs (values)'!$H$11,'Inputs (values)'!$H$83:$KV$83,0))) -> 9.657682948 | DJ22: =(INDEX('Inputs (values)'!$H$84:$KV$86,1,MATCH('Calculations (values)'!DJ$21,'Inputs (values)'!$H$83:'Inputs (values)'!$KV$83,0))/INDEX('Inputs (values)'!$H$84:$KV$86,1,MATCH('Inputs (values)'!$H$10,'Inputs (values)'!$H$83:$KV$83,0)))*(INDEX('Inputs (values)'!$H$62:$KV$62,1,MATCH('Inputs (values)'!$H$12,'Inputs (values)'!$H$83:$KV$83,0))/INDEX('Inputs (values)'!$H$62:$KV$62,1,MATCH('Inputs (values)'!$H$11,'Inputs (values)'!$H$83:$KV$83,0))) -> 9.808121674 | DK22: =(INDEX('Inputs (values)'!$H$84:$KV$86,1,MATCH('Calculations (values)'!DK$21,'Inputs (values)'!$H$83:'Inputs (values)'!$KV$83,0))/INDEX('Inputs (values)'!$H$84:$KV$86,1,MATCH('Inputs (values)'!$H$10,'Inputs (values)'!$H$83:$KV$83,0)))*(INDEX('Inputs (values)'!$H$62:$KV$62,1,MATCH('Inputs (values)'!$H$12,'Inputs (values)'!$H$83:$KV$83,0))/INDEX('Inputs (values)'!$H$62:$KV$62,1,MATCH('Inputs (values)'!$H$11,'Inputs (values)'!$H$83:$KV$83,0))) -> 9.9609038 | DL22: =(INDEX('Inputs (values)'!$H$84:$KV$86,1,MATCH('Calculations (values)'!DL$21,'Inputs (values)'!$H$83:'Inputs (values)'!$KV$83,0))/INDEX('Inputs (values)'!$H$84:$KV$86,1,MATCH('Inputs (values)'!$H$10,'Inputs (values)'!$H$83:$KV$83,0)))*(INDEX('Inputs (values)'!$H$62:$KV$62,1,MATCH('Inputs (values)'!$H$12,'Inputs (values)'!$H$83:$KV$83,0))/INDEX('Inputs (values)'!$H$62:$KV$62,1,MATCH('Inputs (values)'!$H$11,'Inputs (values)'!$H$83:$KV$83,0))) -> 10.11606583 | DM22: =(INDEX('Inputs (values)'!$H$84:$KV$86,1,MATCH('Calculations (values)'!DM$21,'Inputs (values)'!$H$83:'Inputs (values)'!$KV$83,0))/INDEX('Inputs (values)'!$H$84:$KV$86,1,MATCH('Inputs (values)'!$H$10,'Inputs (values)'!$H$83:$KV$83,0)))*(INDEX('Inputs (values)'!$H$62:$KV$62,1,MATCH('Inputs (values)'!$H$12,'Inputs (values)'!$H$83:$KV$83,0))/INDEX('Inputs (values)'!$H$62:$KV$62,1,MATCH('Inputs (values)'!$H$11,'Inputs (values)'!$H$83:$KV$83,0))) -> 10.27364483 | DN22: =(INDEX('Inputs (values)'!$H$84:$KV$86,1,MATCH('Calculations (values)'!DN$21,'Inputs (values)'!$H$83:'Inputs (values)'!$KV$83,0))/INDEX('Inputs (values)'!$H$84:$KV$86,1,MATCH('Inputs (values)'!$H$10,'Inputs (values)'!$H$83:$KV$83,0)))*(INDEX('Inputs (values)'!$H$62:$KV$62,1,MATCH('Inputs (values)'!$H$12,'Inputs (values)'!$H$83:$KV$83,0))/INDEX('Inputs (values)'!$H$62:$KV$62,1,MATCH('Inputs (values)'!$H$11,'Inputs (values)'!$H$83:$KV$83,0))) -> 10.43367846 | DO22: =(INDEX('Inputs (values)'!$H$84:$KV$86,1,MATCH('Calculations (values)'!DO$21,'Inputs (values)'!$H$83:'Inputs (values)'!$KV$83,0))/INDEX('Inputs (values)'!$H$84:$KV$86,1,MATCH('Inputs (values)'!$H$10,'Inputs (values)'!$H$83:$KV$83,0)))*(INDEX('Inputs (values)'!$H$62:$KV$62,1,MATCH('Inputs (values)'!$H$12,'Inputs (values)'!$H$83:$KV$83,0))/INDEX('Inputs (values)'!$H$62:$KV$62,1,MATCH('Inputs (values)'!$H$11,'Inputs (values)'!$H$83:$KV$83,0))) -> 10.59620495 | DP22: =(INDEX('Inputs (values)'!$H$84:$KV$86,1,MATCH('Calculations (values)'!DP$21,'Inputs (values)'!$H$83:'Inputs (values)'!$KV$83,0))/INDEX('Inputs (values)'!$H$84:$KV$86,1,MATCH('Inputs (values)'!$H$10,'Inputs (values)'!$H$83:$KV$83,0)))*(INDEX('Inputs (values)'!$H$62:$KV$62,1,MATCH('Inputs (values)'!$H$12,'Inputs (values)'!$H$83:$KV$83,0))/INDEX('Inputs (values)'!$H$62:$KV$62,1,MATCH('Inputs (values)'!$H$11,'Inputs (values)'!$H$83:$KV$83,0))) -> 10.76126313 | DQ22: =(INDEX('Inputs (values)'!$H$84:$KV$86,1,MATCH('Calculations (values)'!DQ$21,'Inputs (values)'!$H$83:'Inputs (values)'!$KV$83,0))/INDEX('Inputs (values)'!$H$84:$KV$86,1,MATCH('Inputs (values)'!$H$10,'Inputs (values)'!$H$83:$KV$83,0)))*(INDEX('Inputs (values)'!$H$62:$KV$62,1,MATCH('Inputs (values)'!$H$12,'Inputs (values)'!$H$83:$KV$83,0))/INDEX('Inputs (values)'!$H$62:$KV$62,1,MATCH('Inputs (values)'!$H$11,'Inputs (values)'!$H$83:$KV$83,0))) -> 10.92889244 | DR22: =(INDEX('Inputs (values)'!$H$84:$KV$86,1,MATCH('Calculations (values)'!DR$21,'Inputs (values)'!$H$83:'Inputs (values)'!$KV$83,0))/INDEX('Inputs (values)'!$H$84:$KV$86,1,MATCH('Inputs (values)'!$H$10,'Inputs (values)'!$H$83:$KV$83,0)))*(INDEX('Inputs (values)'!$H$62:$KV$62,1,MATCH('Inputs (values)'!$H$12,'Inputs (values)'!$H$83:$KV$83,0))/INDEX('Inputs (values)'!$H$62:$KV$62,1,MATCH('Inputs (values)'!$H$11,'Inputs (values)'!$H$83:$KV$83,0))) -> 11.09913293 | DS22: =(INDEX('Inputs (values)'!$H$84:$KV$86,1,MATCH('Calculations (values)'!DS$21,'Inputs (values)'!$H$83:'Inputs (values)'!$KV$83,0))/INDEX('Inputs (values)'!$H$84:$KV$86,1,MATCH('Inputs (values)'!$H$10,'Inputs (values)'!$H$83:$KV$83,0)))*(INDEX('Inputs (values)'!$H$62:$KV$62,1,MATCH('Inputs (values)'!$H$12,'Inputs (values)'!$H$83:$KV$83,0))/INDEX('Inputs (values)'!$H$62:$KV$62,1,MATCH('Inputs (values)'!$H$11,'Inputs (values)'!$H$83:$KV$83,0))) -> 11.27202527 | DT22: =(INDEX('Inputs (values)'!$H$84:$KV$86,1,MATCH('Calculations (values)'!DT$21,'Inputs (values)'!$H$83:'Inputs (values)'!$KV$83,0))/INDEX('Inputs (values)'!$H$84:$KV$86,1,MATCH('Inputs (values)'!$H$10,'Inputs (values)'!$H$83:$KV$83,0)))*(INDEX('Inputs (values)'!$H$62:$KV$62,1,MATCH('Inputs (values)'!$H$12,'Inputs (values)'!$H$83:$KV$83,0))/INDEX('Inputs (values)'!$H$62:$KV$62,1,MATCH('Inputs (values)'!$H$11,'Inputs (values)'!$H$83:$KV$83,0))) -> 11.44761077 | DU22: =(INDEX('Inputs (values)'!$H$84:$KV$86,1,MATCH('Calculations (values)'!DU$21,'Inputs (values)'!$H$83:'Inputs (values)'!$KV$83,0))/INDEX('Inputs (values)'!$H$84:$KV$86,1,MATCH('Inputs (values)'!$H$10,'Inputs (values)'!$H$83:$KV$83,0)))*(INDEX('Inputs (values)'!$H$62:$KV$62,1,MATCH('Inputs (values)'!$H$12,'Inputs (values)'!$H$83:$KV$83,0))/INDEX('Inputs (values)'!$H$62:$KV$62,1,MATCH('Inputs (values)'!$H$11,'Inputs (values)'!$H$83:$KV$83,0))) -> 11.62593139 | DV22: =(INDEX('Inputs (values)'!$H$84:$KV$86,1,MATCH('Calculations (values)'!DV$21,'Inputs (values)'!$H$83:'Inputs (values)'!$KV$83,0))/INDEX('Inputs (values)'!$H$84:$KV$86,1,MATCH('Inputs (values)'!$H$10,'Inputs (values)'!$H$83:$KV$83,0)))*(INDEX('Inputs (values)'!$H$62:$KV$62,1,MATCH('Inputs (values)'!$H$12,'Inputs (values)'!$H$83:$KV$83,0))/INDEX('Inputs (values)'!$H$62:$KV$62,1,MATCH('Inputs (values)'!$H$11,'Inputs (values)'!$H$83:$KV$83,0))) -> 11.80702972 | DW22: =(INDEX('Inputs (values)'!$H$84:$KV$86,1,MATCH('Calculations (values)'!DW$21,'Inputs (values)'!$H$83:'Inputs (values)'!$KV$83,0))/INDEX('Inputs (values)'!$H$84:$KV$86,1,MATCH('Inputs (values)'!$H$10,'Inputs (values)'!$H$83:$KV$83,0)))*(INDEX('Inputs (values)'!$H$62:$KV$62,1,MATCH('Inputs (values)'!$H$12,'Inputs (values)'!$H$83:$KV$83,0))/INDEX('Inputs (values)'!$H$62:$KV$62,1,MATCH('Inputs (values)'!$H$11,'Inputs (values)'!$H$83:$KV$83,0))) -> 11.99094905 | DX22: =(INDEX('Inputs (values)'!$H$84:$KV$86,1,MATCH('Calculations (values)'!DX$21,'Inputs (values)'!$H$83:'Inputs (values)'!$KV$83,0))/INDEX('Inputs (values)'!$H$84:$KV$86,1,MATCH('Inputs (values)'!$H$10,'Inputs (values)'!$H$83:$KV$83,0)))*(INDEX('Inputs (values)'!$H$62:$KV$62,1,MATCH('Inputs (values)'!$H$12,'Inputs (values)'!$H$83:$KV$83,0))/INDEX('Inputs (values)'!$H$62:$KV$62,1,MATCH('Inputs (values)'!$H$11,'Inputs (values)'!$H$83:$KV$83,0))) -> 12.1777333 | DY22: =(INDEX('Inputs (values)'!$H$84:$KV$86,1,MATCH('Calculations (values)'!DY$21,'Inputs (values)'!$H$83:'Inputs (values)'!$KV$83,0))/INDEX('Inputs (values)'!$H$84:$KV$86,1,MATCH('Inputs (values)'!$H$10,'Inputs (values)'!$H$83:$KV$83,0)))*(INDEX('Inputs (values)'!$H$62:$KV$62,1,MATCH('Inputs (values)'!$H$12,'Inputs (values)'!$H$83:$KV$83,0))/INDEX('Inputs (values)'!$H$62:$KV$62,1,MATCH('Inputs (values)'!$H$11,'Inputs (values)'!$H$83:$KV$83,0))) -> 12.36742711 | DZ22: =(INDEX('Inputs (values)'!$H$84:$KV$86,1,MATCH('Calculations (values)'!DZ$21,'Inputs (values)'!$H$83:'Inputs (values)'!$KV$83,0))/INDEX('Inputs (values)'!$H$84:$KV$86,1,MATCH('Inputs (values)'!$H$10,'Inputs (values)'!$H$83:$KV$83,0)))*(INDEX('Inputs (values)'!$H$62:$KV$62,1,MATCH('Inputs (values)'!$H$12,'Inputs (values)'!$H$83:$KV$83,0))/INDEX('Inputs (values)'!$H$62:$KV$62,1,MATCH('Inputs (values)'!$H$11,'Inputs (values)'!$H$83:$KV$83,0))) -> 12.5600758 | EA22: =(INDEX('Inputs (values)'!$H$84:$KV$86,1,MATCH('Calculations (values)'!EA$21,'Inputs (values)'!$H$83:'Inputs (values)'!$KV$83,0))/INDEX('Inputs (values)'!$H$84:$KV$86,1,MATCH('Inputs (values)'!$H$10,'Inputs (values)'!$H$83:$KV$83,0)))*(INDEX('Inputs (values)'!$H$62:$KV$62,1,MATCH('Inputs (values)'!$H$12,'Inputs (values)'!$H$83:$KV$83,0))/INDEX('Inputs (values)'!$H$62:$KV$62,1,MATCH('Inputs (values)'!$H$11,'Inputs (values)'!$H$83:$KV$83,0))) -> 12.7557254 | EB22: =(INDEX('Inputs (values)'!$H$84:$KV$86,1,MATCH('Calculations (values)'!EB$21,'Inputs (values)'!$H$83:'Inputs (values)'!$KV$83,0))/INDEX('Inputs (values)'!$H$84:$KV$86,1,MATCH('Inputs (values)'!$H$10,'Inputs (values)'!$H$83:$KV$83,0)))*(INDEX('Inputs (values)'!$H$62:$KV$62,1,MATCH('Inputs (values)'!$H$12,'Inputs (values)'!$H$83:$KV$83,0))/INDEX('Inputs (values)'!$H$62:$KV$62,1,MATCH('Inputs (values)'!$H$11,'Inputs (values)'!$H$83:$KV$83,0))) -> 12.95442265 | EC22: =(INDEX('Inputs (values)'!$H$84:$KV$86,1,MATCH('Calculations (values)'!EC$21,'Inputs (values)'!$H$83:'Inputs (values)'!$KV$83,0))/INDEX('Inputs (values)'!$H$84:$KV$86,1,MATCH('Inputs (values)'!$H$10,'Inputs (values)'!$H$83:$KV$83,0)))*(INDEX('Inputs (values)'!$H$62:$KV$62,1,MATCH('Inputs (values)'!$H$12,'Inputs (values)'!$H$83:$KV$83,0))/INDEX('Inputs (values)'!$H$62:$KV$62,1,MATCH('Inputs (values)'!$H$11,'Inputs (values)'!$H$83:$KV$83,0))) -> 13.15621504 | ED22: =(INDEX('Inputs (values)'!$H$84:$KV$86,1,MATCH('Calculations (values)'!ED$21,'Inputs (values)'!$H$83:'Inputs (values)'!$KV$83,0))/INDEX('Inputs (values)'!$H$84:$KV$86,1,MATCH('Inputs (values)'!$H$10,'Inputs (values)'!$H$83:$KV$83,0)))*(INDEX('Inputs (values)'!$H$62:$KV$62,1,MATCH('Inputs (values)'!$H$12,'Inputs (values)'!$H$83:$KV$83,0))/INDEX('Inputs (values)'!$H$62:$KV$62,1,MATCH('Inputs (values)'!$H$11,'Inputs (values)'!$H$83:$KV$83,0))) -> 13.36115076 | EE22: =(INDEX('Inputs (values)'!$H$84:$KV$86,1,MATCH('Calculations (values)'!EE$21,'Inputs (values)'!$H$83:'Inputs (values)'!$KV$83,0))/INDEX('Inputs (values)'!$H$84:$KV$86,1,MATCH('Inputs (values)'!$H$10,'Inputs (values)'!$H$83:$KV$83,0)))*(INDEX('Inputs (values)'!$H$62:$KV$62,1,MATCH('Inputs (values)'!$H$12,'Inputs (values)'!$H$83:$KV$83,0))/INDEX('Inputs (values)'!$H$62:$KV$62,1,MATCH('Inputs (values)'!$H$11,'Inputs (values)'!$H$83:$KV$83,0))) -> 13.56927879 | EF22: =(INDEX('Inputs (values)'!$H$84:$KV$86,1,MATCH('Calculations (values)'!EF$21,'Inputs (values)'!$H$83:'Inputs (values)'!$KV$83,0))/INDEX('Inputs (values)'!$H$84:$KV$86,1,MATCH('Inputs (values)'!$H$10,'Inputs (values)'!$H$83:$KV$83,0)))*(INDEX('Inputs (values)'!$H$62:$KV$62,1,MATCH('Inputs (values)'!$H$12,'Inputs (values)'!$H$83:$KV$83,0))/INDEX('Inputs (values)'!$H$62:$KV$62,1,MATCH('Inputs (values)'!$H$11,'Inputs (values)'!$H$83:$KV$83,0))) -> 13.78064884 | EG22: =(INDEX('Inputs (values)'!$H$84:$KV$86,1,MATCH('Calculations (values)'!EG$21,'Inputs (values)'!$H$83:'Inputs (values)'!$KV$83,0))/INDEX('Inputs (values)'!$H$84:$KV$86,1,MATCH('Inputs (values)'!$H$10,'Inputs (values)'!$H$83:$KV$83,0)))*(INDEX('Inputs (values)'!$H$62:$KV$62,1,MATCH('Inputs (values)'!$H$12,'Inputs (values)'!$H$83:$KV$83,0))/INDEX('Inputs (values)'!$H$62:$KV$62,1,MATCH('Inputs (values)'!$H$11,'Inputs (values)'!$H$83:$KV$83,0))) -> 13.99531144 | EH22: =(INDEX('Inputs (values)'!$H$84:$KV$86,1,MATCH('Calculations (values)'!EH$21,'Inputs (values)'!$H$83:'Inputs (values)'!$KV$83,0))/INDEX('Inputs (values)'!$H$84:$KV$86,1,MATCH('Inputs (values)'!$H$10,'Inputs (values)'!$H$83:$KV$83,0)))*(INDEX('Inputs (values)'!$H$62:$KV$62,1,MATCH('Inputs (values)'!$H$12,'Inputs (values)'!$H$83:$KV$83,0))/INDEX('Inputs (values)'!$H$62:$KV$62,1,MATCH('Inputs (values)'!$H$11,'Inputs (values)'!$H$83:$KV$83,0))) -> 14.21331785 | EI22: =(INDEX('Inputs (values)'!$H$84:$KV$86,1,MATCH('Calculations (values)'!EI$21,'Inputs (values)'!$H$83:'Inputs (values)'!$KV$83,0))/INDEX('Inputs (values)'!$H$84:$KV$86,1,MATCH('Inputs (values)'!$H$10,'Inputs (values)'!$H$83:$KV$83,0)))*(INDEX('Inputs (values)'!$H$62:$KV$62,1,MATCH('Inputs (values)'!$H$12,'Inputs (values)'!$H$83:$KV$83,0))/INDEX('Inputs (values)'!$H$62:$KV$62,1,MATCH('Inputs (values)'!$H$11,'Inputs (values)'!$H$83:$KV$83,0))) -> 14.43472017 | EJ22: =(INDEX('Inputs (values)'!$H$84:$KV$86,1,MATCH('Calculations (values)'!EJ$21,'Inputs (values)'!$H$83:'Inputs (values)'!$KV$83,0))/INDEX('Inputs (values)'!$H$84:$KV$86,1,MATCH('Inputs (values)'!$H$10,'Inputs (values)'!$H$83:$KV$83,0)))*(INDEX('Inputs (values)'!$H$62:$KV$62,1,MATCH('Inputs (values)'!$H$12,'Inputs (values)'!$H$83:$KV$83,0))/INDEX('Inputs (values)'!$H$62:$KV$62,1,MATCH('Inputs (values)'!$H$11,'Inputs (values)'!$H$83:$KV$83,0))) -> 14.6595713 | EK22: =(INDEX('Inputs (values)'!$H$84:$KV$86,1,MATCH('Calculations (values)'!EK$21,'Inputs (values)'!$H$83:'Inputs (values)'!$KV$83,0))/INDEX('Inputs (values)'!$H$84:$KV$86,1,MATCH('Inputs (values)'!$H$10,'Inputs (values)'!$H$83:$KV$83,0)))*(INDEX('Inputs (values)'!$H$62:$KV$62,1,MATCH('Inputs (values)'!$H$12,'Inputs (values)'!$H$83:$KV$83,0))/INDEX('Inputs (values)'!$H$62:$KV$62,1,MATCH('Inputs (values)'!$H$11,'Inputs (values)'!$H$83:$KV$83,0))) -> 14.88792496 | EL22: =(INDEX('Inputs (values)'!$H$84:$KV$86,1,MATCH('Calculations (values)'!EL$21,'Inputs (values)'!$H$83:'Inputs (values)'!$KV$83,0))/INDEX('Inputs (values)'!$H$84:$KV$86,1,MATCH('Inputs (values)'!$H$10,'Inputs (values)'!$H$83:$KV$83,0)))*(INDEX('Inputs (values)'!$H$62:$KV$62,1,MATCH('Inputs (values)'!$H$12,'Inputs (values)'!$H$83:$KV$83,0))/INDEX('Inputs (values)'!$H$62:$KV$62,1,MATCH('Inputs (values)'!$H$11,'Inputs (values)'!$H$83:$KV$83,0))) -> 15.11983571 | EM22: =(INDEX('Inputs (values)'!$H$84:$KV$86,1,MATCH('Calculations (values)'!EM$21,'Inputs (values)'!$H$83:'Inputs (values)'!$KV$83,0))/INDEX('Inputs (values)'!$H$84:$KV$86,1,MATCH('Inputs (values)'!$H$10,'Inputs (values)'!$H$83:$KV$83,0)))*(INDEX('Inputs (values)'!$H$62:$KV$62,1,MATCH('Inputs (values)'!$H$12,'Inputs (values)'!$H$83:$KV$83,0))/INDEX('Inputs (values)'!$H$62:$KV$62,1,MATCH('Inputs (values)'!$H$11,'Inputs (values)'!$H$83:$KV$83,0))) -> 15.35535895 | EN22: =(INDEX('Inputs (values)'!$H$84:$KV$86,1,MATCH('Calculations (values)'!EN$21,'Inputs (values)'!$H$83:'Inputs (values)'!$KV$83,0))/INDEX('Inputs (values)'!$H$84:$KV$86,1,MATCH('Inputs (values)'!$H$10,'Inputs (values)'!$H$83:$KV$83,0)))*(INDEX('Inputs (values)'!$H$62:$KV$62,1,MATCH('Inputs (values)'!$H$12,'Inputs (values)'!$H$83:$KV$83,0))/INDEX('Inputs (values)'!$H$62:$KV$62,1,MATCH('Inputs (values)'!$H$11,'Inputs (values)'!$H$83:$KV$83,0))) -> 15.59455097 | EO22: =(INDEX('Inputs (values)'!$H$84:$KV$86,1,MATCH('Calculations (values)'!EO$21,'Inputs (values)'!$H$83:'Inputs (values)'!$KV$83,0))/INDEX('Inputs (values)'!$H$84:$KV$86,1,MATCH('Inputs (values)'!$H$10,'Inputs (values)'!$H$83:$KV$83,0)))*(INDEX('Inputs (values)'!$H$62:$KV$62,1,MATCH('Inputs (values)'!$H$12,'Inputs (values)'!$H$83:$KV$83,0))/INDEX('Inputs (values)'!$H$62:$KV$62,1,MATCH('Inputs (values)'!$H$11,'Inputs (values)'!$H$83:$KV$83,0))) -> 15.8374689 | EP22: =(INDEX('Inputs (values)'!$H$84:$KV$86,1,MATCH('Calculations (values)'!EP$21,'Inputs (values)'!$H$83:'Inputs (values)'!$KV$83,0))/INDEX('Inputs (values)'!$H$84:$KV$86,1,MATCH('Inputs (values)'!$H$10,'Inputs (values)'!$H$83:$KV$83,0)))*(INDEX('Inputs (values)'!$H$62:$KV$62,1,MATCH('Inputs (values)'!$H$12,'Inputs (values)'!$H$83:$KV$83,0))/INDEX('Inputs (values)'!$H$62:$KV$62,1,MATCH('Inputs (values)'!$H$11,'Inputs (values)'!$H$83:$KV$83,0))) -> 16.08417079 | EQ22: =(INDEX('Inputs (values)'!$H$84:$KV$86,1,MATCH('Calculations (values)'!EQ$21,'Inputs (values)'!$H$83:'Inputs (values)'!$KV$83,0))/INDEX('Inputs (values)'!$H$84:$KV$86,1,MATCH('Inputs (values)'!$H$10,'Inputs (values)'!$H$83:$KV$83,0)))*(INDEX('Inputs (values)'!$H$62:$KV$62,1,MATCH('Inputs (values)'!$H$12,'Inputs (values)'!$H$83:$KV$83,0))/INDEX('Inputs (values)'!$H$62:$KV$62,1,MATCH('Inputs (values)'!$H$11,'Inputs (values)'!$H$83:$KV$83,0))) -> 16.33471558 | ER22: =(INDEX('Inputs (values)'!$H$84:$KV$86,1,MATCH('Calculations (values)'!ER$21,'Inputs (values)'!$H$83:'Inputs (values)'!$KV$83,0))/INDEX('Inputs (values)'!$H$84:$KV$86,1,MATCH('Inputs (values)'!$H$10,'Inputs (values)'!$H$83:$KV$83,0)))*(INDEX('Inputs (values)'!$H$62:$KV$62,1,MATCH('Inputs (values)'!$H$12,'Inputs (values)'!$H$83:$KV$83,0))/INDEX('Inputs (values)'!$H$62:$KV$62,1,MATCH('Inputs (values)'!$H$11,'Inputs (values)'!$H$83:$KV$83,0))) -> 16.58916314 | ES22: =(INDEX('Inputs (values)'!$H$84:$KV$86,1,MATCH('Calculations (values)'!ES$21,'Inputs (values)'!$H$83:'Inputs (values)'!$KV$83,0))/INDEX('Inputs (values)'!$H$84:$KV$86,1,MATCH('Inputs (values)'!$H$10,'Inputs (values)'!$H$83:$KV$83,0)))*(INDEX('Inputs (values)'!$H$62:$KV$62,1,MATCH('Inputs (values)'!$H$12,'Inputs (values)'!$H$83:$KV$83,0))/INDEX('Inputs (values)'!$H$62:$KV$62,1,MATCH('Inputs (values)'!$H$11,'Inputs (values)'!$H$83:$KV$83,0))) -> 16.84757425 | ET22: =(INDEX('Inputs (values)'!$H$84:$KV$86,1,MATCH('Calculations (values)'!ET$21,'Inputs (values)'!$H$83:'Inputs (values)'!$KV$83,0))/INDEX('Inputs (values)'!$H$84:$KV$86,1,MATCH('Inputs (values)'!$H$10,'Inputs (values)'!$H$83:$KV$83,0)))*(INDEX('Inputs (values)'!$H$62:$KV$62,1,MATCH('Inputs (values)'!$H$12,'Inputs (values)'!$H$83:$KV$83,0))/INDEX('Inputs (values)'!$H$62:$KV$62,1,MATCH('Inputs (values)'!$H$11,'Inputs (values)'!$H$83:$KV$83,0))) -> 17.11001065 | EU22: =(INDEX('Inputs (values)'!$H$84:$KV$86,1,MATCH('Calculations (values)'!EU$21,'Inputs (values)'!$H$83:'Inputs (values)'!$KV$83,0))/INDEX('Inputs (values)'!$H$84:$KV$86,1,MATCH('Inputs (values)'!$H$10,'Inputs (values)'!$H$83:$KV$83,0)))*(INDEX('Inputs (values)'!$H$62:$KV$62,1,MATCH('Inputs (values)'!$H$12,'Inputs (values)'!$H$83:$KV$83,0))/INDEX('Inputs (values)'!$H$62:$KV$62,1,MATCH('Inputs (values)'!$H$11,'Inputs (values)'!$H$83:$KV$83,0))) -> 17.37653506 | EV22: =(INDEX('Inputs (values)'!$H$84:$KV$86,1,MATCH('Calculations (values)'!EV$21,'Inputs (values)'!$H$83:'Inputs (values)'!$KV$83,0))/INDEX('Inputs (values)'!$H$84:$KV$86,1,MATCH('Inputs (values)'!$H$10,'Inputs (values)'!$H$83:$KV$83,0)))*(INDEX('Inputs (values)'!$H$62:$KV$62,1,MATCH('Inputs (values)'!$H$12,'Inputs (values)'!$H$83:$KV$83,0))/INDEX('Inputs (values)'!$H$62:$KV$62,1,MATCH('Inputs (values)'!$H$11,'Inputs (values)'!$H$83:$KV$83,0))) -> 17.64721114 | EW22: =(INDEX('Inputs (values)'!$H$84:$KV$86,1,MATCH('Calculations (values)'!EW$21,'Inputs (values)'!$H$83:'Inputs (values)'!$KV$83,0))/INDEX('Inputs (values)'!$H$84:$KV$86,1,MATCH('Inputs (values)'!$H$10,'Inputs (values)'!$H$83:$KV$83,0)))*(INDEX('Inputs (values)'!$H$62:$KV$62,1,MATCH('Inputs (values)'!$H$12,'Inputs (values)'!$H$83:$KV$83,0))/INDEX('Inputs (values)'!$H$62:$KV$62,1,MATCH('Inputs (values)'!$H$11,'Inputs (values)'!$H$83:$KV$83,0))) -> 17.92210357 | EX22: =(INDEX('Inputs (values)'!$H$84:$KV$86,1,MATCH('Calculations (values)'!EX$21,'Inputs (values)'!$H$83:'Inputs (values)'!$KV$83,0))/INDEX('Inputs (values)'!$H$84:$KV$86,1,MATCH('Inputs (values)'!$H$10,'Inputs (values)'!$H$83:$KV$83,0)))*(INDEX('Inputs (values)'!$H$62:$KV$62,1,MATCH('Inputs (values)'!$H$12,'Inputs (values)'!$H$83:$KV$83,0))/INDEX('Inputs (values)'!$H$62:$KV$62,1,MATCH('Inputs (values)'!$H$11,'Inputs (values)'!$H$83:$KV$83,0))) -> 18.20127803 | EY22: =(INDEX('Inputs (values)'!$H$84:$KV$86,1,MATCH('Calculations (values)'!EY$21,'Inputs (values)'!$H$83:'Inputs (values)'!$KV$83,0))/INDEX('Inputs (values)'!$H$84:$KV$86,1,MATCH('Inputs (values)'!$H$10,'Inputs (values)'!$H$83:$KV$83,0)))*(INDEX('Inputs (values)'!$H$62:$KV$62,1,MATCH('Inputs (values)'!$H$12,'Inputs (values)'!$H$83:$KV$83,0))/INDEX('Inputs (values)'!$H$62:$KV$62,1,MATCH('Inputs (values)'!$H$11,'Inputs (values)'!$H$83:$KV$83,0))) -> 18.48480122 | EZ22: =(INDEX('Inputs (values)'!$H$84:$KV$86,1,MATCH('Calculations (values)'!EZ$21,'Inputs (values)'!$H$83:'Inputs (values)'!$KV$83,0))/INDEX('Inputs (values)'!$H$84:$KV$86,1,MATCH('Inputs (values)'!$H$10,'Inputs (values)'!$H$83:$KV$83,0)))*(INDEX('Inputs (values)'!$H$62:$KV$62,1,MATCH('Inputs (values)'!$H$12,'Inputs (values)'!$H$83:$KV$83,0))/INDEX('Inputs (values)'!$H$62:$KV$62,1,MATCH('Inputs (values)'!$H$11,'Inputs (values)'!$H$83:$KV$83,0))) -> 18.77274089 | FA22: =(INDEX('Inputs (values)'!$H$84:$KV$86,1,MATCH('Calculations (values)'!FA$21,'Inputs (values)'!$H$83:'Inputs (values)'!$KV$83,0))/INDEX('Inputs (values)'!$H$84:$KV$86,1,MATCH('Inputs (values)'!$H$10,'Inputs (values)'!$H$83:$KV$83,0)))*(INDEX('Inputs (values)'!$H$62:$KV$62,1,MATCH('Inputs (values)'!$H$12,'Inputs (values)'!$H$83:$KV$83,0))/INDEX('Inputs (values)'!$H$62:$KV$62,1,MATCH('Inputs (values)'!$H$11,'Inputs (values)'!$H$83:$KV$83,0))) -> 19.06516581 | FB22: =(INDEX('Inputs (values)'!$H$84:$KV$86,1,MATCH('Calculations (values)'!FB$21,'Inputs (values)'!$H$83:'Inputs (values)'!$KV$83,0))/INDEX('Inputs (values)'!$H$84:$KV$86,1,MATCH('Inputs (values)'!$H$10,'Inputs (values)'!$H$83:$KV$83,0)))*(INDEX('Inputs (values)'!$H$62:$KV$62,1,MATCH('Inputs (values)'!$H$12,'Inputs (values)'!$H$83:$KV$83,0))/INDEX('Inputs (values)'!$H$62:$KV$62,1,MATCH('Inputs (values)'!$H$11,'Inputs (values)'!$H$83:$KV$83,0))) -> 19.36214587 | FC22: =(INDEX('Inputs (values)'!$H$84:$KV$86,1,MATCH('Calculations (values)'!FC$21,'Inputs (values)'!$H$83:'Inputs (values)'!$KV$83,0))/INDEX('Inputs (values)'!$H$84:$KV$86,1,MATCH('Inputs (values)'!$H$10,'Inputs (values)'!$H$83:$KV$83,0)))*(INDEX('Inputs (values)'!$H$62:$KV$62,1,MATCH('Inputs (values)'!$H$12,'Inputs (values)'!$H$83:$KV$83,0))/INDEX('Inputs (values)'!$H$62:$KV$62,1,MATCH('Inputs (values)'!$H$11,'Inputs (values)'!$H$83:$KV$83,0))) -> 19.66375202 | FD22: =(INDEX('Inputs (values)'!$H$84:$KV$86,1,MATCH('Calculations (values)'!FD$21,'Inputs (values)'!$H$83:'Inputs (values)'!$KV$83,0))/INDEX('Inputs (values)'!$H$84:$KV$86,1,MATCH('Inputs (values)'!$H$10,'Inputs (values)'!$H$83:$KV$83,0)))*(INDEX('Inputs (values)'!$H$62:$KV$62,1,MATCH('Inputs (values)'!$H$12,'Inputs (values)'!$H$83:$KV$83,0))/INDEX('Inputs (values)'!$H$62:$KV$62,1,MATCH('Inputs (values)'!$H$11,'Inputs (values)'!$H$83:$KV$83,0))) -> 19.97005632 | FE22: =(INDEX('Inputs (values)'!$H$84:$KV$86,1,MATCH('Calculations (values)'!FE$21,'Inputs (values)'!$H$83:'Inputs (values)'!$KV$83,0))/INDEX('Inputs (values)'!$H$84:$KV$86,1,MATCH('Inputs (values)'!$H$10,'Inputs (values)'!$H$83:$KV$83,0)))*(INDEX('Inputs (values)'!$H$62:$KV$62,1,MATCH('Inputs (values)'!$H$12,'Inputs (values)'!$H$83:$KV$83,0))/INDEX('Inputs (values)'!$H$62:$KV$62,1,MATCH('Inputs (values)'!$H$11,'Inputs (values)'!$H$83:$KV$83,0))) -> 20.28113195 | FF22: =(INDEX('Inputs (values)'!$H$84:$KV$86,1,MATCH('Calculations (values)'!FF$21,'Inputs (values)'!$H$83:'Inputs (values)'!$KV$83,0))/INDEX('Inputs (values)'!$H$84:$KV$86,1,MATCH('Inputs (values)'!$H$10,'Inputs (values)'!$H$83:$KV$83,0)))*(INDEX('Inputs (values)'!$H$62:$KV$62,1,MATCH('Inputs (values)'!$H$12,'Inputs (values)'!$H$83:$KV$83,0))/INDEX('Inputs (values)'!$H$62:$KV$62,1,MATCH('Inputs (values)'!$H$11,'Inputs (values)'!$H$83:$KV$83,0))) -> 20.59705324 | FG22: =(INDEX('Inputs (values)'!$H$84:$KV$86,1,MATCH('Calculations (values)'!FG$21,'Inputs (values)'!$H$83:'Inputs (values)'!$KV$83,0))/INDEX('Inputs (values)'!$H$84:$KV$86,1,MATCH('Inputs (values)'!$H$10,'Inputs (values)'!$H$83:$KV$83,0)))*(INDEX('Inputs (values)'!$H$62:$KV$62,1,MATCH('Inputs (values)'!$H$12,'Inputs (values)'!$H$83:$KV$83,0))/INDEX('Inputs (values)'!$H$62:$KV$62,1,MATCH('Inputs (values)'!$H$11,'Inputs (values)'!$H$83:$KV$83,0))) -> 20.91789567 | FH22: =(INDEX('Inputs (values)'!$H$84:$KV$86,1,MATCH('Calculations (values)'!FH$21,'Inputs (values)'!$H$83:'Inputs (values)'!$KV$83,0))/INDEX('Inputs (values)'!$H$84:$KV$86,1,MATCH('Inputs (values)'!$H$10,'Inputs (values)'!$H$83:$KV$83,0)))*(INDEX('Inputs (values)'!$H$62:$KV$62,1,MATCH('Inputs (values)'!$H$12,'Inputs (values)'!$H$83:$KV$83,0))/INDEX('Inputs (values)'!$H$62:$KV$62,1,MATCH('Inputs (values)'!$H$11,'Inputs (values)'!$H$83:$KV$83,0))) -> 21.24373589 | FI22: =(INDEX('Inputs (values)'!$H$84:$KV$86,1,MATCH('Calculations (values)'!FI$21,'Inputs (values)'!$H$83:'Inputs (values)'!$KV$83,0))/INDEX('Inputs (values)'!$H$84:$KV$86,1,MATCH('Inputs (values)'!$H$10,'Inputs (values)'!$H$83:$KV$83,0)))*(INDEX('Inputs (values)'!$H$62:$KV$62,1,MATCH('Inputs (values)'!$H$12,'Inputs (values)'!$H$83:$KV$83,0))/INDEX('Inputs (values)'!$H$62:$KV$62,1,MATCH('Inputs (values)'!$H$11,'Inputs (values)'!$H$83:$KV$83,0))) -> 21.57465176 | FJ22: =(INDEX('Inputs (values)'!$H$84:$KV$86,1,MATCH('Calculations (values)'!FJ$21,'Inputs (values)'!$H$83:'Inputs (values)'!$KV$83,0))/INDEX('Inputs (values)'!$H$84:$KV$86,1,MATCH('Inputs (values)'!$H$10,'Inputs (values)'!$H$83:$KV$83,0)))*(INDEX('Inputs (values)'!$H$62:$KV$62,1,MATCH('Inputs (values)'!$H$12,'Inputs (values)'!$H$83:$KV$83,0))/INDEX('Inputs (values)'!$H$62:$KV$62,1,MATCH('Inputs (values)'!$H$11,'Inputs (values)'!$H$83:$KV$83,0))) -> 21.91072235 | FK22: =(INDEX('Inputs (values)'!$H$84:$KV$86,1,MATCH('Calculations (values)'!FK$21,'Inputs (values)'!$H$83:'Inputs (values)'!$KV$83,0))/INDEX('Inputs (values)'!$H$84:$KV$86,1,MATCH('Inputs (values)'!$H$10,'Inputs (values)'!$H$83:$KV$83,0)))*(INDEX('Inputs (values)'!$H$62:$KV$62,1,MATCH('Inputs (values)'!$H$12,'Inputs (values)'!$H$83:$KV$83,0))/INDEX('Inputs (values)'!$H$62:$KV$62,1,MATCH('Inputs (values)'!$H$11,'Inputs (values)'!$H$83:$KV$83,0))) -> 22.25202793 | FL22: =(INDEX('Inputs (values)'!$H$84:$KV$86,1,MATCH('Calculations (values)'!FL$21,'Inputs (values)'!$H$83:'Inputs (values)'!$KV$83,0))/INDEX('Inputs (values)'!$H$84:$KV$86,1,MATCH('Inputs (values)'!$H$10,'Inputs (values)'!$H$83:$KV$83,0)))*(INDEX('Inputs (values)'!$H$62:$KV$62,1,MATCH('Inputs (values)'!$H$12,'Inputs (values)'!$H$83:$KV$83,0))/INDEX('Inputs (values)'!$H$62:$KV$62,1,MATCH('Inputs (values)'!$H$11,'Inputs (values)'!$H$83:$KV$83,0))) -> 22.59865008 | FM22: =(INDEX('Inputs (values)'!$H$84:$KV$86,1,MATCH('Calculations (values)'!FM$21,'Inputs (values)'!$H$83:'Inputs (values)'!$KV$83,0))/INDEX('Inputs (values)'!$H$84:$KV$86,1,MATCH('Inputs (values)'!$H$10,'Inputs (values)'!$H$83:$KV$83,0)))*(INDEX('Inputs (values)'!$H$62:$KV$62,1,MATCH('Inputs (values)'!$H$12,'Inputs (values)'!$H$83:$KV$83,0))/INDEX('Inputs (values)'!$H$62:$KV$62,1,MATCH('Inputs (values)'!$H$11,'Inputs (values)'!$H$83:$KV$83,0))) -> 22.95067158 | FN22: =(INDEX('Inputs (values)'!$H$84:$KV$86,1,MATCH('Calculations (values)'!FN$21,'Inputs (values)'!$H$83:'Inputs (values)'!$KV$83,0))/INDEX('Inputs (values)'!$H$84:$KV$86,1,MATCH('Inputs (values)'!$H$10,'Inputs (values)'!$H$83:$KV$83,0)))*(INDEX('Inputs (values)'!$H$62:$KV$62,1,MATCH('Inputs (values)'!$H$12,'Inputs (values)'!$H$83:$KV$83,0))/INDEX('Inputs (values)'!$H$62:$KV$62,1,MATCH('Inputs (values)'!$H$11,'Inputs (values)'!$H$83:$KV$83,0))) -> 23.30817657 | FO22: =(INDEX('Inputs (values)'!$H$84:$KV$86,1,MATCH('Calculations (values)'!FO$21,'Inputs (values)'!$H$83:'Inputs (values)'!$KV$83,0))/INDEX('Inputs (values)'!$H$84:$KV$86,1,MATCH('Inputs (values)'!$H$10,'Inputs (values)'!$H$83:$KV$83,0)))*(INDEX('Inputs (values)'!$H$62:$KV$62,1,MATCH('Inputs (values)'!$H$12,'Inputs (values)'!$H$83:$KV$83,0))/INDEX('Inputs (values)'!$H$62:$KV$62,1,MATCH('Inputs (values)'!$H$11,'Inputs (values)'!$H$83:$KV$83,0))) -> 23.67125045 | FP22: =(INDEX('Inputs (values)'!$H$84:$KV$86,1,MATCH('Calculations (values)'!FP$21,'Inputs (values)'!$H$83:'Inputs (values)'!$KV$83,0))/INDEX('Inputs (values)'!$H$84:$KV$86,1,MATCH('Inputs (values)'!$H$10,'Inputs (values)'!$H$83:$KV$83,0)))*(INDEX('Inputs (values)'!$H$62:$KV$62,1,MATCH('Inputs (values)'!$H$12,'Inputs (values)'!$H$83:$KV$83,0))/INDEX('Inputs (values)'!$H$62:$KV$62,1,MATCH('Inputs (values)'!$H$11,'Inputs (values)'!$H$83:$KV$83,0))) -> 24.03997996 | FQ22: =(INDEX('Inputs (values)'!$H$84:$KV$86,1,MATCH('Calculations (values)'!FQ$21,'Inputs (values)'!$H$83:'Inputs (values)'!$KV$83,0))/INDEX('Inputs (values)'!$H$84:$KV$86,1,MATCH('Inputs (values)'!$H$10,'Inputs (values)'!$H$83:$KV$83,0)))*(INDEX('Inputs (values)'!$H$62:$KV$62,1,MATCH('Inputs (values)'!$H$12,'Inputs (values)'!$H$83:$KV$83,0))/INDEX('Inputs (values)'!$H$62:$KV$62,1,MATCH('Inputs (values)'!$H$11,'Inputs (values)'!$H$83:$KV$83,0))) -> 24.41445322 | FR22: =(INDEX('Inputs (values)'!$H$84:$KV$86,1,MATCH('Calculations (values)'!FR$21,'Inputs (values)'!$H$83:'Inputs (values)'!$KV$83,0))/INDEX('Inputs (values)'!$H$84:$KV$86,1,MATCH('Inputs (values)'!$H$10,'Inputs (values)'!$H$83:$KV$83,0)))*(INDEX('Inputs (values)'!$H$62:$KV$62,1,MATCH('Inputs (values)'!$H$12,'Inputs (values)'!$H$83:$KV$83,0))/INDEX('Inputs (values)'!$H$62:$KV$62,1,MATCH('Inputs (values)'!$H$11,'Inputs (values)'!$H$83:$KV$83,0))) -> 24.79475968 | FS22: =(INDEX('Inputs (values)'!$H$84:$KV$86,1,MATCH('Calculations (values)'!FS$21,'Inputs (values)'!$H$83:'Inputs (values)'!$KV$83,0))/INDEX('Inputs (values)'!$H$84:$KV$86,1,MATCH('Inputs (values)'!$H$10,'Inputs (values)'!$H$83:$KV$83,0)))*(INDEX('Inputs (values)'!$H$62:$KV$62,1,MATCH('Inputs (values)'!$H$12,'Inputs (values)'!$H$83:$KV$83,0))/INDEX('Inputs (values)'!$H$62:$KV$62,1,MATCH('Inputs (values)'!$H$11,'Inputs (values)'!$H$83:$KV$83,0))) -> 25.18099022 | FT22: =(INDEX('Inputs (values)'!$H$84:$KV$86,1,MATCH('Calculations (values)'!FT$21,'Inputs (values)'!$H$83:'Inputs (values)'!$KV$83,0))/INDEX('Inputs (values)'!$H$84:$KV$86,1,MATCH('Inputs (values)'!$H$10,'Inputs (values)'!$H$83:$KV$83,0)))*(INDEX('Inputs (values)'!$H$62:$KV$62,1,MATCH('Inputs (values)'!$H$12,'Inputs (values)'!$H$83:$KV$83,0))/INDEX('Inputs (values)'!$H$62:$KV$62,1,MATCH('Inputs (values)'!$H$11,'Inputs (values)'!$H$83:$KV$83,0))) -> 25.5732371 | FU22: =(INDEX('Inputs (values)'!$H$84:$KV$86,1,MATCH('Calculations (values)'!FU$21,'Inputs (values)'!$H$83:'Inputs (values)'!$KV$83,0))/INDEX('Inputs (values)'!$H$84:$KV$86,1,MATCH('Inputs (values)'!$H$10,'Inputs (values)'!$H$83:$KV$83,0)))*(INDEX('Inputs (values)'!$H$62:$KV$62,1,MATCH('Inputs (values)'!$H$12,'Inputs (values)'!$H$83:$KV$83,0))/INDEX('Inputs (values)'!$H$62:$KV$62,1,MATCH('Inputs (values)'!$H$11,'Inputs (values)'!$H$83:$KV$83,0))) -> 25.97159406 | FV22: =(INDEX('Inputs (values)'!$H$84:$KV$86,1,MATCH('Calculations (values)'!FV$21,'Inputs (values)'!$H$83:'Inputs (values)'!$KV$83,0))/INDEX('Inputs (values)'!$H$84:$KV$86,1,MATCH('Inputs (values)'!$H$10,'Inputs (values)'!$H$83:$KV$83,0)))*(INDEX('Inputs (values)'!$H$62:$KV$62,1,MATCH('Inputs (values)'!$H$12,'Inputs (values)'!$H$83:$KV$83,0))/INDEX('Inputs (values)'!$H$62:$KV$62,1,MATCH('Inputs (values)'!$H$11,'Inputs (values)'!$H$83:$KV$83,0))) -> 26.37615627 | FW22: =(INDEX('Inputs (values)'!$H$84:$KV$86,1,MATCH('Calculations (values)'!FW$21,'Inputs (values)'!$H$83:'Inputs (values)'!$KV$83,0))/INDEX('Inputs (values)'!$H$84:$KV$86,1,MATCH('Inputs (values)'!$H$10,'Inputs (values)'!$H$83:$KV$83,0)))*(INDEX('Inputs (values)'!$H$62:$KV$62,1,MATCH('Inputs (values)'!$H$12,'Inputs (values)'!$H$83:$KV$83,0))/INDEX('Inputs (values)'!$H$62:$KV$62,1,MATCH('Inputs (values)'!$H$11,'Inputs (values)'!$H$83:$KV$83,0))) -> 26.78702038 | FX22: =(INDEX('Inputs (values)'!$H$84:$KV$86,1,MATCH('Calculations (values)'!FX$21,'Inputs (values)'!$H$83:'Inputs (values)'!$KV$83,0))/INDEX('Inputs (values)'!$H$84:$KV$86,1,MATCH('Inputs (values)'!$H$10,'Inputs (values)'!$H$83:$KV$83,0)))*(INDEX('Inputs (values)'!$H$62:$KV$62,1,MATCH('Inputs (values)'!$H$12,'Inputs (values)'!$H$83:$KV$83,0))/INDEX('Inputs (values)'!$H$62:$KV$62,1,MATCH('Inputs (values)'!$H$11,'Inputs (values)'!$H$83:$KV$83,0))) -> 27.20428457 | FY22: =(INDEX('Inputs (values)'!$H$84:$KV$86,1,MATCH('Calculations (values)'!FY$21,'Inputs (values)'!$H$83:'Inputs (values)'!$KV$83,0))/INDEX('Inputs (values)'!$H$84:$KV$86,1,MATCH('Inputs (values)'!$H$10,'Inputs (values)'!$H$83:$KV$83,0)))*(INDEX('Inputs (values)'!$H$62:$KV$62,1,MATCH('Inputs (values)'!$H$12,'Inputs (values)'!$H$83:$KV$83,0))/INDEX('Inputs (values)'!$H$62:$KV$62,1,MATCH('Inputs (values)'!$H$11,'Inputs (values)'!$H$83:$KV$83,0))) -> 27.62804853 | FZ22: =(INDEX('Inputs (values)'!$H$84:$KV$86,1,MATCH('Calculations (values)'!FZ$21,'Inputs (values)'!$H$83:'Inputs (values)'!$KV$83,0))/INDEX('Inputs (values)'!$H$84:$KV$86,1,MATCH('Inputs (values)'!$H$10,'Inputs (values)'!$H$83:$KV$83,0)))*(INDEX('Inputs (values)'!$H$62:$KV$62,1,MATCH('Inputs (values)'!$H$12,'Inputs (values)'!$H$83:$KV$83,0))/INDEX('Inputs (values)'!$H$62:$KV$62,1,MATCH('Inputs (values)'!$H$11,'Inputs (values)'!$H$83:$KV$83,0))) -> 28.05841349 | GA22: =(INDEX('Inputs (values)'!$H$84:$KV$86,1,MATCH('Calculations (values)'!GA$21,'Inputs (values)'!$H$83:'Inputs (values)'!$KV$83,0))/INDEX('Inputs (values)'!$H$84:$KV$86,1,MATCH('Inputs (values)'!$H$10,'Inputs (values)'!$H$83:$KV$83,0)))*(INDEX('Inputs (values)'!$H$62:$KV$62,1,MATCH('Inputs (values)'!$H$12,'Inputs (values)'!$H$83:$KV$83,0))/INDEX('Inputs (values)'!$H$62:$KV$62,1,MATCH('Inputs (values)'!$H$11,'Inputs (values)'!$H$83:$KV$83,0))) -> 28.4954823 | GB22: =(INDEX('Inputs (values)'!$H$84:$KV$86,1,MATCH('Calculations (values)'!GB$21,'Inputs (values)'!$H$83:'Inputs (values)'!$KV$83,0))/INDEX('Inputs (values)'!$H$84:$KV$86,1,MATCH('Inputs (values)'!$H$10,'Inputs (values)'!$H$83:$KV$83,0)))*(INDEX('Inputs (values)'!$H$62:$KV$62,1,MATCH('Inputs (values)'!$H$12,'Inputs (values)'!$H$83:$KV$83,0))/INDEX('Inputs (values)'!$H$62:$KV$62,1,MATCH('Inputs (values)'!$H$11,'Inputs (values)'!$H$83:$KV$83,0))) -> 28.93935938 | GC22: =(INDEX('Inputs (values)'!$H$84:$KV$86,1,MATCH('Calculations (values)'!GC$21,'Inputs (values)'!$H$83:'Inputs (values)'!$KV$83,0))/INDEX('Inputs (values)'!$H$84:$KV$86,1,MATCH('Inputs (values)'!$H$10,'Inputs (values)'!$H$83:$KV$83,0)))*(INDEX('Inputs (values)'!$H$62:$KV$62,1,MATCH('Inputs (values)'!$H$12,'Inputs (values)'!$H$83:$KV$83,0))/INDEX('Inputs (values)'!$H$62:$KV$62,1,MATCH('Inputs (values)'!$H$11,'Inputs (values)'!$H$83:$KV$83,0))) -> 29.39015077 | GD22: =(INDEX('Inputs (values)'!$H$84:$KV$86,1,MATCH('Calculations (values)'!GD$21,'Inputs (values)'!$H$83:'Inputs (values)'!$KV$83,0))/INDEX('Inputs (values)'!$H$84:$KV$86,1,MATCH('Inputs (values)'!$H$10,'Inputs (values)'!$H$83:$KV$83,0)))*(INDEX('Inputs (values)'!$H$62:$KV$62,1,MATCH('Inputs (values)'!$H$12,'Inputs (values)'!$H$83:$KV$83,0))/INDEX('Inputs (values)'!$H$62:$KV$62,1,MATCH('Inputs (values)'!$H$11,'Inputs (values)'!$H$83:$KV$83,0))) -> 29.84796419 | GE22: =(INDEX('Inputs (values)'!$H$84:$KV$86,1,MATCH('Calculations (values)'!GE$21,'Inputs (values)'!$H$83:'Inputs (values)'!$KV$83,0))/INDEX('Inputs (values)'!$H$84:$KV$86,1,MATCH('Inputs (values)'!$H$10,'Inputs (values)'!$H$83:$KV$83,0)))*(INDEX('Inputs (values)'!$H$62:$KV$62,1,MATCH('Inputs (values)'!$H$12,'Inputs (values)'!$H$83:$KV$83,0))/INDEX('Inputs (values)'!$H$62:$KV$62,1,MATCH('Inputs (values)'!$H$11,'Inputs (values)'!$H$83:$KV$83,0))) -> 30.31290902 | GF22: =(INDEX('Inputs (values)'!$H$84:$KV$86,1,MATCH('Calculations (values)'!GF$21,'Inputs (values)'!$H$83:'Inputs (values)'!$KV$83,0))/INDEX('Inputs (values)'!$H$84:$KV$86,1,MATCH('Inputs (values)'!$H$10,'Inputs (values)'!$H$83:$KV$83,0)))*(INDEX('Inputs (values)'!$H$62:$KV$62,1,MATCH('Inputs (values)'!$H$12,'Inputs (values)'!$H$83:$KV$83,0))/INDEX('Inputs (values)'!$H$62:$KV$62,1,MATCH('Inputs (values)'!$H$11,'Inputs (values)'!$H$83:$KV$83,0))) -> 30.78509633 | GG22: =(INDEX('Inputs (values)'!$H$84:$KV$86,1,MATCH('Calculations (values)'!GG$21,'Inputs (values)'!$H$83:'Inputs (values)'!$KV$83,0))/INDEX('Inputs (values)'!$H$84:$KV$86,1,MATCH('Inputs (values)'!$H$10,'Inputs (values)'!$H$83:$KV$83,0)))*(INDEX('Inputs (values)'!$H$62:$KV$62,1,MATCH('Inputs (values)'!$H$12,'Inputs (values)'!$H$83:$KV$83,0))/INDEX('Inputs (values)'!$H$62:$KV$62,1,MATCH('Inputs (values)'!$H$11,'Inputs (values)'!$H$83:$KV$83,0))) -> 31.26463896 | GH22: =(INDEX('Inputs (values)'!$H$84:$KV$86,1,MATCH('Calculations (values)'!GH$21,'Inputs (values)'!$H$83:'Inputs (values)'!$KV$83,0))/INDEX('Inputs (values)'!$H$84:$KV$86,1,MATCH('Inputs (values)'!$H$10,'Inputs (values)'!$H$83:$KV$83,0)))*(INDEX('Inputs (values)'!$H$62:$KV$62,1,MATCH('Inputs (values)'!$H$12,'Inputs (values)'!$H$83:$KV$83,0))/INDEX('Inputs (values)'!$H$62:$KV$62,1,MATCH('Inputs (values)'!$H$11,'Inputs (values)'!$H$83:$KV$83,0))) -> 31.75165148 | GI22: =(INDEX('Inputs (values)'!$H$84:$KV$86,1,MATCH('Calculations (values)'!GI$21,'Inputs (values)'!$H$83:'Inputs (values)'!$KV$83,0))/INDEX('Inputs (values)'!$H$84:$KV$86,1,MATCH('Inputs (values)'!$H$10,'Inputs (values)'!$H$83:$KV$83,0)))*(INDEX('Inputs (values)'!$H$62:$KV$62,1,MATCH('Inputs (values)'!$H$12,'Inputs (values)'!$H$83:$KV$83,0))/INDEX('Inputs (values)'!$H$62:$KV$62,1,MATCH('Inputs (values)'!$H$11,'Inputs (values)'!$H$83:$KV$83,0))) -> 32.24625024 | GJ22: =(INDEX('Inputs (values)'!$H$84:$KV$86,1,MATCH('Calculations (values)'!GJ$21,'Inputs (values)'!$H$83:'Inputs (values)'!$KV$83,0))/INDEX('Inputs (values)'!$H$84:$KV$86,1,MATCH('Inputs (values)'!$H$10,'Inputs (values)'!$H$83:$KV$83,0)))*(INDEX('Inputs (values)'!$H$62:$KV$62,1,MATCH('Inputs (values)'!$H$12,'Inputs (values)'!$H$83:$KV$83,0))/INDEX('Inputs (values)'!$H$62:$KV$62,1,MATCH('Inputs (values)'!$H$11,'Inputs (values)'!$H$83:$KV$83,0))) -> 32.74855341 | GK22: =(INDEX('Inputs (values)'!$H$84:$KV$86,1,MATCH('Calculations (values)'!GK$21,'Inputs (values)'!$H$83:'Inputs (values)'!$KV$83,0))/INDEX('Inputs (values)'!$H$84:$KV$86,1,MATCH('Inputs (values)'!$H$10,'Inputs (values)'!$H$83:$KV$83,0)))*(INDEX('Inputs (values)'!$H$62:$KV$62,1,MATCH('Inputs (values)'!$H$12,'Inputs (values)'!$H$83:$KV$83,0))/INDEX('Inputs (values)'!$H$62:$KV$62,1,MATCH('Inputs (values)'!$H$11,'Inputs (values)'!$H$83:$KV$83,0))) -> 33.25868102 | GL22: =(INDEX('Inputs (values)'!$H$84:$KV$86,1,MATCH('Calculations (values)'!GL$21,'Inputs (values)'!$H$83:'Inputs (values)'!$KV$83,0))/INDEX('Inputs (values)'!$H$84:$KV$86,1,MATCH('Inputs (values)'!$H$10,'Inputs (values)'!$H$83:$KV$83,0)))*(INDEX('Inputs (values)'!$H$62:$KV$62,1,MATCH('Inputs (values)'!$H$12,'Inputs (values)'!$H$83:$KV$83,0))/INDEX('Inputs (values)'!$H$62:$KV$62,1,MATCH('Inputs (values)'!$H$11,'Inputs (values)'!$H$83:$KV$83,0))) -> 33.77675493 | GM22: =(INDEX('Inputs (values)'!$H$84:$KV$86,1,MATCH('Calculations (values)'!GM$21,'Inputs (values)'!$H$83:'Inputs (values)'!$KV$83,0))/INDEX('Inputs (values)'!$H$84:$KV$86,1,MATCH('Inputs (values)'!$H$10,'Inputs (values)'!$H$83:$KV$83,0)))*(INDEX('Inputs (values)'!$H$62:$KV$62,1,MATCH('Inputs (values)'!$H$12,'Inputs (values)'!$H$83:$KV$83,0))/INDEX('Inputs (values)'!$H$62:$KV$62,1,MATCH('Inputs (values)'!$H$11,'Inputs (values)'!$H$83:$KV$83,0))) -> 34.30289893 | GN22: =(INDEX('Inputs (values)'!$H$84:$KV$86,1,MATCH('Calculations (values)'!GN$21,'Inputs (values)'!$H$83:'Inputs (values)'!$KV$83,0))/INDEX('Inputs (values)'!$H$84:$KV$86,1,MATCH('Inputs (values)'!$H$10,'Inputs (values)'!$H$83:$KV$83,0)))*(INDEX('Inputs (values)'!$H$62:$KV$62,1,MATCH('Inputs (values)'!$H$12,'Inputs (values)'!$H$83:$KV$83,0))/INDEX('Inputs (values)'!$H$62:$KV$62,1,MATCH('Inputs (values)'!$H$11,'Inputs (values)'!$H$83:$KV$83,0))) -> 34.83723874 | GO22: =(INDEX('Inputs (values)'!$H$84:$KV$86,1,MATCH('Calculations (values)'!GO$21,'Inputs (values)'!$H$83:'Inputs (values)'!$KV$83,0))/INDEX('Inputs (values)'!$H$84:$KV$86,1,MATCH('Inputs (values)'!$H$10,'Inputs (values)'!$H$83:$KV$83,0)))*(INDEX('Inputs (values)'!$H$62:$KV$62,1,MATCH('Inputs (values)'!$H$12,'Inputs (values)'!$H$83:$KV$83,0))/INDEX('Inputs (values)'!$H$62:$KV$62,1,MATCH('Inputs (values)'!$H$11,'Inputs (values)'!$H$83:$KV$83,0))) -> 35.37990201 | GP22: =(INDEX('Inputs (values)'!$H$84:$KV$86,1,MATCH('Calculations (values)'!GP$21,'Inputs (values)'!$H$83:'Inputs (values)'!$KV$83,0))/INDEX('Inputs (values)'!$H$84:$KV$86,1,MATCH('Inputs (values)'!$H$10,'Inputs (values)'!$H$83:$KV$83,0)))*(INDEX('Inputs (values)'!$H$62:$KV$62,1,MATCH('Inputs (values)'!$H$12,'Inputs (values)'!$H$83:$KV$83,0))/INDEX('Inputs (values)'!$H$62:$KV$62,1,MATCH('Inputs (values)'!$H$11,'Inputs (values)'!$H$83:$KV$83,0))) -> 35.9310184 | GQ22: =(INDEX('Inputs (values)'!$H$84:$KV$86,1,MATCH('Calculations (values)'!GQ$21,'Inputs (values)'!$H$83:'Inputs (values)'!$KV$83,0))/INDEX('Inputs (values)'!$H$84:$KV$86,1,MATCH('Inputs (values)'!$H$10,'Inputs (values)'!$H$83:$KV$83,0)))*(INDEX('Inputs (values)'!$H$62:$KV$62,1,MATCH('Inputs (values)'!$H$12,'Inputs (values)'!$H$83:$KV$83,0))/INDEX('Inputs (values)'!$H$62:$KV$62,1,MATCH('Inputs (values)'!$H$11,'Inputs (values)'!$H$83:$KV$83,0))) -> 36.49071959 | GR22: =(INDEX('Inputs (values)'!$H$84:$KV$86,1,MATCH('Calculations (values)'!GR$21,'Inputs (values)'!$H$83:'Inputs (values)'!$KV$83,0))/INDEX('Inputs (values)'!$H$84:$KV$86,1,MATCH('Inputs (values)'!$H$10,'Inputs (values)'!$H$83:$KV$83,0)))*(INDEX('Inputs (values)'!$H$62:$KV$62,1,MATCH('Inputs (values)'!$H$12,'Inputs (values)'!$H$83:$KV$83,0))/INDEX('Inputs (values)'!$H$62:$KV$62,1,MATCH('Inputs (values)'!$H$11,'Inputs (values)'!$H$83:$KV$83,0))) -> 37.0591393 | GS22: =(INDEX('Inputs (values)'!$H$84:$KV$86,1,MATCH('Calculations (values)'!GS$21,'Inputs (values)'!$H$83:'Inputs (values)'!$KV$83,0))/INDEX('Inputs (values)'!$H$84:$KV$86,1,MATCH('Inputs (values)'!$H$10,'Inputs (values)'!$H$83:$KV$83,0)))*(INDEX('Inputs (values)'!$H$62:$KV$62,1,MATCH('Inputs (values)'!$H$12,'Inputs (values)'!$H$83:$KV$83,0))/INDEX('Inputs (values)'!$H$62:$KV$62,1,MATCH('Inputs (values)'!$H$11,'Inputs (values)'!$H$83:$KV$83,0))) -> 37.63641335 | GT22: =(INDEX('Inputs (values)'!$H$84:$KV$86,1,MATCH('Calculations (values)'!GT$21,'Inputs (values)'!$H$83:'Inputs (values)'!$KV$83,0))/INDEX('Inputs (values)'!$H$84:$KV$86,1,MATCH('Inputs (values)'!$H$10,'Inputs (values)'!$H$83:$KV$83,0)))*(INDEX('Inputs (values)'!$H$62:$KV$62,1,MATCH('Inputs (values)'!$H$12,'Inputs (values)'!$H$83:$KV$83,0))/INDEX('Inputs (values)'!$H$62:$KV$62,1,MATCH('Inputs (values)'!$H$11,'Inputs (values)'!$H$83:$KV$83,0))) -> 38.22267965 | GU22: =(INDEX('Inputs (values)'!$H$84:$KV$86,1,MATCH('Calculations (values)'!GU$21,'Inputs (values)'!$H$83:'Inputs (values)'!$KV$83,0))/INDEX('Inputs (values)'!$H$84:$KV$86,1,MATCH('Inputs (values)'!$H$10,'Inputs (values)'!$H$83:$KV$83,0)))*(INDEX('Inputs (values)'!$H$62:$KV$62,1,MATCH('Inputs (values)'!$H$12,'Inputs (values)'!$H$83:$KV$83,0))/INDEX('Inputs (values)'!$H$62:$KV$62,1,MATCH('Inputs (values)'!$H$11,'Inputs (values)'!$H$83:$KV$83,0))) -> 38.81807829 | GV22: =(INDEX('Inputs (values)'!$H$84:$KV$86,1,MATCH('Calculations (values)'!GV$21,'Inputs (values)'!$H$83:'Inputs (values)'!$KV$83,0))/INDEX('Inputs (values)'!$H$84:$KV$86,1,MATCH('Inputs (values)'!$H$10,'Inputs (values)'!$H$83:$KV$83,0)))*(INDEX('Inputs (values)'!$H$62:$KV$62,1,MATCH('Inputs (values)'!$H$12,'Inputs (values)'!$H$83:$KV$83,0))/INDEX('Inputs (values)'!$H$62:$KV$62,1,MATCH('Inputs (values)'!$H$11,'Inputs (values)'!$H$83:$KV$83,0))) -> 39.42275151 | GW22: =(INDEX('Inputs (values)'!$H$84:$KV$86,1,MATCH('Calculations (values)'!GW$21,'Inputs (values)'!$H$83:'Inputs (values)'!$KV$83,0))/INDEX('Inputs (values)'!$H$84:$KV$86,1,MATCH('Inputs (values)'!$H$10,'Inputs (values)'!$H$83:$KV$83,0)))*(INDEX('Inputs (values)'!$H$62:$KV$62,1,MATCH('Inputs (values)'!$H$12,'Inputs (values)'!$H$83:$KV$83,0))/INDEX('Inputs (values)'!$H$62:$KV$62,1,MATCH('Inputs (values)'!$H$11,'Inputs (values)'!$H$83:$KV$83,0))) -> 40.03684378 | GX22: =(INDEX('Inputs (values)'!$H$84:$KV$86,1,MATCH('Calculations (values)'!GX$21,'Inputs (values)'!$H$83:'Inputs (values)'!$KV$83,0))/INDEX('Inputs (values)'!$H$84:$KV$86,1,MATCH('Inputs (values)'!$H$10,'Inputs (values)'!$H$83:$KV$83,0)))*(INDEX('Inputs (values)'!$H$62:$KV$62,1,MATCH('Inputs (values)'!$H$12,'Inputs (values)'!$H$83:$KV$83,0))/INDEX('Inputs (values)'!$H$62:$KV$62,1,MATCH('Inputs (values)'!$H$11,'Inputs (values)'!$H$83:$KV$83,0))) -> 40.66050184 | GY22: =(INDEX('Inputs (values)'!$H$84:$KV$86,1,MATCH('Calculations (values)'!GY$21,'Inputs (values)'!$H$83:'Inputs (values)'!$KV$83,0))/INDEX('Inputs (values)'!$H$84:$KV$86,1,MATCH('Inputs (values)'!$H$10,'Inputs (values)'!$H$83:$KV$83,0)))*(INDEX('Inputs (values)'!$H$62:$KV$62,1,MATCH('Inputs (values)'!$H$12,'Inputs (values)'!$H$83:$KV$83,0))/INDEX('Inputs (values)'!$H$62:$KV$62,1,MATCH('Inputs (values)'!$H$11,'Inputs (values)'!$H$83:$KV$83,0))) -> 41.29387468 | GZ22: =(INDEX('Inputs (values)'!$H$84:$KV$86,1,MATCH('Calculations (values)'!GZ$21,'Inputs (values)'!$H$83:'Inputs (values)'!$KV$83,0))/INDEX('Inputs (values)'!$H$84:$KV$86,1,MATCH('Inputs (values)'!$H$10,'Inputs (values)'!$H$83:$KV$83,0)))*(INDEX('Inputs (values)'!$H$62:$KV$62,1,MATCH('Inputs (values)'!$H$12,'Inputs (values)'!$H$83:$KV$83,0))/INDEX('Inputs (values)'!$H$62:$KV$62,1,MATCH('Inputs (values)'!$H$11,'Inputs (values)'!$H$83:$KV$83,0))) -> 41.93711364 | HA22: =(INDEX('Inputs (values)'!$H$84:$KV$86,1,MATCH('Calculations (values)'!HA$21,'Inputs (values)'!$H$83:'Inputs (values)'!$KV$83,0))/INDEX('Inputs (values)'!$H$84:$KV$86,1,MATCH('Inputs (values)'!$H$10,'Inputs (values)'!$H$83:$KV$83,0)))*(INDEX('Inputs (values)'!$H$62:$KV$62,1,MATCH('Inputs (values)'!$H$12,'Inputs (values)'!$H$83:$KV$83,0))/INDEX('Inputs (values)'!$H$62:$KV$62,1,MATCH('Inputs (values)'!$H$11,'Inputs (values)'!$H$83:$KV$83,0))) -> 42.5903724 | HB22: =(INDEX('Inputs (values)'!$H$84:$KV$86,1,MATCH('Calculations (values)'!HB$21,'Inputs (values)'!$H$83:'Inputs (values)'!$KV$83,0))/INDEX('Inputs (values)'!$H$84:$KV$86,1,MATCH('Inputs (values)'!$H$10,'Inputs (values)'!$H$83:$KV$83,0)))*(INDEX('Inputs (values)'!$H$62:$KV$62,1,MATCH('Inputs (values)'!$H$12,'Inputs (values)'!$H$83:$KV$83,0))/INDEX('Inputs (values)'!$H$62:$KV$62,1,MATCH('Inputs (values)'!$H$11,'Inputs (values)'!$H$83:$KV$83,0))) -> 43.25380703 | HC22: =(INDEX('Inputs (values)'!$H$84:$KV$86,1,MATCH('Calculations (values)'!HC$21,'Inputs (values)'!$H$83:'Inputs (values)'!$KV$83,0))/INDEX('Inputs (values)'!$H$84:$KV$86,1,MATCH('Inputs (values)'!$H$10,'Inputs (values)'!$H$83:$KV$83,0)))*(INDEX('Inputs (values)'!$H$62:$KV$62,1,MATCH('Inputs (values)'!$H$12,'Inputs (values)'!$H$83:$KV$83,0))/INDEX('Inputs (values)'!$H$62:$KV$62,1,MATCH('Inputs (values)'!$H$11,'Inputs (values)'!$H$83:$KV$83,0))) -> 43.92757606 | HD22: =(INDEX('Inputs (values)'!$H$84:$KV$86,1,MATCH('Calculations (values)'!HD$21,'Inputs (values)'!$H$83:'Inputs (values)'!$KV$83,0))/INDEX('Inputs (values)'!$H$84:$KV$86,1,MATCH('Inputs (values)'!$H$10,'Inputs (values)'!$H$83:$KV$83,0)))*(INDEX('Inputs (values)'!$H$62:$KV$62,1,MATCH('Inputs (values)'!$H$12,'Inputs (values)'!$H$83:$KV$83,0))/INDEX('Inputs (values)'!$H$62:$KV$62,1,MATCH('Inputs (values)'!$H$11,'Inputs (values)'!$H$83:$KV$83,0))) -> 44.61184045 | HE22: =(INDEX('Inputs (values)'!$H$84:$KV$86,1,MATCH('Calculations (values)'!HE$21,'Inputs (values)'!$H$83:'Inputs (values)'!$KV$83,0))/INDEX('Inputs (values)'!$H$84:$KV$86,1,MATCH('Inputs (values)'!$H$10,'Inputs (values)'!$H$83:$KV$83,0)))*(INDEX('Inputs (values)'!$H$62:$KV$62,1,MATCH('Inputs (values)'!$H$12,'Inputs (values)'!$H$83:$KV$83,0))/INDEX('Inputs (values)'!$H$62:$KV$62,1,MATCH('Inputs (values)'!$H$11,'Inputs (values)'!$H$83:$KV$83,0))) -> 45.3067637 | HF22: =(INDEX('Inputs (values)'!$H$84:$KV$86,1,MATCH('Calculations (values)'!HF$21,'Inputs (values)'!$H$83:'Inputs (values)'!$KV$83,0))/INDEX('Inputs (values)'!$H$84:$KV$86,1,MATCH('Inputs (values)'!$H$10,'Inputs (values)'!$H$83:$KV$83,0)))*(INDEX('Inputs (values)'!$H$62:$KV$62,1,MATCH('Inputs (values)'!$H$12,'Inputs (values)'!$H$83:$KV$83,0))/INDEX('Inputs (values)'!$H$62:$KV$62,1,MATCH('Inputs (values)'!$H$11,'Inputs (values)'!$H$83:$KV$83,0))) -> 46.01251185 | HG22: =(INDEX('Inputs (values)'!$H$84:$KV$86,1,MATCH('Calculations (values)'!HG$21,'Inputs (values)'!$H$83:'Inputs (values)'!$KV$83,0))/INDEX('Inputs (values)'!$H$84:$KV$86,1,MATCH('Inputs (values)'!$H$10,'Inputs (values)'!$H$83:$KV$83,0)))*(INDEX('Inputs (values)'!$H$62:$KV$62,1,MATCH('Inputs (values)'!$H$12,'Inputs (values)'!$H$83:$KV$83,0))/INDEX('Inputs (values)'!$H$62:$KV$62,1,MATCH('Inputs (values)'!$H$11,'Inputs (values)'!$H$83:$KV$83,0))) -> 46.7292535 | HH22: =(INDEX('Inputs (values)'!$H$84:$KV$86,1,MATCH('Calculations (values)'!HH$21,'Inputs (values)'!$H$83:'Inputs (values)'!$KV$83,0))/INDEX('Inputs (values)'!$H$84:$KV$86,1,MATCH('Inputs (values)'!$H$10,'Inputs (values)'!$H$83:$KV$83,0)))*(INDEX('Inputs (values)'!$H$62:$KV$62,1,MATCH('Inputs (values)'!$H$12,'Inputs (values)'!$H$83:$KV$83,0))/INDEX('Inputs (values)'!$H$62:$KV$62,1,MATCH('Inputs (values)'!$H$11,'Inputs (values)'!$H$83:$KV$83,0))) -> 47.45715992 | HI22: =(INDEX('Inputs (values)'!$H$84:$KV$86,1,MATCH('Calculations (values)'!HI$21,'Inputs (values)'!$H$83:'Inputs (values)'!$KV$83,0))/INDEX('Inputs (values)'!$H$84:$KV$86,1,MATCH('Inputs (values)'!$H$10,'Inputs (values)'!$H$83:$KV$83,0)))*(INDEX('Inputs (values)'!$H$62:$KV$62,1,MATCH('Inputs (values)'!$H$12,'Inputs (values)'!$H$83:$KV$83,0))/INDEX('Inputs (values)'!$H$62:$KV$62,1,MATCH('Inputs (values)'!$H$11,'Inputs (values)'!$H$83:$KV$83,0))) -> 48.19640501 | HJ22: =(INDEX('Inputs (values)'!$H$84:$KV$86,1,MATCH('Calculations (values)'!HJ$21,'Inputs (values)'!$H$83:'Inputs (values)'!$KV$83,0))/INDEX('Inputs (values)'!$H$84:$KV$86,1,MATCH('Inputs (values)'!$H$10,'Inputs (values)'!$H$83:$KV$83,0)))*(INDEX('Inputs (values)'!$H$62:$KV$62,1,MATCH('Inputs (values)'!$H$12,'Inputs (values)'!$H$83:$KV$83,0))/INDEX('Inputs (values)'!$H$62:$KV$62,1,MATCH('Inputs (values)'!$H$11,'Inputs (values)'!$H$83:$KV$83,0))) -> 48.94716539 | HK22: =(INDEX('Inputs (values)'!$H$84:$KV$86,1,MATCH('Calculations (values)'!HK$21,'Inputs (values)'!$H$83:'Inputs (values)'!$KV$83,0))/INDEX('Inputs (values)'!$H$84:$KV$86,1,MATCH('Inputs (values)'!$H$10,'Inputs (values)'!$H$83:$KV$83,0)))*(INDEX('Inputs (values)'!$H$62:$KV$62,1,MATCH('Inputs (values)'!$H$12,'Inputs (values)'!$H$83:$KV$83,0))/INDEX('Inputs (values)'!$H$62:$KV$62,1,MATCH('Inputs (values)'!$H$11,'Inputs (values)'!$H$83:$KV$83,0))) -> 49.70962045 | HL22: =(INDEX('Inputs (values)'!$H$84:$KV$86,1,MATCH('Calculations (values)'!HL$21,'Inputs (values)'!$H$83:'Inputs (values)'!$KV$83,0))/INDEX('Inputs (values)'!$H$84:$KV$86,1,MATCH('Inputs (values)'!$H$10,'Inputs (values)'!$H$83:$KV$83,0)))*(INDEX('Inputs (values)'!$H$62:$KV$62,1,MATCH('Inputs (values)'!$H$12,'Inputs (values)'!$H$83:$KV$83,0))/INDEX('Inputs (values)'!$H$62:$KV$62,1,MATCH('Inputs (values)'!$H$11,'Inputs (values)'!$H$83:$KV$83,0))) -> 50.48395235 | HM22: =(INDEX('Inputs (values)'!$H$84:$KV$86,1,MATCH('Calculations (values)'!HM$21,'Inputs (values)'!$H$83:'Inputs (values)'!$KV$83,0))/INDEX('Inputs (values)'!$H$84:$KV$86,1,MATCH('Inputs (values)'!$H$10,'Inputs (values)'!$H$83:$KV$83,0)))*(INDEX('Inputs (values)'!$H$62:$KV$62,1,MATCH('Inputs (values)'!$H$12,'Inputs (values)'!$H$83:$KV$83,0))/INDEX('Inputs (values)'!$H$62:$KV$62,1,MATCH('Inputs (values)'!$H$11,'Inputs (values)'!$H$83:$KV$83,0))) -> 51.2703461 | HN22: =(INDEX('Inputs (values)'!$H$84:$KV$86,1,MATCH('Calculations (values)'!HN$21,'Inputs (values)'!$H$83:'Inputs (values)'!$KV$83,0))/INDEX('Inputs (values)'!$H$84:$KV$86,1,MATCH('Inputs (values)'!$H$10,'Inputs (values)'!$H$83:$KV$83,0)))*(INDEX('Inputs (values)'!$H$62:$KV$62,1,MATCH('Inputs (values)'!$H$12,'Inputs (values)'!$H$83:$KV$83,0))/INDEX('Inputs (values)'!$H$62:$KV$62,1,MATCH('Inputs (values)'!$H$11,'Inputs (values)'!$H$83:$KV$83,0))) -> 52.06898958 | HO22: =(INDEX('Inputs (values)'!$H$84:$KV$86,1,MATCH('Calculations (values)'!HO$21,'Inputs (values)'!$H$83:'Inputs (values)'!$KV$83,0))/INDEX('Inputs (values)'!$H$84:$KV$86,1,MATCH('Inputs (values)'!$H$10,'Inputs (values)'!$H$83:$KV$83,0)))*(INDEX('Inputs (values)'!$H$62:$KV$62,1,MATCH('Inputs (values)'!$H$12,'Inputs (values)'!$H$83:$KV$83,0))/INDEX('Inputs (values)'!$H$62:$KV$62,1,MATCH('Inputs (values)'!$H$11,'Inputs (values)'!$H$83:$KV$83,0))) -> 52.88007361 | HP22: =(INDEX('Inputs (values)'!$H$84:$KV$86,1,MATCH('Calculations (values)'!HP$21,'Inputs (values)'!$H$83:'Inputs (values)'!$KV$83,0))/INDEX('Inputs (values)'!$H$84:$KV$86,1,MATCH('Inputs (values)'!$H$10,'Inputs (values)'!$H$83:$KV$83,0)))*(INDEX('Inputs (values)'!$H$62:$KV$62,1,MATCH('Inputs (values)'!$H$12,'Inputs (values)'!$H$83:$KV$83,0))/INDEX('Inputs (values)'!$H$62:$KV$62,1,MATCH('Inputs (values)'!$H$11,'Inputs (values)'!$H$83:$KV$83,0))) -> 53.70379199 | HQ22: =(INDEX('Inputs (values)'!$H$84:$KV$86,1,MATCH('Calculations (values)'!HQ$21,'Inputs (values)'!$H$83:'Inputs (values)'!$KV$83,0))/INDEX('Inputs (values)'!$H$84:$KV$86,1,MATCH('Inputs (values)'!$H$10,'Inputs (values)'!$H$83:$KV$83,0)))*(INDEX('Inputs (values)'!$H$62:$KV$62,1,MATCH('Inputs (values)'!$H$12,'Inputs (values)'!$H$83:$KV$83,0))/INDEX('Inputs (values)'!$H$62:$KV$62,1,MATCH('Inputs (values)'!$H$11,'Inputs (values)'!$H$83:$KV$83,0))) -> 54.54034151 | HR22: =(INDEX('Inputs (values)'!$H$84:$KV$86,1,MATCH('Calculations (values)'!HR$21,'Inputs (values)'!$H$83:'Inputs (values)'!$KV$83,0))/INDEX('Inputs (values)'!$H$84:$KV$86,1,MATCH('Inputs (values)'!$H$10,'Inputs (values)'!$H$83:$KV$83,0)))*(INDEX('Inputs (values)'!$H$62:$KV$62,1,MATCH('Inputs (values)'!$H$12,'Inputs (values)'!$H$83:$KV$83,0))/INDEX('Inputs (values)'!$H$62:$KV$62,1,MATCH('Inputs (values)'!$H$11,'Inputs (values)'!$H$83:$KV$83,0))) -> 55.38992205 | HS22: =(INDEX('Inputs (values)'!$H$84:$KV$86,1,MATCH('Calculations (values)'!HS$21,'Inputs (values)'!$H$83:'Inputs (values)'!$KV$83,0))/INDEX('Inputs (values)'!$H$84:$KV$86,1,MATCH('Inputs (values)'!$H$10,'Inputs (values)'!$H$83:$KV$83,0)))*(INDEX('Inputs (values)'!$H$62:$KV$62,1,MATCH('Inputs (values)'!$H$12,'Inputs (values)'!$H$83:$KV$83,0))/INDEX('Inputs (values)'!$H$62:$KV$62,1,MATCH('Inputs (values)'!$H$11,'Inputs (values)'!$H$83:$KV$83,0))) -> 56.2527366 | HT22: =(INDEX('Inputs (values)'!$H$84:$KV$86,1,MATCH('Calculations (values)'!HT$21,'Inputs (values)'!$H$83:'Inputs (values)'!$KV$83,0))/INDEX('Inputs (values)'!$H$84:$KV$86,1,MATCH('Inputs (values)'!$H$10,'Inputs (values)'!$H$83:$KV$83,0)))*(INDEX('Inputs (values)'!$H$62:$KV$62,1,MATCH('Inputs (values)'!$H$12,'Inputs (values)'!$H$83:$KV$83,0))/INDEX('Inputs (values)'!$H$62:$KV$62,1,MATCH('Inputs (values)'!$H$11,'Inputs (values)'!$H$83:$KV$83,0))) -> 57.12899129 | HU22: =(INDEX('Inputs (values)'!$H$84:$KV$86,1,MATCH('Calculations (values)'!HU$21,'Inputs (values)'!$H$83:'Inputs (values)'!$KV$83,0))/INDEX('Inputs (values)'!$H$84:$KV$86,1,MATCH('Inputs (values)'!$H$10,'Inputs (values)'!$H$83:$KV$83,0)))*(INDEX('Inputs (values)'!$H$62:$KV$62,1,MATCH('Inputs (values)'!$H$12,'Inputs (values)'!$H$83:$KV$83,0))/INDEX('Inputs (values)'!$H$62:$KV$62,1,MATCH('Inputs (values)'!$H$11,'Inputs (values)'!$H$83:$KV$83,0))) -> 58.0188955 | HV22: =(INDEX('Inputs (values)'!$H$84:$KV$86,1,MATCH('Calculations (values)'!HV$21,'Inputs (values)'!$H$83:'Inputs (values)'!$KV$83,0))/INDEX('Inputs (values)'!$H$84:$KV$86,1,MATCH('Inputs (values)'!$H$10,'Inputs (values)'!$H$83:$KV$83,0)))*(INDEX('Inputs (values)'!$H$62:$KV$62,1,MATCH('Inputs (values)'!$H$12,'Inputs (values)'!$H$83:$KV$83,0))/INDEX('Inputs (values)'!$H$62:$KV$62,1,MATCH('Inputs (values)'!$H$11,'Inputs (values)'!$H$83:$KV$83,0))) -> 58.92266183 | HW22: =(INDEX('Inputs (values)'!$H$84:$KV$86,1,MATCH('Calculations (values)'!HW$21,'Inputs (values)'!$H$83:'Inputs (values)'!$KV$83,0))/INDEX('Inputs (values)'!$H$84:$KV$86,1,MATCH('Inputs (values)'!$H$10,'Inputs (values)'!$H$83:$KV$83,0)))*(INDEX('Inputs (values)'!$H$62:$KV$62,1,MATCH('Inputs (values)'!$H$12,'Inputs (values)'!$H$83:$KV$83,0))/INDEX('Inputs (values)'!$H$62:$KV$62,1,MATCH('Inputs (values)'!$H$11,'Inputs (values)'!$H$83:$KV$83,0))) -> 59.84050623 | HX22: =(INDEX('Inputs (values)'!$H$84:$KV$86,1,MATCH('Calculations (values)'!HX$21,'Inputs (values)'!$H$83:'Inputs (values)'!$KV$83,0))/INDEX('Inputs (values)'!$H$84:$KV$86,1,MATCH('Inputs (values)'!$H$10,'Inputs (values)'!$H$83:$KV$83,0)))*(INDEX('Inputs (values)'!$H$62:$KV$62,1,MATCH('Inputs (values)'!$H$12,'Inputs (values)'!$H$83:$KV$83,0))/INDEX('Inputs (values)'!$H$62:$KV$62,1,MATCH('Inputs (values)'!$H$11,'Inputs (values)'!$H$83:$KV$83,0))) -> 60.77264799 | HY22: =(INDEX('Inputs (values)'!$H$84:$KV$86,1,MATCH('Calculations (values)'!HY$21,'Inputs (values)'!$H$83:'Inputs (values)'!$KV$83,0))/INDEX('Inputs (values)'!$H$84:$KV$86,1,MATCH('Inputs (values)'!$H$10,'Inputs (values)'!$H$83:$KV$83,0)))*(INDEX('Inputs (values)'!$H$62:$KV$62,1,MATCH('Inputs (values)'!$H$12,'Inputs (values)'!$H$83:$KV$83,0))/INDEX('Inputs (values)'!$H$62:$KV$62,1,MATCH('Inputs (values)'!$H$11,'Inputs (values)'!$H$83:$KV$83,0))) -> 61.71930981 | HZ22: =(INDEX('Inputs (values)'!$H$84:$KV$86,1,MATCH('Calculations (values)'!HZ$21,'Inputs (values)'!$H$83:'Inputs (values)'!$KV$83,0))/INDEX('Inputs (values)'!$H$84:$KV$86,1,MATCH('Inputs (values)'!$H$10,'Inputs (values)'!$H$83:$KV$83,0)))*(INDEX('Inputs (values)'!$H$62:$KV$62,1,MATCH('Inputs (values)'!$H$12,'Inputs (values)'!$H$83:$KV$83,0))/INDEX('Inputs (values)'!$H$62:$KV$62,1,MATCH('Inputs (values)'!$H$11,'Inputs (values)'!$H$83:$KV$83,0))) -> 62.68071788 | IA22: =(INDEX('Inputs (values)'!$H$84:$KV$86,1,MATCH('Calculations (values)'!IA$21,'Inputs (values)'!$H$83:'Inputs (values)'!$KV$83,0))/INDEX('Inputs (values)'!$H$84:$KV$86,1,MATCH('Inputs (values)'!$H$10,'Inputs (values)'!$H$83:$KV$83,0)))*(INDEX('Inputs (values)'!$H$62:$KV$62,1,MATCH('Inputs (values)'!$H$12,'Inputs (values)'!$H$83:$KV$83,0))/INDEX('Inputs (values)'!$H$62:$KV$62,1,MATCH('Inputs (values)'!$H$11,'Inputs (values)'!$H$83:$KV$83,0))) -> 63.65710191 | IB22: =(INDEX('Inputs (values)'!$H$84:$KV$86,1,MATCH('Calculations (values)'!IB$21,'Inputs (values)'!$H$83:'Inputs (values)'!$KV$83,0))/INDEX('Inputs (values)'!$H$84:$KV$86,1,MATCH('Inputs (values)'!$H$10,'Inputs (values)'!$H$83:$KV$83,0)))*(INDEX('Inputs (values)'!$H$62:$KV$62,1,MATCH('Inputs (values)'!$H$12,'Inputs (values)'!$H$83:$KV$83,0))/INDEX('Inputs (values)'!$H$62:$KV$62,1,MATCH('Inputs (values)'!$H$11,'Inputs (values)'!$H$83:$KV$83,0))) -> 64.64869516 | IC22: =(INDEX('Inputs (values)'!$H$84:$KV$86,1,MATCH('Calculations (values)'!IC$21,'Inputs (values)'!$H$83:'Inputs (values)'!$KV$83,0))/INDEX('Inputs (values)'!$H$84:$KV$86,1,MATCH('Inputs (values)'!$H$10,'Inputs (values)'!$H$83:$KV$83,0)))*(INDEX('Inputs (values)'!$H$62:$KV$62,1,MATCH('Inputs (values)'!$H$12,'Inputs (values)'!$H$83:$KV$83,0))/INDEX('Inputs (values)'!$H$62:$KV$62,1,MATCH('Inputs (values)'!$H$11,'Inputs (values)'!$H$83:$KV$83,0))) -> 65.65573458 | ID22: =(INDEX('Inputs (values)'!$H$84:$KV$86,1,MATCH('Calculations (values)'!ID$21,'Inputs (values)'!$H$83:'Inputs (values)'!$KV$83,0))/INDEX('Inputs (values)'!$H$84:$KV$86,1,MATCH('Inputs (values)'!$H$10,'Inputs (values)'!$H$83:$KV$83,0)))*(INDEX('Inputs (values)'!$H$62:$KV$62,1,MATCH('Inputs (values)'!$H$12,'Inputs (values)'!$H$83:$KV$83,0))/INDEX('Inputs (values)'!$H$62:$KV$62,1,MATCH('Inputs (values)'!$H$11,'Inputs (values)'!$H$83:$KV$83,0))) -> 66.67846074 | IE22: =(INDEX('Inputs (values)'!$H$84:$KV$86,1,MATCH('Calculations (values)'!IE$21,'Inputs (values)'!$H$83:'Inputs (values)'!$KV$83,0))/INDEX('Inputs (values)'!$H$84:$KV$86,1,MATCH('Inputs (values)'!$H$10,'Inputs (values)'!$H$83:$KV$83,0)))*(INDEX('Inputs (values)'!$H$62:$KV$62,1,MATCH('Inputs (values)'!$H$12,'Inputs (values)'!$H$83:$KV$83,0))/INDEX('Inputs (values)'!$H$62:$KV$62,1,MATCH('Inputs (values)'!$H$11,'Inputs (values)'!$H$83:$KV$83,0))) -> 67.71711802 | IF22: =(INDEX('Inputs (values)'!$H$84:$KV$86,1,MATCH('Calculations (values)'!IF$21,'Inputs (values)'!$H$83:'Inputs (values)'!$KV$83,0))/INDEX('Inputs (values)'!$H$84:$KV$86,1,MATCH('Inputs (values)'!$H$10,'Inputs (values)'!$H$83:$KV$83,0)))*(INDEX('Inputs (values)'!$H$62:$KV$62,1,MATCH('Inputs (values)'!$H$12,'Inputs (values)'!$H$83:$KV$83,0))/INDEX('Inputs (values)'!$H$62:$KV$62,1,MATCH('Inputs (values)'!$H$11,'Inputs (values)'!$H$83:$KV$83,0))) -> 68.77195457 | IG22: =(INDEX('Inputs (values)'!$H$84:$KV$86,1,MATCH('Calculations (values)'!IG$21,'Inputs (values)'!$H$83:'Inputs (values)'!$KV$83,0))/INDEX('Inputs (values)'!$H$84:$KV$86,1,MATCH('Inputs (values)'!$H$10,'Inputs (values)'!$H$83:$KV$83,0)))*(INDEX('Inputs (values)'!$H$62:$KV$62,1,MATCH('Inputs (values)'!$H$12,'Inputs (values)'!$H$83:$KV$83,0))/INDEX('Inputs (values)'!$H$62:$KV$62,1,MATCH('Inputs (values)'!$H$11,'Inputs (values)'!$H$83:$KV$83,0))) -> 69.84322242 | IH22: =(INDEX('Inputs (values)'!$H$84:$KV$86,1,MATCH('Calculations (values)'!IH$21,'Inputs (values)'!$H$83:'Inputs (values)'!$KV$83,0))/INDEX('Inputs (values)'!$H$84:$KV$86,1,MATCH('Inputs (values)'!$H$10,'Inputs (values)'!$H$83:$KV$83,0)))*(INDEX('Inputs (values)'!$H$62:$KV$62,1,MATCH('Inputs (values)'!$H$12,'Inputs (values)'!$H$83:$KV$83,0))/INDEX('Inputs (values)'!$H$62:$KV$62,1,MATCH('Inputs (values)'!$H$11,'Inputs (values)'!$H$83:$KV$83,0))) -> 70.93117752 | II22: =(INDEX('Inputs (values)'!$H$84:$KV$86,1,MATCH('Calculations (values)'!II$21,'Inputs (values)'!$H$83:'Inputs (values)'!$KV$83,0))/INDEX('Inputs (values)'!$H$84:$KV$86,1,MATCH('Inputs (values)'!$H$10,'Inputs (values)'!$H$83:$KV$83,0)))*(INDEX('Inputs (values)'!$H$62:$KV$62,1,MATCH('Inputs (values)'!$H$12,'Inputs (values)'!$H$83:$KV$83,0))/INDEX('Inputs (values)'!$H$62:$KV$62,1,MATCH('Inputs (values)'!$H$11,'Inputs (values)'!$H$83:$KV$83,0))) -> 72.03607981 | IJ22: =(INDEX('Inputs (values)'!$H$84:$KV$86,1,MATCH('Calculations (values)'!IJ$21,'Inputs (values)'!$H$83:'Inputs (values)'!$KV$83,0))/INDEX('Inputs (values)'!$H$84:$KV$86,1,MATCH('Inputs (values)'!$H$10,'Inputs (values)'!$H$83:$KV$83,0)))*(INDEX('Inputs (values)'!$H$62:$KV$62,1,MATCH('Inputs (values)'!$H$12,'Inputs (values)'!$H$83:$KV$83,0))/INDEX('Inputs (values)'!$H$62:$KV$62,1,MATCH('Inputs (values)'!$H$11,'Inputs (values)'!$H$83:$KV$83,0))) -> 73.15819327 | IK22: =(INDEX('Inputs (values)'!$H$84:$KV$86,1,MATCH('Calculations (values)'!IK$21,'Inputs (values)'!$H$83:'Inputs (values)'!$KV$83,0))/INDEX('Inputs (values)'!$H$84:$KV$86,1,MATCH('Inputs (values)'!$H$10,'Inputs (values)'!$H$83:$KV$83,0)))*(INDEX('Inputs (values)'!$H$62:$KV$62,1,MATCH('Inputs (values)'!$H$12,'Inputs (values)'!$H$83:$KV$83,0))/INDEX('Inputs (values)'!$H$62:$KV$62,1,MATCH('Inputs (values)'!$H$11,'Inputs (values)'!$H$83:$KV$83,0))) -> 74.29778602 | IL22: =(INDEX('Inputs (values)'!$H$84:$KV$86,1,MATCH('Calculations (values)'!IL$21,'Inputs (values)'!$H$83:'Inputs (values)'!$KV$83,0))/INDEX('Inputs (values)'!$H$84:$KV$86,1,MATCH('Inputs (values)'!$H$10,'Inputs (values)'!$H$83:$KV$83,0)))*(INDEX('Inputs (values)'!$H$62:$KV$62,1,MATCH('Inputs (values)'!$H$12,'Inputs (values)'!$H$83:$KV$83,0))/INDEX('Inputs (values)'!$H$62:$KV$62,1,MATCH('Inputs (values)'!$H$11,'Inputs (values)'!$H$83:$KV$83,0))) -> 75.45513031 | IM22: =(INDEX('Inputs (values)'!$H$84:$KV$86,1,MATCH('Calculations (values)'!IM$21,'Inputs (values)'!$H$83:'Inputs (values)'!$KV$83,0))/INDEX('Inputs (values)'!$H$84:$KV$86,1,MATCH('Inputs (values)'!$H$10,'Inputs (values)'!$H$83:$KV$83,0)))*(INDEX('Inputs (values)'!$H$62:$KV$62,1,MATCH('Inputs (values)'!$H$12,'Inputs (values)'!$H$83:$KV$83,0))/INDEX('Inputs (values)'!$H$62:$KV$62,1,MATCH('Inputs (values)'!$H$11,'Inputs (values)'!$H$83:$KV$83,0))) -> 76.63050268 | IN22: =(INDEX('Inputs (values)'!$H$84:$KV$86,1,MATCH('Calculations (values)'!IN$21,'Inputs (values)'!$H$83:'Inputs (values)'!$KV$83,0))/INDEX('Inputs (values)'!$H$84:$KV$86,1,MATCH('Inputs (values)'!$H$10,'Inputs (values)'!$H$83:$KV$83,0)))*(INDEX('Inputs (values)'!$H$62:$KV$62,1,MATCH('Inputs (values)'!$H$12,'Inputs (values)'!$H$83:$KV$83,0))/INDEX('Inputs (values)'!$H$62:$KV$62,1,MATCH('Inputs (values)'!$H$11,'Inputs (values)'!$H$83:$KV$83,0))) -> 77.82418395 | IO22: =(INDEX('Inputs (values)'!$H$84:$KV$86,1,MATCH('Calculations (values)'!IO$21,'Inputs (values)'!$H$83:'Inputs (values)'!$KV$83,0))/INDEX('Inputs (values)'!$H$84:$KV$86,1,MATCH('Inputs (values)'!$H$10,'Inputs (values)'!$H$83:$KV$83,0)))*(INDEX('Inputs (values)'!$H$62:$KV$62,1,MATCH('Inputs (values)'!$H$12,'Inputs (values)'!$H$83:$KV$83,0))/INDEX('Inputs (values)'!$H$62:$KV$62,1,MATCH('Inputs (values)'!$H$11,'Inputs (values)'!$H$83:$KV$83,0))) -> 79.03645931 | IP22: =(INDEX('Inputs (values)'!$H$84:$KV$86,1,MATCH('Calculations (values)'!IP$21,'Inputs (values)'!$H$83:'Inputs (values)'!$KV$83,0))/INDEX('Inputs (values)'!$H$84:$KV$86,1,MATCH('Inputs (values)'!$H$10,'Inputs (values)'!$H$83:$KV$83,0)))*(INDEX('Inputs (values)'!$H$62:$KV$62,1,MATCH('Inputs (values)'!$H$12,'Inputs (values)'!$H$83:$KV$83,0))/INDEX('Inputs (values)'!$H$62:$KV$62,1,MATCH('Inputs (values)'!$H$11,'Inputs (values)'!$H$83:$KV$83,0))) -> 80.26761841 | IQ22: =(INDEX('Inputs (values)'!$H$84:$KV$86,1,MATCH('Calculations (values)'!IQ$21,'Inputs (values)'!$H$83:'Inputs (values)'!$KV$83,0))/INDEX('Inputs (values)'!$H$84:$KV$86,1,MATCH('Inputs (values)'!$H$10,'Inputs (values)'!$H$83:$KV$83,0)))*(INDEX('Inputs (values)'!$H$62:$KV$62,1,MATCH('Inputs (values)'!$H$12,'Inputs (values)'!$H$83:$KV$83,0))/INDEX('Inputs (values)'!$H$62:$KV$62,1,MATCH('Inputs (values)'!$H$11,'Inputs (values)'!$H$83:$KV$83,0))) -> 81.5179554 | IR22: =(INDEX('Inputs (values)'!$H$84:$KV$86,1,MATCH('Calculations (values)'!IR$21,'Inputs (values)'!$H$83:'Inputs (values)'!$KV$83,0))/INDEX('Inputs (values)'!$H$84:$KV$86,1,MATCH('Inputs (values)'!$H$10,'Inputs (values)'!$H$83:$KV$83,0)))*(INDEX('Inputs (values)'!$H$62:$KV$62,1,MATCH('Inputs (values)'!$H$12,'Inputs (values)'!$H$83:$KV$83,0))/INDEX('Inputs (values)'!$H$62:$KV$62,1,MATCH('Inputs (values)'!$H$11,'Inputs (values)'!$H$83:$KV$83,0))) -> 82.78776903 | IS22: =(INDEX('Inputs (values)'!$H$84:$KV$86,1,MATCH('Calculations (values)'!IS$21,'Inputs (values)'!$H$83:'Inputs (values)'!$KV$83,0))/INDEX('Inputs (values)'!$H$84:$KV$86,1,MATCH('Inputs (values)'!$H$10,'Inputs (values)'!$H$83:$KV$83,0)))*(INDEX('Inputs (values)'!$H$62:$KV$62,1,MATCH('Inputs (values)'!$H$12,'Inputs (values)'!$H$83:$KV$83,0))/INDEX('Inputs (values)'!$H$62:$KV$62,1,MATCH('Inputs (values)'!$H$11,'Inputs (values)'!$H$83:$KV$83,0))) -> 84.07736267 | IT22: =(INDEX('Inputs (values)'!$H$84:$KV$86,1,MATCH('Calculations (values)'!IT$21,'Inputs (values)'!$H$83:'Inputs (values)'!$KV$83,0))/INDEX('Inputs (values)'!$H$84:$KV$86,1,MATCH('Inputs (values)'!$H$10,'Inputs (values)'!$H$83:$KV$83,0)))*(INDEX('Inputs (values)'!$H$62:$KV$62,1,MATCH('Inputs (values)'!$H$12,'Inputs (values)'!$H$83:$KV$83,0))/INDEX('Inputs (values)'!$H$62:$KV$62,1,MATCH('Inputs (values)'!$H$11,'Inputs (values)'!$H$83:$KV$83,0))) -> 85.38704444 | IU22: =(INDEX('Inputs (values)'!$H$84:$KV$86,1,MATCH('Calculations (values)'!IU$21,'Inputs (values)'!$H$83:'Inputs (values)'!$KV$83,0))/INDEX('Inputs (values)'!$H$84:$KV$86,1,MATCH('Inputs (values)'!$H$10,'Inputs (values)'!$H$83:$KV$83,0)))*(INDEX('Inputs (values)'!$H$62:$KV$62,1,MATCH('Inputs (values)'!$H$12,'Inputs (values)'!$H$83:$KV$83,0))/INDEX('Inputs (values)'!$H$62:$KV$62,1,MATCH('Inputs (values)'!$H$11,'Inputs (values)'!$H$83:$KV$83,0))) -> 86.71712726 | IV22: =(INDEX('Inputs (values)'!$H$84:$KV$86,1,MATCH('Calculations (values)'!IV$21,'Inputs (values)'!$H$83:'Inputs (values)'!$KV$83,0))/INDEX('Inputs (values)'!$H$84:$KV$86,1,MATCH('Inputs (values)'!$H$10,'Inputs (values)'!$H$83:$KV$83,0)))*(INDEX('Inputs (values)'!$H$62:$KV$62,1,MATCH('Inputs (values)'!$H$12,'Inputs (values)'!$H$83:$KV$83,0))/INDEX('Inputs (values)'!$H$62:$KV$62,1,MATCH('Inputs (values)'!$H$11,'Inputs (values)'!$H$83:$KV$83,0))) -> 88.06792892 | IW22: =(INDEX('Inputs (values)'!$H$84:$KV$86,1,MATCH('Calculations (values)'!IW$21,'Inputs (values)'!$H$83:'Inputs (values)'!$KV$83,0))/INDEX('Inputs (values)'!$H$84:$KV$86,1,MATCH('Inputs (values)'!$H$10,'Inputs (values)'!$H$83:$KV$83,0)))*(INDEX('Inputs (values)'!$H$62:$KV$62,1,MATCH('Inputs (values)'!$H$12,'Inputs (values)'!$H$83:$KV$83,0))/INDEX('Inputs (values)'!$H$62:$KV$62,1,MATCH('Inputs (values)'!$H$11,'Inputs (values)'!$H$83:$KV$83,0))) -> 89.43977216 | IX22: =(INDEX('Inputs (values)'!$H$84:$KV$86,1,MATCH('Calculations (values)'!IX$21,'Inputs (values)'!$H$83:'Inputs (values)'!$KV$83,0))/INDEX('Inputs (values)'!$H$84:$KV$86,1,MATCH('Inputs (values)'!$H$10,'Inputs (values)'!$H$83:$KV$83,0)))*(INDEX('Inputs (values)'!$H$62:$KV$62,1,MATCH('Inputs (values)'!$H$12,'Inputs (values)'!$H$83:$KV$83,0))/INDEX('Inputs (values)'!$H$62:$KV$62,1,MATCH('Inputs (values)'!$H$11,'Inputs (values)'!$H$83:$KV$83,0))) -> 90.83298474 | IY22: =(INDEX('Inputs (values)'!$H$84:$KV$86,1,MATCH('Calculations (values)'!IY$21,'Inputs (values)'!$H$83:'Inputs (values)'!$KV$83,0))/INDEX('Inputs (values)'!$H$84:$KV$86,1,MATCH('Inputs (values)'!$H$10,'Inputs (values)'!$H$83:$KV$83,0)))*(INDEX('Inputs (values)'!$H$62:$KV$62,1,MATCH('Inputs (values)'!$H$12,'Inputs (values)'!$H$83:$KV$83,0))/INDEX('Inputs (values)'!$H$62:$KV$62,1,MATCH('Inputs (values)'!$H$11,'Inputs (values)'!$H$83:$KV$83,0))) -> 92.24789954 | IZ22: =(INDEX('Inputs (values)'!$H$84:$KV$86,1,MATCH('Calculations (values)'!IZ$21,'Inputs (values)'!$H$83:'Inputs (values)'!$KV$83,0))/INDEX('Inputs (values)'!$H$84:$KV$86,1,MATCH('Inputs (values)'!$H$10,'Inputs (values)'!$H$83:$KV$83,0)))*(INDEX('Inputs (values)'!$H$62:$KV$62,1,MATCH('Inputs (values)'!$H$12,'Inputs (values)'!$H$83:$KV$83,0))/INDEX('Inputs (values)'!$H$62:$KV$62,1,MATCH('Inputs (values)'!$H$11,'Inputs (values)'!$H$83:$KV$83,0))) -> 93.68485461 | JA22: =(INDEX('Inputs (values)'!$H$84:$KV$86,1,MATCH('Calculations (values)'!JA$21,'Inputs (values)'!$H$83:'Inputs (values)'!$KV$83,0))/INDEX('Inputs (values)'!$H$84:$KV$86,1,MATCH('Inputs (values)'!$H$10,'Inputs (values)'!$H$83:$KV$83,0)))*(INDEX('Inputs (values)'!$H$62:$KV$62,1,MATCH('Inputs (values)'!$H$12,'Inputs (values)'!$H$83:$KV$83,0))/INDEX('Inputs (values)'!$H$62:$KV$62,1,MATCH('Inputs (values)'!$H$11,'Inputs (values)'!$H$83:$KV$83,0))) -> 95.14419328 | JB22: =(INDEX('Inputs (values)'!$H$84:$KV$86,1,MATCH('Calculations (values)'!JB$21,'Inputs (values)'!$H$83:'Inputs (values)'!$KV$83,0))/INDEX('Inputs (values)'!$H$84:$KV$86,1,MATCH('Inputs (values)'!$H$10,'Inputs (values)'!$H$83:$KV$83,0)))*(INDEX('Inputs (values)'!$H$62:$KV$62,1,MATCH('Inputs (values)'!$H$12,'Inputs (values)'!$H$83:$KV$83,0))/INDEX('Inputs (values)'!$H$62:$KV$62,1,MATCH('Inputs (values)'!$H$11,'Inputs (values)'!$H$83:$KV$83,0))) -> 96.62626421 | JC22: =(INDEX('Inputs (values)'!$H$84:$KV$86,1,MATCH('Calculations (values)'!JC$21,'Inputs (values)'!$H$83:'Inputs (values)'!$KV$83,0))/INDEX('Inputs (values)'!$H$84:$KV$86,1,MATCH('Inputs (values)'!$H$10,'Inputs (values)'!$H$83:$KV$83,0)))*(INDEX('Inputs (values)'!$H$62:$KV$62,1,MATCH('Inputs (values)'!$H$12,'Inputs (values)'!$H$83:$KV$83,0))/INDEX('Inputs (values)'!$H$62:$KV$62,1,MATCH('Inputs (values)'!$H$11,'Inputs (values)'!$H$83:$KV$83,0))) -> 98.13142153 | JD22: =(INDEX('Inputs (values)'!$H$84:$KV$86,1,MATCH('Calculations (values)'!JD$21,'Inputs (values)'!$H$83:'Inputs (values)'!$KV$83,0))/INDEX('Inputs (values)'!$H$84:$KV$86,1,MATCH('Inputs (values)'!$H$10,'Inputs (values)'!$H$83:$KV$83,0)))*(INDEX('Inputs (values)'!$H$62:$KV$62,1,MATCH('Inputs (values)'!$H$12,'Inputs (values)'!$H$83:$KV$83,0))/INDEX('Inputs (values)'!$H$62:$KV$62,1,MATCH('Inputs (values)'!$H$11,'Inputs (values)'!$H$83:$KV$83,0))) -> 99.66002483 | JE22: =(INDEX('Inputs (values)'!$H$84:$KV$86,1,MATCH('Calculations (values)'!JE$21,'Inputs (values)'!$H$83:'Inputs (values)'!$KV$83,0))/INDEX('Inputs (values)'!$H$84:$KV$86,1,MATCH('Inputs (values)'!$H$10,'Inputs (values)'!$H$83:$KV$83,0)))*(INDEX('Inputs (values)'!$H$62:$KV$62,1,MATCH('Inputs (values)'!$H$12,'Inputs (values)'!$H$83:$KV$83,0))/INDEX('Inputs (values)'!$H$62:$KV$62,1,MATCH('Inputs (values)'!$H$11,'Inputs (values)'!$H$83:$KV$83,0))) -> 101.2124393 | JF22: =(INDEX('Inputs (values)'!$H$84:$KV$86,1,MATCH('Calculations (values)'!JF$21,'Inputs (values)'!$H$83:'Inputs (values)'!$KV$83,0))/INDEX('Inputs (values)'!$H$84:$KV$86,1,MATCH('Inputs (values)'!$H$10,'Inputs (values)'!$H$83:$KV$83,0)))*(INDEX('Inputs (values)'!$H$62:$KV$62,1,MATCH('Inputs (values)'!$H$12,'Inputs (values)'!$H$83:$KV$83,0))/INDEX('Inputs (values)'!$H$62:$KV$62,1,MATCH('Inputs (values)'!$H$11,'Inputs (values)'!$H$83:$KV$83,0))) -> 102.789036 | JG22: =(INDEX('Inputs (values)'!$H$84:$KV$86,1,MATCH('Calculations (values)'!JG$21,'Inputs (values)'!$H$83:'Inputs (values)'!$KV$83,0))/INDEX('Inputs (values)'!$H$84:$KV$86,1,MATCH('Inputs (values)'!$H$10,'Inputs (values)'!$H$83:$KV$83,0)))*(INDEX('Inputs (values)'!$H$62:$KV$62,1,MATCH('Inputs (values)'!$H$12,'Inputs (values)'!$H$83:$KV$83,0))/INDEX('Inputs (values)'!$H$62:$KV$62,1,MATCH('Inputs (values)'!$H$11,'Inputs (values)'!$H$83:$KV$83,0))) -> 104.3901914 | JH22: =(INDEX('Inputs (values)'!$H$84:$KV$86,1,MATCH('Calculations (values)'!JH$21,'Inputs (values)'!$H$83:'Inputs (values)'!$KV$83,0))/INDEX('Inputs (values)'!$H$84:$KV$86,1,MATCH('Inputs (values)'!$H$10,'Inputs (values)'!$H$83:$KV$83,0)))*(INDEX('Inputs (values)'!$H$62:$KV$62,1,MATCH('Inputs (values)'!$H$12,'Inputs (values)'!$H$83:$KV$83,0))/INDEX('Inputs (values)'!$H$62:$KV$62,1,MATCH('Inputs (values)'!$H$11,'Inputs (values)'!$H$83:$KV$83,0))) -> 106.0162882 | JI22: =(INDEX('Inputs (values)'!$H$84:$KV$86,1,MATCH('Calculations (values)'!JI$21,'Inputs (values)'!$H$83:'Inputs (values)'!$KV$83,0))/INDEX('Inputs (values)'!$H$84:$KV$86,1,MATCH('Inputs (values)'!$H$10,'Inputs (values)'!$H$83:$KV$83,0)))*(INDEX('Inputs (values)'!$H$62:$KV$62,1,MATCH('Inputs (values)'!$H$12,'Inputs (values)'!$H$83:$KV$83,0))/INDEX('Inputs (values)'!$H$62:$KV$62,1,MATCH('Inputs (values)'!$H$11,'Inputs (values)'!$H$83:$KV$83,0))) -> 107.6677149 | JJ22: =(INDEX('Inputs (values)'!$H$84:$KV$86,1,MATCH('Calculations (values)'!JJ$21,'Inputs (values)'!$H$83:'Inputs (values)'!$KV$83,0))/INDEX('Inputs (values)'!$H$84:$KV$86,1,MATCH('Inputs (values)'!$H$10,'Inputs (values)'!$H$83:$KV$83,0)))*(INDEX('Inputs (values)'!$H$62:$KV$62,1,MATCH('Inputs (values)'!$H$12,'Inputs (values)'!$H$83:$KV$83,0))/INDEX('Inputs (values)'!$H$62:$KV$62,1,MATCH('Inputs (values)'!$H$11,'Inputs (values)'!$H$83:$KV$83,0))) -> 109.344866 | JK22: =(INDEX('Inputs (values)'!$H$84:$KV$86,1,MATCH('Calculations (values)'!JK$21,'Inputs (values)'!$H$83:'Inputs (values)'!$KV$83,0))/INDEX('Inputs (values)'!$H$84:$KV$86,1,MATCH('Inputs (values)'!$H$10,'Inputs (values)'!$H$83:$KV$83,0)))*(INDEX('Inputs (values)'!$H$62:$KV$62,1,MATCH('Inputs (values)'!$H$12,'Inputs (values)'!$H$83:$KV$83,0))/INDEX('Inputs (values)'!$H$62:$KV$62,1,MATCH('Inputs (values)'!$H$11,'Inputs (values)'!$H$83:$KV$83,0))) -> 111.0481423 | JL22: =(INDEX('Inputs (values)'!$H$84:$KV$86,1,MATCH('Calculations (values)'!JL$21,'Inputs (values)'!$H$83:'Inputs (values)'!$KV$83,0))/INDEX('Inputs (values)'!$H$84:$KV$86,1,MATCH('Inputs (values)'!$H$10,'Inputs (values)'!$H$83:$KV$83,0)))*(INDEX('Inputs (values)'!$H$62:$KV$62,1,MATCH('Inputs (values)'!$H$12,'Inputs (values)'!$H$83:$KV$83,0))/INDEX('Inputs (values)'!$H$62:$KV$62,1,MATCH('Inputs (values)'!$H$11,'Inputs (values)'!$H$83:$KV$83,0))) -> 112.7779507 | JM22: =(INDEX('Inputs (values)'!$H$84:$KV$86,1,MATCH('Calculations (values)'!JM$21,'Inputs (values)'!$H$83:'Inputs (values)'!$KV$83,0))/INDEX('Inputs (values)'!$H$84:$KV$86,1,MATCH('Inputs (values)'!$H$10,'Inputs (values)'!$H$83:$KV$83,0)))*(INDEX('Inputs (values)'!$H$62:$KV$62,1,MATCH('Inputs (values)'!$H$12,'Inputs (values)'!$H$83:$KV$83,0))/INDEX('Inputs (values)'!$H$62:$KV$62,1,MATCH('Inputs (values)'!$H$11,'Inputs (values)'!$H$83:$KV$83,0))) -> 114.5347045 | JN22: =(INDEX('Inputs (values)'!$H$84:$KV$86,1,MATCH('Calculations (values)'!JN$21,'Inputs (values)'!$H$83:'Inputs (values)'!$KV$83,0))/INDEX('Inputs (values)'!$H$84:$KV$86,1,MATCH('Inputs (values)'!$H$10,'Inputs (values)'!$H$83:$KV$83,0)))*(INDEX('Inputs (values)'!$H$62:$KV$62,1,MATCH('Inputs (values)'!$H$12,'Inputs (values)'!$H$83:$KV$83,0))/INDEX('Inputs (values)'!$H$62:$KV$62,1,MATCH('Inputs (values)'!$H$11,'Inputs (values)'!$H$83:$KV$83,0))) -> 116.3188235 | JO22: =(INDEX('Inputs (values)'!$H$84:$KV$86,1,MATCH('Calculations (values)'!JO$21,'Inputs (values)'!$H$83:'Inputs (values)'!$KV$83,0))/INDEX('Inputs (values)'!$H$84:$KV$86,1,MATCH('Inputs (values)'!$H$10,'Inputs (values)'!$H$83:$KV$83,0)))*(INDEX('Inputs (values)'!$H$62:$KV$62,1,MATCH('Inputs (values)'!$H$12,'Inputs (values)'!$H$83:$KV$83,0))/INDEX('Inputs (values)'!$H$62:$KV$62,1,MATCH('Inputs (values)'!$H$11,'Inputs (values)'!$H$83:$KV$83,0))) -> 118.1307338 | JP22: =(INDEX('Inputs (values)'!$H$84:$KV$86,1,MATCH('Calculations (values)'!JP$21,'Inputs (values)'!$H$83:'Inputs (values)'!$KV$83,0))/INDEX('Inputs (values)'!$H$84:$KV$86,1,MATCH('Inputs (values)'!$H$10,'Inputs (values)'!$H$83:$KV$83,0)))*(INDEX('Inputs (values)'!$H$62:$KV$62,1,MATCH('Inputs (values)'!$H$12,'Inputs (values)'!$H$83:$KV$83,0))/INDEX('Inputs (values)'!$H$62:$KV$62,1,MATCH('Inputs (values)'!$H$11,'Inputs (values)'!$H$83:$KV$83,0))) -> 119.9708685 | JQ22: =(INDEX('Inputs (values)'!$H$84:$KV$86,1,MATCH('Calculations (values)'!JQ$21,'Inputs (values)'!$H$83:'Inputs (values)'!$KV$83,0))/INDEX('Inputs (values)'!$H$84:$KV$86,1,MATCH('Inputs (values)'!$H$10,'Inputs (values)'!$H$83:$KV$83,0)))*(INDEX('Inputs (values)'!$H$62:$KV$62,1,MATCH('Inputs (values)'!$H$12,'Inputs (values)'!$H$83:$KV$83,0))/INDEX('Inputs (values)'!$H$62:$KV$62,1,MATCH('Inputs (values)'!$H$11,'Inputs (values)'!$H$83:$KV$83,0))) -> 121.8396671 | JR22: =(INDEX('Inputs (values)'!$H$84:$KV$86,1,MATCH('Calculations (values)'!JR$21,'Inputs (values)'!$H$83:'Inputs (values)'!$KV$83,0))/INDEX('Inputs (values)'!$H$84:$KV$86,1,MATCH('Inputs (values)'!$H$10,'Inputs (values)'!$H$83:$KV$83,0)))*(INDEX('Inputs (values)'!$H$62:$KV$62,1,MATCH('Inputs (values)'!$H$12,'Inputs (values)'!$H$83:$KV$83,0))/INDEX('Inputs (values)'!$H$62:$KV$62,1,MATCH('Inputs (values)'!$H$11,'Inputs (values)'!$H$83:$KV$83,0))) -> 123.7375762 | JS22: =(INDEX('Inputs (values)'!$H$84:$KV$86,1,MATCH('Calculations (values)'!JS$21,'Inputs (values)'!$H$83:'Inputs (values)'!$KV$83,0))/INDEX('Inputs (values)'!$H$84:$KV$86,1,MATCH('Inputs (values)'!$H$10,'Inputs (values)'!$H$83:$KV$83,0)))*(INDEX('Inputs (values)'!$H$62:$KV$62,1,MATCH('Inputs (values)'!$H$12,'Inputs (values)'!$H$83:$KV$83,0))/INDEX('Inputs (values)'!$H$62:$KV$62,1,MATCH('Inputs (values)'!$H$11,'Inputs (values)'!$H$83:$KV$83,0))) -> 125.6650492 | JT22: =(INDEX('Inputs (values)'!$H$84:$KV$86,1,MATCH('Calculations (values)'!JT$21,'Inputs (values)'!$H$83:'Inputs (values)'!$KV$83,0))/INDEX('Inputs (values)'!$H$84:$KV$86,1,MATCH('Inputs (values)'!$H$10,'Inputs (values)'!$H$83:$KV$83,0)))*(INDEX('Inputs (values)'!$H$62:$KV$62,1,MATCH('Inputs (values)'!$H$12,'Inputs (values)'!$H$83:$KV$83,0))/INDEX('Inputs (values)'!$H$62:$KV$62,1,MATCH('Inputs (values)'!$H$11,'Inputs (values)'!$H$83:$KV$83,0))) -> 127.6225467 | JU22: =(INDEX('Inputs (values)'!$H$84:$KV$86,1,MATCH('Calculations (values)'!JU$21,'Inputs (values)'!$H$83:'Inputs (values)'!$KV$83,0))/INDEX('Inputs (values)'!$H$84:$KV$86,1,MATCH('Inputs (values)'!$H$10,'Inputs (values)'!$H$83:$KV$83,0)))*(INDEX('Inputs (values)'!$H$62:$KV$62,1,MATCH('Inputs (values)'!$H$12,'Inputs (values)'!$H$83:$KV$83,0))/INDEX('Inputs (values)'!$H$62:$KV$62,1,MATCH('Inputs (values)'!$H$11,'Inputs (values)'!$H$83:$KV$83,0))) -> 129.6105363 | JV22: =(INDEX('Inputs (values)'!$H$84:$KV$86,1,MATCH('Calculations (values)'!JV$21,'Inputs (values)'!$H$83:'Inputs (values)'!$KV$83,0))/INDEX('Inputs (values)'!$H$84:$KV$86,1,MATCH('Inputs (values)'!$H$10,'Inputs (values)'!$H$83:$KV$83,0)))*(INDEX('Inputs (values)'!$H$62:$KV$62,1,MATCH('Inputs (values)'!$H$12,'Inputs (values)'!$H$83:$KV$83,0))/INDEX('Inputs (values)'!$H$62:$KV$62,1,MATCH('Inputs (values)'!$H$11,'Inputs (values)'!$H$83:$KV$83,0))) -> 131.629493 | JW22: =(INDEX('Inputs (values)'!$H$84:$KV$86,1,MATCH('Calculations (values)'!JW$21,'Inputs (values)'!$H$83:'Inputs (values)'!$KV$83,0))/INDEX('Inputs (values)'!$H$84:$KV$86,1,MATCH('Inputs (values)'!$H$10,'Inputs (values)'!$H$83:$KV$83,0)))*(INDEX('Inputs (values)'!$H$62:$KV$62,1,MATCH('Inputs (values)'!$H$12,'Inputs (values)'!$H$83:$KV$83,0))/INDEX('Inputs (values)'!$H$62:$KV$62,1,MATCH('Inputs (values)'!$H$11,'Inputs (values)'!$H$83:$KV$83,0))) -> 133.6798992 | JX22: =(INDEX('Inputs (values)'!$H$84:$KV$86,1,MATCH('Calculations (values)'!JX$21,'Inputs (values)'!$H$83:'Inputs (values)'!$KV$83,0))/INDEX('Inputs (values)'!$H$84:$KV$86,1,MATCH('Inputs (values)'!$H$10,'Inputs (values)'!$H$83:$KV$83,0)))*(INDEX('Inputs (values)'!$H$62:$KV$62,1,MATCH('Inputs (values)'!$H$12,'Inputs (values)'!$H$83:$KV$83,0))/INDEX('Inputs (values)'!$H$62:$KV$62,1,MATCH('Inputs (values)'!$H$11,'Inputs (values)'!$H$83:$KV$83,0))) ->  | JY22: =(INDEX('Inputs (values)'!$H$84:$KV$86,1,MATCH('Calculations (values)'!JY$21,'Inputs (values)'!$H$83:'Inputs (values)'!$KV$83,0))/INDEX('Inputs (values)'!$H$84:$KV$86,1,MATCH('Inputs (values)'!$H$10,'Inputs (values)'!$H$83:$KV$83,0)))*(INDEX('Inputs (values)'!$H$62:$KV$62,1,MATCH('Inputs (values)'!$H$12,'Inputs (values)'!$H$83:$KV$83,0))/INDEX('Inputs (values)'!$H$62:$KV$62,1,MATCH('Inputs (values)'!$H$11,'Inputs (values)'!$H$83:$KV$83,0))) ->  | JZ22: =(INDEX('Inputs (values)'!$H$84:$KV$86,1,MATCH('Calculations (values)'!JZ$21,'Inputs (values)'!$H$83:'Inputs (values)'!$KV$83,0))/INDEX('Inputs (values)'!$H$84:$KV$86,1,MATCH('Inputs (values)'!$H$10,'Inputs (values)'!$H$83:$KV$83,0)))*(INDEX('Inputs (values)'!$H$62:$KV$62,1,MATCH('Inputs (values)'!$H$12,'Inputs (values)'!$H$83:$KV$83,0))/INDEX('Inputs (values)'!$H$62:$KV$62,1,MATCH('Inputs (values)'!$H$11,'Inputs (values)'!$H$83:$KV$83,0))) ->  | KA22: =(INDEX('Inputs (values)'!$H$84:$KV$86,1,MATCH('Calculations (values)'!KA$21,'Inputs (values)'!$H$83:'Inputs (values)'!$KV$83,0))/INDEX('Inputs (values)'!$H$84:$KV$86,1,MATCH('Inputs (values)'!$H$10,'Inputs (values)'!$H$83:$KV$83,0)))*(INDEX('Inputs (values)'!$H$62:$KV$62,1,MATCH('Inputs (values)'!$H$12,'Inputs (values)'!$H$83:$KV$83,0))/INDEX('Inputs (values)'!$H$62:$KV$62,1,MATCH('Inputs (values)'!$H$11,'Inputs (values)'!$H$83:$KV$83,0))) -> 
